{"text_format":"1","workbook":"xlsx","n_sheets":4,"sheets":["Freeway_Import","Schematic","Listing","Raw-Initial Volume List Entry"],"not_rendered":{"charts":0,"images":0,"macros":1,"external_links":0,"defined_names":251,"comments":0,"pivot_tables":0},"unopened":[],"bounds":{"document_bytes":16777216,"sheet_cells":100000,"rows_first":2000,"rows_last":500,"rows_between":2000,"halvings":0,"cell_chars":16384,"cell_head_chars":4096},"cells_cut":0,"cells_raw":0,"read":"whole","date_system":"1900"}

{"sheet":"Freeway_Import","index":0,"n_rows":101,"n_cols":13,"rows_kept":101,"cut":false,"hidden":false,"merged":[]}
[]
[null,null,"Project",{"$f":"Schematic!$L$3","v":"Sample Freeway & Intersection Balancing"}]
[null,null,"Scenario",{"$f":"Schematic!$L$4","v":"Year 2012 AM Peak"},null,null,null,null,null,null,"LINK_ID"]
[null,null,null,null,null,null,null,null,null,null,null,{"$f":"\"$\"","v":"$"}]
[null,null,null,null,null,null,null,null,null,null,"imbal",0,0]
[null,null,null,null,null,null,null,null,null,null,0,0,0]
[null,null,null,null,null,null,null,null,null,null,"target","$","$"]
[]
[null,null,"LINK_ID","Corridor","Corridor & Direction","Type","Location","Balanced\nVolume"]
[null,null,"LINK_1000","NB I-39/90","NB I-39/90","mainline","Beltline I/C to Badger I/C",3610]
[null,null,"LINK_1010",null,"NB I-39/90","off","off to WB WIS 30",570]
[null,null,"LINK_1020",null,"NB I-39/90","off","off to EB I-94",470]
[null,null,"LINK_1030",null,"NB I-39/90","mainline.","b/n ramps",2570]
[null,null,"LINK_1040",null,"NB I-39/90","on","on from EB WIS 30",380]
[null,null,"LINK_1050",null,"NB I-39/90","on","on from WB I-94",700]
[null,null,"LINK_1060",null,"NB I-39/90","mainline","Badger to US 151",3650]
[null,null,"LINK_1070",null,"NB I-39/90","CD","off to US 151/High Crossing CD",1970]
[null,null,"LINK_1080",null,"NB I-39/90","off","CD: off to High Crossing",470]
[null,null,"LINK_1090",null,"NB I-39/90","off","CD: off to NB US 151",1380]
[null,null,"LINK_1100",null,"NB I-39/90","CD","CD: b/n ramps",120]
[null,null,"LINK_1110",null,"NB I-39/90","on","CD: on from NB US 151",70]
[null,null,"LINK_1120",null,"NB I-39/90","off","CD: off to SB US 151",120]
[null,null,"LINK_1130",null,"NB I-39/90","CD","CD: b/n ramps",70]
[null,null,"LINK_1140",null,"NB I-39/90","on","CD: on from SB US 151",130]
[null,null,"LINK_1150",null,"NB I-39/90","mainline.","b/n CD exit & CD entrance",1680]
[null,null,"LINK_1160",null,"NB I-39/90","CD","on from CD",200]
[null,null,"LINK_1170",null,"NB I-39/90","mainline","US 151 to US 51",1880]
[null,null,"LINK_1180",null,"NB I-39/90","off","off to US 51",300]
[null,null,"LINK_1190",null,"NB I-39/90","on","on from NB US 51",110]
[null,null,"LINK_1200",null,"NB I-39/90","on","on from SB US 51",40]
[null,null,"LINK_1210",null,"NB I-39/90","mainline","US 51 to WIS 19",1730]
[null,null,"LINK_2000","SB I-39/90","SB I-39/90","mainline","WIS 19 to US 51",2450]
[null,null,"LINK_2010",null,"SB I-39/90","off","off to US 51",910]
[null,null,"LINK_2020",null,"SB I-39/90","on","on from SB US 51",160]
[null,null,"LINK_2030",null,"SB I-39/90","on","on from NB US 51",150]
[null,null,"LINK_2040",null,"SB I-39/90","mainline","US 51 to US 151",1850]
[null,null,"LINK_2050",null,"SB I-39/90","CD","off to US 151 CD",400]
[null,null,"LINK_2060",null,"SB I-39/90","off","CD: off to SB US 151",140]
[null,null,"LINK_2070",null,"SB I-39/90","CD","CD: b/n ramps",260]
[null,null,"LINK_2080",null,"SB I-39/90","on","CD: on from SB US 151",1690]
[null,null,"LINK_2090",null,"SB I-39/90","off","CD: off to NB US 151",260]
[null,null,"LINK_2100",null,"SB I-39/90","CD","CD: b/n ramps",1690]
[null,null,"LINK_2110",null,"SB I-39/90","on","CD: on from NB US 151",210]
[null,null,"LINK_2120",null,"SB I-39/90","mainline.","b/n CD exit & CD entrance",1450]
[null,null,"LINK_2130",null,"SB I-39/90","CD","on from CD",1900]
[null,null,"LINK_2140",null,"SB I-39/90","on","on from High Crossing",250]
[null,null,"LINK_2150",null,"SB I-39/90","mainline","US 151 to Badger",3600]
[null,null,"LINK_2160",null,"SB I-39/90","off","off to EB I-94",380]
[null,null,"LINK_2170",null,"SB I-39/90","off","off to WB WIS 30",840]
[null,null,"LINK_2180",null,"SB I-39/90","mainline.","b/n ramps",2380]
[null,null,"LINK_2190",null,"SB I-39/90","on","on from WB I-94",910]
[null,null,"LINK_2200",null,"SB I-39/90","on","on from EB WIS 30",240]
[null,null,"LINK_2210",null,"SB I-39/90","mainline","Badger I/C to Beltline I/C",3530]
[null,null,"LINK_3000","NB US 151","NB US 151","mainline","Frontage Rd to I-39/90/94",820]
[null,null,"LINK_2110",null,"NB US 151","off","off to SB I-39/90/94",210]
[null,null,"LINK_2090",null,"NB US 151","on","on from SB I-39/90/94",260]
[null,null,"LINK_1110",null,"NB US 151","off","off to NB I-39/90/94",70]
[null,null,"LINK_1090",null,"NB US 151","on","on from NB I-39/90/94",1380]
[null,null,"LINK_3050",null,"NB US 151","mainline","I-39/90/94 to American Pkwy",2180]
[null,null,"LINK_3060",null,"NB US 151","off","off to EB American Pkwy",130]
[null,null,"LINK_3070",null,"NB US 151","off","off to WB American Pkwy",910]
[null,null,"LINK_3080",null,"NB US 151","mainline.","b/n ramps",1140]
[null,null,"LINK_3090",null,"NB US 151","on","NB on from American Pkwy",150]
[null,null,"LINK_3100",null,"NB US 151","mainline","American Pkwy to Reiner Rd",1290]
[null,null,"LINK_4000","SB US 151","SB US 151","mainline","Reiner Rd to American Pkwy",3550]
[null,null,"LINK_4010",null,"SB US 151","CD","off to American Pkwy/High Crossing",510]
[null,null,"LINK_4020",null,"SB US 151","off","off to WB American Pkwy",320]
[null,null,"LINK_4030",null,"SB US 151","off","off to High Crossing",190]
[null,null,"LINK_4040",null,"SB US 151","on","on from High Crossing",70]
[null,null,"LINK_4050",null,"SB US 151","mainline.","b/n ramps",3110]
[null,null,"LINK_4060",null,"SB US 151","on","on from EB American Pkwy",290]
[null,null,"LINK_4070",null,"SB US 151","mainline","American Pkwy to I-39/90/94",3400]
[null,null,"LINK_1140",null,"SB US 151","off","off to NB I-39/90/94",130]
[null,null,"LINK_1120",null,"SB US 151","on","on from NB I-39/90/94",120]
[null,null,"LINK_2080",null,"SB US 151","off","off to SB I-39/90/94",1690]
[null,null,"LINK_2060",null,"SB US 151","on","on from SB I-39/90/94",140]
[null,null,"LINK_4120",null,"SB US 151","mainline","I-39/90/94 to Frontage Rd",1840]
[null,null,"LINK_5000","EB WIS 30","EB WIS 30","mainline","Fair Oaks to US 51",1380]
[null,null,"LINK_5010",null,"EB WIS 30","off","off to US 51",650]
[null,null,"LINK_5020",null,"EB WIS 30","on","on from US 51",500]
[null,null,"LINK_5030",null,"EB WIS 30","mainline","US 51 to Thompson Dr",1230]
[null,null,"LINK_5040",null,"EB WIS 30","off","off to Thompson Dr",270]
[null,null,"LINK_5050",null,"EB WIS 30","mainline","Thompson Dr to I-39/90",960]
[null,null,"LINK_2200",null,"EB WIS 30","off","off to SB I-39/90",240]
[null,null,"LINK_1040",null,"EB WIS 30","off","off to NB I-39/90",380]
[null,null,"LINK_5080",null,"EB WIS 30","mainline","EB WIS 30 to EB I-94",340]
[null,null,"LINK_1020",null,"EB WIS 30","on","on from NB I-39/90",470]
[null,null,"LINK_2160",null,"EB WIS 30","on","on from SB I-39/90/94",380]
[null,null,"LINK_5110","EB I-94","EB I-94","mainline","Badger to County N",1010]
[null,null,"LINK_6000","WB I-94","WB I-94","mainline","County N to Badger",2550]
[null,null,"LINK_1050",null,"WB I-94","off","off to NB I-39/90",700]
[null,null,"LINK_2190",null,"WB I-94","off","off to SB I-39/90",910]
[null,null,"LINK_6030","WB WIS 30","WB WIS 30","mainline","EB I-94 to EB WIS 30",0]
[null,null,"LINK_2170",null,"WB WIS 30","on","on from SB I-39/90/94",840]
[null,null,"LINK_1010",null,"WB WIS 30","on","on from NB I-39/90",570]
[null,null,"LINK_6060",null,"WB WIS 30","mainline","Badger to Thompson Dr",2350]
[null,null,"LINK_6070",null,"WB WIS 30","on","on from Thompson Dr",1110]
[null,null,"LINK_6080",null,"WB WIS 30","mainline","Thompson Dr to US 51",3460]
[null,null,"LINK_6090",null,"WB WIS 30","off","off to US 51",1320]
[null,null,"LINK_6100",null,"WB WIS 30","on","on from US 51",550]
[null,null,"LINK_6110",null,"WB WIS 30","mainline","US 51 to Fair Oaks",2690]

{"sheet":"Schematic","index":1,"n_rows":314,"n_cols":160,"rows_kept":314,"cut":false,"hidden":false,"merged":[]}
[]
[]
[null,null,null,null,null,null,null,null,null,null,"Project","Sample Freeway & Intersection Balancing"]
[null,null,null,null,null,null,null,null,null,null,"Scenario","Year 2012 AM Peak"]
[]
[]
[]
[]
[]
[null,null,null,null,null,null,null,null,null,"Do not put intersection data on the left side or above the black border"]
[null,null,null,null,null,"Total network imbalance",{"$f":"ABS(AY27)+ABS(AF42)+ABS(BO42)+ABS(BN46)+ABS(AU61)+ABS(AY62)+ABS(AF77)+ABS(AE81)+ABS(BN81)+ABS(AU96)+ABS(DK113)+ABS(CR128)+ABS(DZ132)+ABS(DG147)+ABS(DK148)+ABS(AF163)+ABS(BB163)+ABS(BA167)+ABS(BW167)+ABS(BN177)+ABS(AO178)+ABS(DG182)+ABS(DK183)+ABS(CR198)+ABS(EA198)+ABS(DZ202)+ABS(DG217)+ABS(BH245)+ABS(DI245)+ABS(CP260)+ABS(AU263)+ABS(BR263)+ABS(DX264)+ABS(BD279)+ABS(DE279)+ABS(BH280)+ABS(DI280)+ABS(BP297)+ABS(AU299)+ABS(CV299)+ABS(BD314)+ABS(DE314)","v":1018}]
[]
[]
[null,null,"Balancing Convergence Criteria"]
[null,null,null,null,null,"Maximum Iterations",500]
[null,null,null,null,null,"Max. Tot. Network Imbalance",0.01]
[]
[]
[]
[]
[]
[]
[]
[]
[]
[]
[null,null,null,null,null,null,null,null,null,null,null,null,null,null,null,null,null,null,null,null,null,null,null,null,null,null,null,null,null,null,null,null,null,null,null,null,null,null,null,null,null,null,null,null,null,{"$f":"IF(AU24<>\"\",AVERAGE(AU27,AU24),AU27)","v":1205},{"$f":"SUM(AU39:AV39)","v":1205},{"$f":"SUM(AU42:AV42)","v":1205},null,{"$f":"IF(AX26<>\"\",AX26-AX29,0)","v":0},{"$f":"IF(AY26<>\"\",AY26-AY29,0)","v":0},"imbal"]
[null,null,null,null,null,null,null,null,null,null,null,null,null,null,null,null,null,null,null,null,null,null,null,null,null,null,null,null,null,null,null,null,null,null,null,null,null,null,null,null,null,null,null,null,null,"target","$","$",null,"#","#","target"]
[null,null,null,null,null,null,null,null,null,null,null,null,null,null,null,null,null,null,null,null,null,null,null,null,null,null,null,null,null,null,null,null,null,null,null,null,null,null,null,null,null,null,null,null,null,null,null,null,null,{"$f":"SUM(AX46,AY42)","v":529},{"$f":"SUM(AX49,BB42)","v":529},{"$f":"IF(AY26<>\"\",AVERAGE(AY29,AY26),AY29)","v":529}]
[null,null,null,null,null,null,null,null,null,null,null,null,null,null,null,null,null,null,null,null,null,null,null,null,null,null,null,null,null,null,null,null,null,null,{"$f":"CHOOSE(1,AW44&\":\",\"IX_NAME\",AJ30)","v":"1:"},"US 51 & NB I-39/90/94 Ramps",null,null,null,null,null,null,null,null,null,null,null,null,null,null,null,null,null,null,null,null,null,"Local OD Raw"]
[null,null,null,null,null,null,null,null,null,null,null,null,null,null,null,null,null,null,null,null,null,null,null,null,null,null,null,null,null,null,null,null,null,null,null,"Raw Count Date:","2013-06-06",null,null,null,null,null,null,null,null,null,null,null,null,null,null,null,null,null,null,null,null,{"$f":"\"local_od_raw_\"&AW44","v":"local_od_raw_1"},1,2,3,4,"est","tgt","err"]
[null,null,null,null,null,null,null,null,null,null,null,null,null,null,null,null,null,null,null,null,null,null,null,null,null,null,null,null,null,null,null,null,null,null,null,null,null,null,null,null,null,null,null,null,null,null,null,null,null,null,null,null,null,null,null,null,null,1,0,{"$f":"AY46","v":143},{"$f":"AX46","v":312},0,{"$f":"SUM(BG32:BJ32)","v":455},{"$f":"AZ61","v":440.5},{"$f":"IFERROR(ABS(BK32-BL32)/BL32,0)","v":3.2917139614074914E-2}]
[null,null,null,null,null,null,null,null,null,null,null,null,null,null,null,null,null,null,null,null,null,null,null,null,null,null,null,null,null,null,null,null,null,null,null,null,null,null,null,null,null,null,null,null,null,null,null,"US 51",null,null,null,null,null,null,null,null,null,2,{"$f":"AY43","v":91},0,{"$f":"AY42","v":217},0,{"$f":"SUM(BG33:BJ33)","v":308},{"$f":"BN41","v":304},{"$f":"IFERROR(ABS(BK33-BL33)/BL33,0)","v":1.3157894736842105E-2}]
[null,null,null,null,null,null,null,null,null,null,null,null,null,null,null,null,null,null,null,null,null,null,null,null,null,null,null,null,null,null,null,null,null,null,null,null,null,null,null,null,null,null,null,null,"",null,null,null,null,null,null,null,null,null,null,null,null,3,{"$f":"AV42","v":1193},0,0,{"$f":"AU42","v":12},{"$f":"SUM(BG34:BJ34)","v":1205},{"$f":"AT27","v":1205},0]
[null,null,null,null,null,null,null,null,null,null,null,null,null,null,null,null,null,null,null,null,null,null,null,null,null,null,null,null,null,null,null,null,null,null,null,null,null,null,null,null,null,null,null,null,null,null,null,null,null,null,null,null,null,null,null,null,null,4,0,0,0,0,{"$f":"SUM(BG35:BJ35)","v":0},0,0]
[null,null,null,null,null,null,null,null,null,null,null,null,null,null,null,null,null,null,null,null,null,null,null,null,null,null,null,null,null,null,null,null,null,null,null,null,null,null,null,null,null,null,null,null,null,null,null,null,null,null,null,null,null,null,null,null,null,"est",{"$f":"SUM(BG32:BG35)","v":1284},{"$f":"SUM(BH32:BH35)","v":143},{"$f":"SUM(BI32:BI35)","v":529},{"$f":"SUM(BJ32:BJ35)","v":12}]
[null,null,null,null,null,null,null,null,null,null,null,null,null,null,null,null,null,null,null,null,null,null,null,null,null,null,null,null,null,null,null,null,null,null,null,null,null,null,null,null,null,null,null,null,null,"RNSE",{"$f":"RNSE(AU39,AU42)","v":0},{"$f":"RNSE(AV39,AV42)","v":0},null,null,null,null,null,null,null,null,null,"tgt",{"$f":"AT59","v":1308.5},{"$f":"BL47","v":126.5},{"$f":"AZ29","v":529},{"$f":"AH41","v":26}]
[null,null,null,null,null,null,null,null,null,null,null,null,null,null,null,null,null,null,null,null,null,null,null,null,null,null,null,null,null,null,null,null,null,null,null,null,null,null,null,null,null,null,null,null,null,"%",{"$f":"AU39/AU27","v":9.9585062240663894E-3},{"$f":"AV39/AU27","v":0.99004149377593365},null,null,null,null,null,null,null,null,null,"err",{"$f":"IFERROR(ABS(BG36-BG37)/BG37,0)","v":1.8723729461215134E-2},{"$f":"IFERROR(ABS(BH36-BH37)/BH37,0)","v":0.13043478260869565},0,0.53846153846153844,null,null,{"$f":"SUM(BG38:BJ38,BM32:BM35)","v":0.73369508488236634}]
[null,null,null,null,null,null,null,null,null,null,null,null,null,null,null,null,null,null,null,null,null,null,null,null,null,null,null,null,null,null,null,null,null,null,null,null,null,null,null,null,null,null,null,null,null,"bal",{"$f":"BJ53","v":12},{"$f":"BG53","v":1193}]
[null,null,null,null,null,null,null,null,null,null,null,null,null,null,null,null,null,null,null,null,null,null,null,null,null,null,null,null,null,"To NB I-39/90/94",null,null,null,null,null,null,null,null,null,null,null,null,null,null,null,null,8,"$",null,null,null,null,null,null,null,null,null,null,"",null,null,null,null,null,null,null,null,null,"From NB I-39/90/94"]
[null,null,null,null,null,null,null,null,null,null,null,null,null,null,null,null,null,null,null,null,null,null,null,null,null,null,null,null,null,"LINK_1200",null,"imbal","target",{"$f":"IF(AE42<>\"\",AVERAGE(AH42,AE42),AH42)","v":26},null,null,null,null,null,null,null,null,null,null,null,"%",{"$f":"AU42/AV27","v":9.9585062240663894E-3},{"$f":"AV42/AV27","v":0.99004149377593365},null,null,"raw","%",null,"bal","%","RNSE",null,null,null,null,null,null,null,null,"target",{"$f":"IF(BQ42<>\"\",AVERAGE(BN42,BQ42),BN42)","v":304},"imbal",null,"LINK_1180"]
[null,null,null,null,null,null,null,null,null,null,null,null,null,null,null,null,null,null,null,null,null,null,null,null,null,null,null,null,null,{"$f":"CHOOSE(1,\"!\",\"LINK\",AD41,AE42)","v":"!"},{"$f":"INDEX(Freeway_Import!$H$10:$H$101, MATCH(AD41,Freeway_Import!$C$10:$C$101,0))","v":40},{"$f":"IF(AE42<>\"\",AE42-AH42,0)","v":28},"!",{"$f":"AU39","v":12},null,null,null,null,null,null,null,null,null,null,null,"raw",12,1193,null,{"$f":"CHOOSE(1,\"<\",\"TURN\",8,AW44,AY42,BB42)","v":"<"},217,{"$f":"AY42/BN43","v":0.70454545454545459},"<",{"$f":"BI52","v":217},{"$f":"BB42/BN42","v":0.70454545454545459},{"$f":"RNSE(BB42,AY42)","v":0},null,null,null,null,null,null,null,null,"!",{"$f":"SUM(BB42:BB43)","v":308},{"$f":"IF(BQ42<>\"\",BN42-BQ42,0)","v":8},{"$f":"CHOOSE(1,\"!\",\"LINK\",BQ41,BQ42)","v":"!"},{"$f":"INDEX(Freeway_Import!$H$10:$H$101, MATCH(BQ41,Freeway_Import!$C$10:$C$101,0))","v":300}]
[null,null,null,null,null,null,null,null,null,null,null,null,null,null,null,null,null,null,null,null,null,null,null,null,null,null,null,null,null,null,null,{"$f":"IF(AE43<>\"\",AE43-AH43,0)","v":0},"!",{"$f":"AU42","v":12},null,null,null,null,null,null,null,null,null,null,null,null,{"$f":"CHOOSE(1,8,\"TURN\",12,AW44,AU42,AU39)","v":8},{"$f":"CHOOSE(1,\"$\",\"TURN\",11,AW44,AV42,AV39)","v":"$"},null,{"$f":"CHOOSE(1,\">\",\"TURN\",6,AW44,AY43,BB43)","v":">"},91,{"$f":"AY43/BN43","v":0.29545454545454547},">",{"$f":"BG52","v":91},{"$f":"BB43/BN42","v":0.29545454545454547},{"$f":"RNSE(BB43,AY43)","v":0},null,null,null,null,null,null,null,null,"!",{"$f":"SUM(AY42:AY43)","v":308},{"$f":"IF(BQ42<>\"\",BN43-BQ42,0)","v":8}]
[null,null,null,null,null,null,null,null,null,null,null,null,null,null,null,null,null,null,null,null,null,null,null,null,null,null,null,null,null,null,null,null,null,null,null,null,null,null,null,null,null,null,null,null,null,null,null,null,1]
[null,null,null,null,null,null,null,null,null,null,null,null,null,null,null,null,null,null,null,null,null,null,null,null,null,null,null,null,null,null,null,null,null,null,null,null,null,null,null,"NB I-39/90/94",null,null,null,null,null,null,null,null,null,{"$f":"CHOOSE(1,\"#\",\"TURN\",3,AW44,AX46,AX49)","v":"#"},{"$f":"CHOOSE(1,\";\",\"TURN\",4,AW44,AY46,AY49)","v":";"},null,null,null,null,null,null,null,null,null,null,null,null,{"$f":"AY46","v":143},"\"",{"$f":"IF(BO45<>\"\",BO45-BL45,0)","v":0}]
[null,null,null,null,null,null,null,null,null,null,null,null,null,null,null,null,null,null,null,null,null,null,null,null,null,null,null,null,null,null,null,null,null,null,null,null,null,null,null,null,null,null,null,null,null,null,null,null,null,312,143,"raw",null,null,null,null,null,null,null,null,null,null,null,{"$f":"AY49","v":143},"\"",{"$f":"IF(BO46<>\"\",BO46-BL46,0)","v":-33},{"$f":"INDEX(Freeway_Import!$H$10:$H$101, MATCH(BP47,Freeway_Import!$C$10:$C$101,0))","v":110},{"$f":"CHOOSE(1,\"\"\"\",\"LINK\",BP47,BO46)","v":"\""}]
[null,null,null,null,null,null,null,null,null,null,null,null,null,null,null,null,null,null,null,null,null,null,null,null,null,null,null,null,null,null,null,null,null,null,null,null,null,null,null,null,null,null,null,null,null,null,null,null,null,{"$f":"AX46/AX61","v":0.68571428571428572},{"$f":"AY46/AX61","v":0.31428571428571428},"%",null,null,null,null,null,null,null,null,null,null,null,{"$f":"IF(BO46<>\"\",AVERAGE(BL46,BO46),BL46)","v":126.5},"target","imbal",null,"LINK_1190"]
[null,null,null,null,null,null,null,null,null,null,null,null,null,null,null,null,null,null,null,null,null,null,null,null,null,null,null,null,null,null,null,null,null,null,null,null,null,null,"",null,null,null,null,null,null,null,null,null,null,"#",";",null,null,null,null,null,null,null,null,null,null,null,null,null,null,null,null,"To NB I-39/90/94"]
[null,null,null,null,null,null,null,null,null,null,null,null,null,null,null,null,null,null,null,null,null,null,null,null,null,null,null,null,null,null,null,null,null,null,null,null,null,null,null,null,null,null,null,null,null,null,null,null,null,{"$f":"BI51","v":312},{"$f":"BH51","v":143},"bal",null,null,null,null,null,"Local OD Estimated"]
[null,null,null,null,null,null,null,null,null,null,null,null,null,null,null,null,null,null,null,null,null,null,null,null,null,null,null,null,null,null,null,null,null,null,null,null,null,null,null,null,null,null,null,null,null,null,null,null,null,{"$f":"AX49/AY61","v":0.68571428571428572},{"$f":"AY49/AY61","v":0.31428571428571428},"%",null,null,null,null,null,{"$f":"\"local_od_est_\"&AW44","v":"local_od_est_1"},1,2,3,4,"est","tgt","err"]
[null,null,null,null,null,null,null,null,null,null,null,null,null,null,null,null,null,null,null,null,null,null,null,null,null,null,null,null,null,null,null,null,null,null,null,null,null,null,null,null,null,null,null,null,null,null,null,null,null,{"$f":"RNSE(AX49,AX46)","v":0},0,"RNSE",null,null,null,null,null,1,{"$f":"BG32","v":0},143,312,0,{"$f":"SUM(BG51:BJ51)","v":455},{"$f":"BL32","v":440.5},{"$f":"IFERROR(ABS(BK51-BL51)/BL51,0)","v":3.2917139614074914E-2}]
[null,null,null,null,null,null,null,null,null,null,null,null,null,null,null,null,null,null,null,null,null,null,null,null,null,null,null,null,null,null,null,null,null,null,null,null,null,null,null,null,null,null,null,null,null,null,null,null,null,null,null,null,null,null,null,null,null,2,91,0,217,0,{"$f":"SUM(BG52:BJ52)","v":308},304,{"$f":"IFERROR(ABS(BK52-BL52)/BL52,0)","v":1.3157894736842105E-2}]
[null,null,null,null,null,null,null,null,null,null,null,null,null,null,null,null,null,null,null,null,null,null,null,null,null,null,null,null,null,null,null,null,null,null,null,null,null,null,null,null,null,null,null,null,null,null,null,null,null,null,null,null,null,null,null,null,null,3,1193,0,0,12,1205,1205,0]
[null,null,null,null,null,null,null,null,null,null,null,null,null,null,null,null,null,null,null,null,null,null,null,null,null,null,null,null,null,null,null,null,null,null,null,null,null,null,null,null,null,null,null,null,null,null,null,null,null,null,null,null,"",null,null,null,null,4,0,0,0,0,0,0,0]
[null,null,null,null,null,null,null,null,null,null,null,null,null,null,null,null,null,null,null,null,null,null,null,null,null,null,null,null,null,null,null,null,null,null,null,null,null,null,null,null,null,null,null,null,null,null,null,null,null,null,null,null,null,null,null,null,null,"est",{"$f":"SUM(BG51:BG54)","v":1284},{"$f":"SUM(BH51:BH54)","v":143},529,12]
[null,null,null,null,null,null,null,null,null,null,null,null,null,null,null,null,null,null,null,null,null,null,null,null,null,null,null,null,null,null,null,null,null,null,null,null,null,null,null,null,null,null,null,null,null,null,null,null,null,null,null,null,null,null,null,null,null,"tgt",{"$f":"BG37","v":1308.5},126.5,529,26]
[null,null,null,null,null,null,null,null,null,null,null,null,null,null,null,null,null,null,null,null,null,null,null,null,null,null,null,null,null,null,null,null,null,null,null,null,null,null,null,null,null,null,null,null,null,null,null,null,null,null,null,null,null,null,null,null,null,"err",{"$f":"IFERROR(ABS(BG55-BG56)/BG56,0)","v":1.8723729461215134E-2},{"$f":"IFERROR(ABS(BH55-BH56)/BH56,0)","v":0.13043478260869565},0,0.53846153846153844,null,null,{"$f":"SUM(BG57:BJ57,BM51:BM54)","v":0.73369508488236634}]
[]
[null,null,null,null,null,null,null,null,null,null,null,null,null,null,null,null,null,null,null,null,null,null,null,null,null,null,null,null,null,null,null,null,null,null,null,null,null,null,null,null,null,null,null,null,null,{"$f":"IF(AU62<>\"\",AVERAGE(AU59,AU62),AU59)","v":1308.5},{"$f":"SUM(BB43,AV39)","v":1284},{"$f":"SUM(AY43,AV42)","v":1284}]
[null,null,null,null,null,null,null,null,null,null,null,null,null,null,null,null,null,null,null,null,null,null,null,null,null,null,null,null,null,null,null,null,null,null,null,null,null,null,null,null,null,null,null,null,null,"target","$","$",null,"#","#","target"]
[null,null,null,null,null,null,null,null,null,null,null,null,null,null,null,null,null,null,null,null,null,null,null,null,null,null,null,null,null,null,null,null,null,null,null,null,null,null,null,null,null,null,null,null,null,"imbal",{"$f":"IF(AU62<>\"\",AU62-AU59,0)","v":49},{"$f":"IF(AV62<>\"\",AV62-AV59,0)","v":49},null,{"$f":"SUM(AX46:AY46)","v":455},{"$f":"SUM(AX49:AY49)","v":455},{"$f":"IF(AY64<>\"\",AVERAGE(AY61,AY64),AY61)","v":440.5}]
[null,null,null,null,null,null,null,null,null,null,null,null,null,null,null,null,null,null,null,null,null,null,null,null,null,null,null,null,null,null,null,null,null,null,null,null,null,null,null,null,null,null,null,null,null,{"$f":"IF(AU59<>\"\",AVERAGE(AU62,AU59),AU62)","v":1308.5},{"$f":"SUM(AU74:AV74)","v":1333},{"$f":"SUM(AU77:AV77)","v":1333},null,{"$f":"IF(AX61<>\"\",AX61-AX64,0)","v":29},{"$f":"IF(AY61<>\"\",AY61-AY64,0)","v":29},"imbal"]
[null,null,null,null,null,null,null,null,null,null,null,null,null,null,null,null,null,null,null,null,null,null,null,null,null,null,null,null,null,null,null,null,null,null,null,null,null,null,null,null,null,null,null,null,null,"target","$","$",null,"#","#","target"]
[null,null,null,null,null,null,null,null,null,null,null,null,null,null,null,null,null,null,null,null,null,null,null,null,null,null,null,null,null,null,null,null,null,null,null,null,null,null,null,null,null,null,null,null,null,null,null,null,null,{"$f":"SUM(AU80,AX81)","v":426},{"$f":"SUM(AR80,AX84)","v":426},{"$f":"IF(AY61<>\"\",AVERAGE(AY64,AY61),AY64)","v":440.5}]
[null,null,null,null,null,null,null,null,null,null,null,null,null,null,null,null,null,null,null,null,null,null,null,null,null,null,null,null,null,null,null,null,null,null,{"$f":"CHOOSE(1,AW79&\":\",\"IX_NAME\",AJ65)","v":"2:"},"US 51 & SB I-39/90/94 Ramps",null,null,null,null,null,null,null,null,null,null,null,null,null,null,null,null,null,null,null,null,null,"Local OD Raw"]
[null,null,null,null,null,null,null,null,null,null,null,null,null,null,null,null,null,null,null,null,null,null,null,null,null,null,null,null,null,null,null,null,null,null,null,"Raw Count Date:","2013-06-06",null,null,null,null,null,null,null,null,null,null,null,null,null,null,null,null,null,null,null,null,{"$f":"\"local_od_raw_\"&AW79","v":"local_od_raw_2"},1,2,3,4,"est","tgt","err"]
[null,null,null,null,null,null,null,null,null,null,null,null,null,null,null,null,null,null,null,null,null,null,null,null,null,null,null,null,null,null,null,null,null,null,null,null,null,null,null,null,null,null,null,null,null,null,null,null,null,null,null,null,null,null,null,null,null,1,0,{"$f":"AY81","v":76},{"$f":"AX81","v":423},0,{"$f":"SUM(BG67:BJ67)","v":499},{"$f":"AZ96","v":499},{"$f":"IFERROR(ABS(BK67-BL67)/BL67,0)","v":0}]
[null,null,null,null,null,null,null,null,null,null,null,null,null,null,null,null,null,null,null,null,null,null,null,null,null,null,null,null,null,null,null,null,null,null,null,null,null,null,null,null,null,null,null,null,null,null,null,"US 51",null,null,null,null,null,null,null,null,null,2,0,0,0,0,{"$f":"SUM(BG68:BJ68)","v":0},0,{"$f":"IFERROR(ABS(BK68-BL68)/BL68,0)","v":0}]
[null,null,null,null,null,null,null,null,null,null,null,null,null,null,null,null,null,null,null,null,null,null,null,null,null,null,null,null,null,null,null,null,null,null,null,null,null,null,null,null,null,null,null,null,"",null,null,null,null,null,null,null,null,null,null,null,null,3,{"$f":"AV77","v":1064},0,0,{"$f":"AU77","v":269},{"$f":"SUM(BG69:BJ69)","v":1333},{"$f":"AT62","v":1308.5},1.8723729461215134E-2]
[null,null,null,null,null,null,null,null,null,null,null,null,null,null,null,null,null,null,null,null,null,null,null,null,null,null,null,null,null,null,null,null,null,null,null,null,null,null,null,null,null,null,null,null,null,null,null,null,null,null,null,null,null,null,null,null,null,4,{"$f":"AU81","v":786},0,{"$f":"AU80","v":3},0,{"$f":"SUM(BG70:BJ70)","v":789},{"$f":"AF82","v":849.5},7.1218363743378463E-2]
[null,null,null,null,null,null,null,null,null,null,null,null,null,null,null,null,null,null,null,null,null,null,null,null,null,null,null,null,null,null,null,null,null,null,null,null,null,null,null,null,null,null,null,null,null,null,null,null,null,null,null,null,null,null,null,null,null,"est",{"$f":"SUM(BG67:BG70)","v":1850},{"$f":"SUM(BH67:BH70)","v":76},{"$f":"SUM(BI67:BI70)","v":426},{"$f":"SUM(BJ67:BJ70)","v":269}]
[null,null,null,null,null,null,null,null,null,null,null,null,null,null,null,null,null,null,null,null,null,null,null,null,null,null,null,null,null,null,null,null,null,null,null,null,null,null,null,null,null,null,null,null,null,"RNSE",{"$f":"RNSE(AU74,AU77)","v":0},{"$f":"RNSE(AV74,AV77)","v":0},null,null,null,null,null,null,null,null,null,"tgt",{"$f":"AT94","v":1850},{"$f":"BL82","v":113},{"$f":"AZ64","v":440.5},{"$f":"AH76","v":214.5}]
[null,null,null,null,null,null,null,null,null,null,null,null,null,null,null,null,null,null,null,null,null,null,null,null,null,null,null,null,null,null,null,null,null,null,null,null,null,null,null,null,null,null,null,null,null,"%",{"$f":"AU74/AU62","v":0.20180045011252815},{"$f":"AV74/AU62","v":0.79819954988747188},null,null,null,null,null,null,null,null,null,"err",{"$f":"IFERROR(ABS(BG71-BG72)/BG72,0)","v":0},{"$f":"IFERROR(ABS(BH71-BH72)/BH72,0)","v":0.32743362831858408},3.2917139614074914E-2,0.25407925407925408,null,null,{"$f":"SUM(BG73:BJ73,BM67:BM70)","v":0.70437211521650656}]
[null,null,null,null,null,null,null,null,null,null,null,null,null,null,null,null,null,null,null,null,null,null,null,null,null,null,null,null,null,null,null,null,null,null,null,null,null,null,null,null,null,null,null,null,null,"bal",{"$f":"BJ88","v":269},{"$f":"BG88","v":1064}]
[null,null,null,null,null,null,null,null,null,null,null,null,null,null,null,null,null,null,null,null,null,null,null,null,null,null,null,null,null,"To SB I-39/90/94",null,null,null,null,null,null,null,null,null,null,null,null,null,null,null,null,8,"$",null,null,null,null,null,null,null,null,null,null,""]
[null,null,null,null,null,null,null,null,null,null,null,null,null,null,null,null,null,null,null,null,null,null,null,null,null,null,null,null,null,"LINK_2020",null,"imbal","target",{"$f":"IF(AE77<>\"\",AVERAGE(AH77,AE77),AH77)","v":214.5},null,null,null,null,null,null,null,null,null,null,null,"%",{"$f":"AU77/AV62","v":0.20180045011252815},{"$f":"AV77/AV62","v":0.79819954988747188}]
[null,null,null,null,null,null,null,null,null,null,null,null,null,null,null,null,null,null,null,null,null,null,null,null,null,null,null,null,null,{"$f":"CHOOSE(1,\"!\",\"LINK\",AD76,AE77)","v":"!"},{"$f":"INDEX(Freeway_Import!$H$10:$H$101, MATCH(AD76,Freeway_Import!$C$10:$C$101,0))","v":160},{"$f":"IF(AE77<>\"\",AE77-AH77,0)","v":-109},"!",{"$f":"AU74","v":269},null,null,null,null,null,null,null,null,null,null,null,"raw",269,1064]
[null,null,null,null,null,null,null,null,null,null,null,null,null,null,null,null,null,null,null,null,null,null,null,null,null,null,null,null,null,null,null,{"$f":"IF(AE78<>\"\",AE78-AH78,0)","v":0},"!",{"$f":"AU77","v":269},null,null,null,null,null,null,null,null,null,null,null,null,{"$f":"CHOOSE(1,8,\"TURN\",12,AW79,AU77,AU74)","v":8},{"$f":"CHOOSE(1,\"$\",\"TURN\",11,AW79,AV77,AV74)","v":"$"}]
[null,null,null,null,null,null,null,null,null,null,null,null,null,null,null,null,null,null,null,null,null,null,null,null,null,null,null,null,null,null,null,null,null,null,null,null,null,null,null,null,null,null,null,null,null,null,null,null,2]
[null,null,null,null,null,null,null,null,null,null,null,null,null,null,null,null,null,null,null,null,null,null,null,null,null,null,null,null,null,null,{"$f":"IF(AF80<>\"\",AF80-AC80,0)","v":789},{"$f":"SUM(AU80:AU81)","v":789},"\"",null,null,null,null,null,null,"SB I-39/90/94",null,{"$f":"RNSE(AR80,AU80)","v":0},{"$f":"AR80/AF81","v":3.8022813688212928E-3},{"$f":"BI89","v":3},"=",{"$f":"AU80/AF80","v":3.8022813688212928E-3},3,{"$f":"CHOOSE(1,\"=\",\"TURN\",14,AW79,AU80,AR80)","v":"="},null,{"$f":"CHOOSE(1,\"#\",\"TURN\",3,AW79,AX81,AX84)","v":"#"},{"$f":"CHOOSE(1,\";\",\"TURN\",4,AW79,AY81,AY84)","v":";"},null,null,null,null,null,null,null,null,null,null,null,null,{"$f":"AY81","v":76},"\"",{"$f":"IF(BO80<>\"\",BO80-BL80,0)","v":0}]
[null,null,null,null,null,null,null,null,null,null,null,null,null,null,null,null,null,null,null,null,null,null,null,null,null,null,null,null,{"$f":"INDEX(Freeway_Import!$H$10:$H$101, MATCH(AC82,Freeway_Import!$C$10:$C$101,0))","v":910},{"$f":"CHOOSE(1,\"\"\"\",\"LINK\",AC82,AC81)","v":"\""},{"$f":"IF(AF81<>\"\",AF81-AC81,0)","v":-121},{"$f":"SUM(AR80:AR81)","v":789},"\"",null,null,null,null,null,null,null,null,{"$f":"RNSE(AR81,AU81)","v":0},{"$f":"AR81/AF81","v":0.99619771863117867},{"$f":"BG89","v":786},"?",{"$f":"AU81/AF80","v":0.99619771863117867},786,{"$f":"CHOOSE(1,\"?\",\"TURN\",16,AW79,AU81,AR81)","v":"?"},null,423,76,"raw",null,null,null,null,null,null,null,null,null,null,null,{"$f":"AY84","v":76},"\"",{"$f":"IF(BO81<>\"\",BO81-BL81,0)","v":74},{"$f":"INDEX(Freeway_Import!$H$10:$H$101, MATCH(BP82,Freeway_Import!$C$10:$C$101,0))","v":150},{"$f":"CHOOSE(1,\"\"\"\",\"LINK\",BP82,BO81)","v":"\""}]
[null,null,null,null,null,null,null,null,null,null,null,null,null,null,null,null,null,null,null,null,null,null,null,null,null,null,null,null,"LINK_2010",null,"imbal",{"$f":"IF(AC81<>\"\",AVERAGE(AF81,AC81),AF81)","v":849.5},"target",null,null,null,null,null,null,null,null,"RNSE","%","bal",null,"%","raw",null,null,{"$f":"AX81/AX96","v":0.84769539078156309},{"$f":"AY81/AX96","v":0.15230460921843689},"%",null,null,null,null,null,null,null,null,null,null,null,{"$f":"IF(BO81<>\"\",AVERAGE(BL81,BO81),BL81)","v":113},"target","imbal",null,"LINK_2030"]
[null,null,null,null,null,null,null,null,null,null,null,null,null,null,null,null,null,null,null,null,null,null,null,null,null,null,null,null,"From SB I-39/90/94",null,null,null,null,null,null,null,null,null,"",null,null,null,null,null,null,null,null,null,null,"#",";",null,null,null,null,null,null,null,null,null,null,null,null,null,null,null,null,"To SB I-39/90/94"]
[null,null,null,null,null,null,null,null,null,null,null,null,null,null,null,null,null,null,null,null,null,null,null,null,null,null,null,null,null,null,null,null,null,null,null,null,null,null,null,null,null,null,null,null,null,null,null,null,null,{"$f":"BI86","v":423},{"$f":"BH86","v":76},"bal",null,null,null,null,null,"Local OD Estimated"]
[null,null,null,null,null,null,null,null,null,null,null,null,null,null,null,null,null,null,null,null,null,null,null,null,null,null,null,null,null,null,null,null,null,null,null,null,null,null,null,null,null,null,null,null,null,null,null,null,null,{"$f":"AX84/AY96","v":0.84769539078156309},{"$f":"AY84/AY96","v":0.15230460921843689},"%",null,null,null,null,null,{"$f":"\"local_od_est_\"&AW79","v":"local_od_est_2"},1,2,3,4,"est","tgt","err"]
[null,null,null,null,null,null,null,null,null,null,null,null,null,null,null,null,null,null,null,null,null,null,null,null,null,null,null,null,null,null,null,null,null,null,null,null,null,null,null,null,null,null,null,null,null,null,null,null,null,{"$f":"RNSE(AX84,AX81)","v":0},0,"RNSE",null,null,null,null,null,1,{"$f":"BG67","v":0},76,423,0,{"$f":"SUM(BG86:BJ86)","v":499},{"$f":"BL67","v":499},{"$f":"IFERROR(ABS(BK86-BL86)/BL86,0)","v":0}]
[null,null,null,null,null,null,null,null,null,null,null,null,null,null,null,null,null,null,null,null,null,null,null,null,null,null,null,null,null,null,null,null,null,null,null,null,null,null,null,null,null,null,null,null,null,null,null,null,null,null,null,null,null,null,null,null,null,2,0,0,0,0,{"$f":"SUM(BG87:BJ87)","v":0},0,{"$f":"IFERROR(ABS(BK87-BL87)/BL87,0)","v":0}]
[null,null,null,null,null,null,null,null,null,null,null,null,null,null,null,null,null,null,null,null,null,null,null,null,null,null,null,null,null,null,null,null,null,null,null,null,null,null,null,null,null,null,null,null,null,null,null,null,null,null,null,null,null,null,null,null,null,3,1064,0,0,269,1333,1308.5,1.8723729461215134E-2]
[null,null,null,null,null,null,null,null,null,null,null,null,null,null,null,null,null,null,null,null,null,null,null,null,null,null,null,null,null,null,null,null,null,null,null,null,null,null,null,null,null,null,null,null,null,null,null,null,null,null,null,null,"",null,null,null,null,4,786,0,3,0,789,849.5,7.1218363743378463E-2]
[null,null,null,null,null,null,null,null,null,null,null,null,null,null,null,null,null,null,null,null,null,null,null,null,null,null,null,null,null,null,null,null,null,null,null,null,null,null,null,null,null,null,null,null,null,null,null,null,null,null,null,null,null,null,null,null,null,"est",{"$f":"SUM(BG86:BG89)","v":1850},{"$f":"SUM(BH86:BH89)","v":76},426,269]
[null,null,null,null,null,null,null,null,null,null,null,null,null,null,null,null,null,null,null,null,null,null,null,null,null,null,null,null,null,null,null,null,null,null,null,null,null,null,null,null,null,null,null,null,null,null,null,null,null,null,null,null,null,null,null,null,null,"tgt",{"$f":"BG72","v":1850},113,440.5,214.5]
[null,null,null,null,null,null,null,null,null,null,null,null,null,null,null,null,null,null,null,null,null,null,null,null,null,null,null,null,null,null,null,null,null,null,null,null,null,null,null,null,null,null,null,null,null,null,null,null,null,null,null,null,null,null,null,null,null,"err",{"$f":"IFERROR(ABS(BG90-BG91)/BG91,0)","v":0},{"$f":"IFERROR(ABS(BH90-BH91)/BH91,0)","v":0.32743362831858408},3.2917139614074914E-2,0.25407925407925408,null,null,{"$f":"SUM(BG92:BJ92,BM86:BM89)","v":0.70437211521650656}]
[]
[null,null,null,null,null,null,null,null,null,null,null,null,null,null,null,null,null,null,null,null,null,null,null,null,null,null,null,null,null,null,null,null,null,null,null,null,null,null,null,null,null,null,null,null,null,{"$f":"IF(AU97<>\"\",AVERAGE(AU94,AU97),AU94)","v":1850},{"$f":"SUM(AV74,AR81)","v":1850},{"$f":"SUM(AV77,AU81)","v":1850}]
[null,null,null,null,null,null,null,null,null,null,null,null,null,null,null,null,null,null,null,null,null,null,null,null,null,null,null,null,null,null,null,null,null,null,null,null,null,null,null,null,null,null,null,null,null,"target","$","$",null,"#","#","target"]
[null,null,null,null,null,null,null,null,null,null,null,null,null,null,null,null,null,null,null,null,null,null,null,null,null,null,null,null,null,null,null,null,null,null,null,null,null,null,null,null,null,null,null,null,null,"imbal",{"$f":"IF(AU97<>\"\",AU97-AU94,0)","v":0},{"$f":"IF(AV97<>\"\",AV97-AV94,0)","v":0},null,{"$f":"SUM(AX81:AY81)","v":499},{"$f":"SUM(AX84:AY84)","v":499},{"$f":"IF(AY99<>\"\",AVERAGE(AY96,AY99),AY96)","v":499}]
[]
[]
[]
[]
[]
[]
[]
[]
[]
[]
[]
[]
[]
[]
[]
[]
[null,null,null,null,null,null,null,null,null,null,null,null,null,null,null,null,null,null,null,null,null,null,null,null,null,null,null,null,null,null,null,null,null,null,null,null,null,null,null,null,null,null,null,null,null,null,null,null,null,null,null,null,null,null,null,null,null,null,null,null,null,null,null,null,null,null,null,null,null,null,null,null,null,null,null,null,null,null,null,null,null,null,null,null,null,null,null,null,null,null,null,null,null,null,null,null,null,null,null,null,null,null,null,null,null,null,null,null,null,{"$f":"IF(DG110<>\"\",AVERAGE(DG113,DG110),DG113)","v":408},{"$f":"SUM(DE125:DH125)","v":408},{"$f":"SUM(DE128:DH128)","v":408},null,{"$f":"IF(DJ112<>\"\",DJ112-DJ115,0)","v":0},{"$f":"IF(DK112<>\"\",DK112-DK115,0)","v":0},"imbal"]
[null,null,null,null,null,null,null,null,null,null,null,null,null,null,null,null,null,null,null,null,null,null,null,null,null,null,null,null,null,null,null,null,null,null,null,null,null,null,null,null,null,null,null,null,null,null,null,null,null,null,null,null,null,null,null,null,null,null,null,null,null,null,null,null,null,null,null,null,null,null,null,null,null,null,null,null,null,null,null,null,null,null,null,null,null,null,null,null,null,null,null,null,null,null,null,null,null,null,null,null,null,null,null,null,null,null,null,null,null,"target","$","$",null,"#","#","target"]
[null,null,null,null,null,null,null,null,null,null,null,null,null,null,null,null,null,null,null,null,null,null,null,null,null,null,null,null,null,null,null,null,null,null,null,null,null,null,null,null,null,null,null,null,null,null,null,null,null,null,null,null,null,null,null,null,null,null,null,null,null,null,null,null,null,null,null,null,null,null,null,null,null,null,null,null,null,null,null,null,null,null,null,null,null,null,null,null,null,null,null,null,null,null,null,null,null,null,null,null,null,null,null,null,null,null,null,null,null,null,null,null,null,{"$f":"SUM(DH128,DG132,DL132,DK126)","v":1090},{"$f":"SUM(DH125,DD132,DL135,DN126)","v":1090},{"$f":"IF(DK112<>\"\",AVERAGE(DK115,DK112),DK115)","v":1090}]
[null,null,null,null,null,null,null,null,null,null,null,null,null,null,null,null,null,null,null,null,null,null,null,null,null,null,null,null,null,null,null,null,null,null,null,null,null,null,null,null,null,null,null,null,null,null,null,null,null,null,null,null,null,null,null,null,null,null,null,null,null,null,null,null,null,null,null,null,null,null,null,null,null,null,null,null,null,null,null,null,null,null,null,null,null,null,null,null,null,null,null,null,null,null,null,null,null,null,{"$f":"CHOOSE(1,DI130&\":\",\"IX_NAME\",CV116)","v":"5:"},"American Pkwy & Eastpark Blvd",null,null,null,null,null,null,null,null,null,null,null,null,null,null,null,null,null,null,null,null,null,"Local OD Raw"]
[null,null,null,null,null,null,null,null,null,null,null,null,null,null,null,null,null,null,null,null,null,null,null,null,null,null,null,null,null,null,null,null,null,null,null,null,null,null,null,null,null,null,null,null,null,null,null,null,null,null,null,null,null,null,null,null,null,null,null,null,null,null,null,null,null,null,null,null,null,null,null,null,null,null,null,null,null,null,null,null,null,null,null,null,null,null,null,null,null,null,null,null,null,null,null,null,null,null,null,"Raw Count Date:","2012-05-05",null,null,null,null,null,null,null,null,null,null,null,null,null,null,null,null,null,null,null,null,{"$f":"\"local_od_raw_\"&DI130","v":"local_od_raw_5"},1,2,3,4,"est","tgt","err"]
[null,null,null,null,null,null,null,null,null,null,null,null,null,null,null,null,null,null,null,null,null,null,null,null,null,null,null,null,null,null,null,null,null,null,null,null,null,null,null,null,null,null,null,null,null,null,null,null,null,null,null,null,null,null,null,null,null,null,null,null,null,null,null,null,null,null,null,null,null,null,null,null,null,null,null,null,null,null,null,null,null,null,null,null,null,null,null,null,null,null,null,null,null,null,null,null,null,null,null,null,null,null,null,null,null,null,null,null,null,null,null,null,null,null,null,null,null,null,null,null,null,1,{"$f":"DJ132","v":0},{"$f":"DM132","v":110},{"$f":"DL132","v":1051},{"$f":"DK132","v":570},{"$f":"SUM(DS118:DV118)","v":1731},{"$f":"DL147","v":1716},{"$f":"IFERROR(ABS(DW118-DX118)/DX118,0)","v":8.7412587412587419E-3}]
[null,null,null,null,null,null,null,null,null,null,null,null,null,null,null,null,null,null,null,null,null,null,null,null,null,null,null,null,null,null,null,null,null,null,null,null,null,null,null,null,null,null,null,null,null,null,null,null,null,null,null,null,null,null,null,null,null,null,null,null,null,null,null,null,null,null,null,null,null,null,null,null,null,null,null,null,null,null,null,null,null,null,null,null,null,null,null,null,null,null,null,null,null,null,null,null,null,null,null,null,null,null,null,null,null,null,null,null,null,null,null,"American Pkwy",null,null,null,null,null,null,null,null,null,2,{"$f":"DK128","v":87},{"$f":"DK129","v":0},{"$f":"DK126","v":15},{"$f":"DK127","v":33},{"$f":"SUM(DS119:DV119)","v":135},{"$f":"DZ127","v":135},{"$f":"IFERROR(ABS(DW119-DX119)/DX119,0)","v":0}]
[null,null,null,null,null,null,null,null,null,null,null,null,null,null,null,null,null,null,null,null,null,null,null,null,null,null,null,null,null,null,null,null,null,null,null,null,null,null,null,null,null,null,null,null,null,null,null,null,null,null,null,null,null,null,null,null,null,null,null,null,null,null,null,null,null,null,null,null,null,null,null,null,null,null,null,null,null,null,null,null,null,null,null,null,null,null,null,null,null,null,null,null,null,null,null,null,null,null,null,null,null,null,null,null,null,null,null,null,"",null,null,null,null,null,null,null,null,null,null,null,null,3,{"$f":"DF128","v":343},{"$f":"DG128","v":14},{"$f":"DH128","v":0},{"$f":"DE128","v":51},{"$f":"SUM(DS120:DV120)","v":408},{"$f":"DF113","v":408},0]
[null,null,null,null,null,null,null,null,null,null,null,null,null,null,null,null,null,null,null,null,null,null,null,null,null,null,null,null,null,null,null,null,null,null,null,null,null,null,null,null,null,null,null,null,null,null,null,null,null,null,null,null,null,null,null,null,null,null,null,null,null,null,null,null,null,null,null,null,null,null,null,null,null,null,null,null,null,null,null,null,null,null,null,null,null,null,null,null,null,null,null,null,null,null,null,null,null,null,null,null,null,null,null,null,null,null,null,null,null,null,null,null,null,null,null,null,null,null,null,null,null,4,{"$f":"DG134","v":120},{"$f":"DG133","v":13},{"$f":"DG132","v":24},{"$f":"DG131","v":0},{"$f":"SUM(DS121:DV121)","v":157},{"$f":"CR133","v":157},0]
[null,null,null,null,null,null,null,null,null,null,null,null,null,null,null,null,null,null,null,null,null,null,null,null,null,null,null,null,null,null,null,null,null,null,null,null,null,null,null,null,null,null,null,null,null,null,null,null,null,null,null,null,null,null,null,null,null,null,null,null,null,null,null,null,null,null,null,null,null,null,null,null,null,null,null,null,null,null,null,null,null,null,null,null,null,null,null,null,null,null,null,null,null,null,null,null,null,null,null,null,null,null,null,null,null,null,null,null,null,null,null,null,null,null,null,null,null,null,null,null,null,"est",{"$f":"SUM(DS118:DS121)","v":550},{"$f":"SUM(DT118:DT121)","v":137},{"$f":"SUM(DU118:DU121)","v":1090},{"$f":"SUM(DV118:DV121)","v":654}]
[null,null,null,null,null,null,null,null,null,null,null,null,null,null,null,null,null,null,null,null,null,null,null,null,null,null,null,null,null,null,null,null,null,null,null,null,null,null,null,null,null,null,null,null,null,null,null,null,null,null,null,null,null,null,null,null,null,null,null,null,null,null,null,null,null,null,null,null,null,null,null,null,null,null,null,null,null,null,null,null,null,null,null,null,null,null,null,null,null,null,null,null,null,null,null,null,null,null,null,null,null,null,null,null,null,null,null,"RNSE",{"$f":"RNSE(DE125,DE128)","v":0},{"$f":"RNSE(DF125,DF128)","v":0},0,"-",null,null,null,null,null,null,null,null,null,"tgt",{"$f":"DF145","v":532},{"$f":"DX133","v":137},{"$f":"DL115","v":1090},{"$f":"CT127","v":654}]
[null,null,null,null,null,null,null,null,null,null,null,null,null,null,null,null,null,null,null,null,null,null,null,null,null,null,null,null,null,null,null,null,null,null,null,null,null,null,null,null,null,null,null,null,null,null,null,null,null,null,null,null,null,null,null,null,null,null,null,null,null,null,null,null,null,null,null,null,null,null,null,null,null,null,null,null,null,null,null,null,null,null,null,null,null,null,null,null,null,null,null,null,null,null,null,null,null,null,null,null,null,null,null,null,null,null,null,"%",{"$f":"DE125/DG113","v":0.125},{"$f":"DF125/DG113","v":0.84068627450980393},{"$f":"DG125/DG113","v":3.4313725490196081E-2},{"$f":"DH125/DG113","v":0},null,null,null,null,null,null,null,null,null,"err",{"$f":"IFERROR(ABS(DS122-DS123)/DS123,0)","v":3.3834586466165412E-2},{"$f":"IFERROR(ABS(DT122-DT123)/DT123,0)","v":0},0,0,null,null,{"$f":"SUM(DS124:DV124,DY118:DY121)","v":4.2575845207424155E-2}]
[null,null,null,null,null,null,null,null,null,null,null,null,null,null,null,null,null,null,null,null,null,null,null,null,null,null,null,null,null,null,null,null,null,null,null,null,null,null,null,null,null,null,null,null,null,null,null,null,null,null,null,null,null,null,null,null,null,null,null,null,null,null,null,null,null,null,null,null,null,null,null,null,null,null,null,null,null,null,null,null,null,null,null,null,null,null,null,null,null,null,null,null,null,null,null,null,null,null,null,null,null,null,null,null,null,null,null,"bal",{"$f":"DV139","v":51},{"$f":"DS139","v":343},{"$f":"DT139","v":14},{"$f":"DU139","v":0},null,null,"raw","%",null,"bal","%","RNSE"]
[null,null,null,null,null,null,null,null,null,null,null,null,null,null,null,null,null,null,null,null,null,null,null,null,null,null,null,null,null,null,null,null,null,null,null,null,null,null,null,null,null,null,null,null,null,null,null,null,null,null,null,null,null,null,null,null,null,null,null,null,null,null,null,null,null,null,null,null,null,null,null,null,null,null,null,null,null,null,null,null,null,null,null,null,null,null,null,null,null,null,null,null,null,null,null,null,null,null,null,null,null,null,null,null,null,null,null,null,8,"$",9,"M",null,{"$f":"CHOOSE(1,\"<\",\"TURN\",8,DI130,DK126,DN126)","v":"<"},15,{"$f":"DK126/DZ129","v":0.1111111111111111},"<",{"$f":"DU138","v":15},{"$f":"DN126/DZ128","v":0.1111111111111111},{"$f":"RNSE(DN126,DK126)","v":0},null,null,""]
[null,null,null,null,null,null,null,null,null,null,null,null,null,null,null,null,null,null,null,null,null,null,null,null,null,null,null,null,null,null,null,null,null,null,null,null,null,null,null,null,null,null,null,null,null,null,null,null,null,null,null,null,null,null,null,null,null,null,null,null,null,null,null,null,null,null,null,null,null,null,null,null,null,null,null,null,null,null,null,null,null,null,null,null,null,null,null,null,null,null,null,null,null,null,null,"imbal","target",{"$f":"IF(CQ128<>\"\",AVERAGE(CT128,CQ128),CT128)","v":654},null,null,null,null,null,null,null,null,null,"%",{"$f":"DE128/DH113","v":0.125},{"$f":"DF128/DH113","v":0.84068627450980393},{"$f":"DG128/DH113","v":3.4313725490196081E-2},{"$f":"DH128/DH113","v":0},null,{"$f":"CHOOSE(1,\"!\",\"TURN\",7,DI130,DK127,DN127)","v":"!"},33,{"$f":"DK127/DZ129","v":0.24444444444444444},"!",{"$f":"DV138","v":33},{"$f":"DN127/DZ128","v":0.24444444444444444},{"$f":"RNSE(DN127,DK127)","v":0},null,null,null,null,null,null,null,null,"target",{"$f":"IF(EC128<>\"\",AVERAGE(DZ128,EC128),DZ128)","v":135}]
[null,null,null,null,null,null,null,null,null,null,null,null,null,null,null,null,null,null,null,null,null,null,null,null,null,null,null,null,null,null,null,null,null,null,null,null,null,null,null,null,null,null,null,null,null,null,null,null,null,null,null,null,null,null,null,null,null,null,null,null,null,null,null,null,null,null,null,null,null,null,null,null,null,null,null,null,null,null,null,null,null,null,null,null,null,null,null,null,null,null,null,null,null,null,null,{"$f":"IF(CQ128<>\"\",CQ128-CT128,0)","v":0},"!",{"$f":"SUM(DD131,DK135,DN127,DE125)","v":654},null,null,null,null,null,null,null,null,null,"raw",51,343,14,0,null,{"$f":"CHOOSE(1,\">\",\"TURN\",6,DI130,DK128,DN128)","v":">"},87,{"$f":"DK128/DZ129","v":0.64444444444444449},">",{"$f":"DS138","v":87},{"$f":"DN128/DZ128","v":0.64444444444444449},0,null,null,null,null,null,null,null,null,"!",{"$f":"SUM(DN126:DN129)","v":135}]
[null,null,null,null,null,null,null,null,null,null,null,null,null,null,null,null,null,null,null,null,null,null,null,null,null,null,null,null,null,null,null,null,null,null,null,null,null,null,null,null,null,null,null,null,null,null,null,null,null,null,null,null,null,null,null,null,null,null,null,null,null,null,null,null,null,null,null,null,null,null,null,null,null,null,null,null,null,null,null,null,null,null,null,null,null,null,null,null,null,null,null,null,null,null,null,{"$f":"IF(CQ129<>\"\",CQ129-CT129,0)","v":0},"!",{"$f":"SUM(DG131,DK132,DK127,DE128)","v":654},null,null,null,null,null,null,null,null,null,null,{"$f":"CHOOSE(1,8,\"TURN\",12,DI130,DE128,DE125)","v":8},{"$f":"CHOOSE(1,\"$\",\"TURN\",11,DI130,DF128,DF125)","v":"$"},{"$f":"CHOOSE(1,\"9\",\"TURN\",10,DI130,DG128,DG125)","v":"9"},{"$f":"CHOOSE(1,\"M\",\"TURN\",9,DI130,DH128,DH125)","v":"M"},null,{"$f":"CHOOSE(1,\"N\",\"TURN\",5,DI130,DK129,DN129)","v":"N"},0,{"$f":"DK129/DZ129","v":0},"N",{"$f":"DT138","v":0},{"$f":"DN129/DZ128","v":0},"-",null,null,null,null,null,null,null,null,"!",{"$f":"SUM(DK126:DK129)","v":135}]
[null,null,null,null,null,null,null,null,null,null,null,null,null,null,null,null,null,null,null,null,null,null,null,null,null,null,null,null,null,null,null,null,null,null,null,null,null,null,null,null,null,null,null,null,null,null,null,null,null,null,null,null,null,null,null,null,null,null,null,null,null,null,null,null,null,null,null,null,null,null,null,null,null,null,null,null,null,null,null,null,null,null,null,null,null,null,null,null,null,null,null,null,null,null,null,null,null,null,null,null,null,null,null,null,null,null,null,null,null,null,null,null,5]
[null,null,null,null,null,null,null,null,null,null,null,null,null,null,null,null,null,null,null,null,null,null,null,null,null,null,null,null,null,null,null,null,null,null,null,null,null,null,null,null,null,null,null,null,null,null,null,null,null,null,null,"I-39/90/94",null,null,null,null,null,null,null,null,null,null,null,null,null,null,null,null,null,null,null,null,null,null,null,null,null,null,null,null,null,null,null,null,null,null,null,null,null,null,null,null,null,null,null,{"$f":"SUM(DG131:DG134)","v":157},"\"",null,null,null,null,null,null,"Eastpark Blvd",null,{"$f":"RNSE(DD131,DG131)","v":"-"},{"$f":"DD131/CR132","v":0},{"$f":"DV140","v":0},"O",{"$f":"DG131/CR131","v":0},0,{"$f":"CHOOSE(1,\"O\",\"TURN\",13,DI130,DG131,DD131)","v":"O"},null,{"$f":"CHOOSE(1,\"L\",\"TURN\",1,DI130,DJ132,DJ135)","v":"L"},{"$f":"CHOOSE(1,\":\",\"TURN\",2,DI130,DK132,DK135)","v":":"},{"$f":"CHOOSE(1,\"#\",\"TURN\",3,DI130,DL132,DL135)","v":"#"},{"$f":"CHOOSE(1,\";\",\"TURN\",4,DI130,DM132,DM135)","v":";"},null,null,null,null,null,null,null,null,null,null,{"$f":"SUM(DK129,DG128,DG133,DM132)","v":137},"\"",{"$f":"IF(EA131<>\"\",EA131-DX131,0)","v":0}]
[null,null,null,null,null,null,null,null,null,null,null,null,null,null,null,null,null,null,null,null,null,null,null,null,null,null,null,null,null,null,null,null,null,null,null,null,null,null,null,null,null,null,null,null,null,null,null,null,null,null,null,null,null,null,null,null,null,null,null,null,null,null,null,null,null,null,null,null,null,null,null,null,null,null,null,null,null,null,null,null,null,null,null,null,null,null,null,null,null,null,null,null,null,null,null,{"$f":"SUM(DD131:DD134)","v":157},"\"",null,null,null,null,null,null,null,null,0,{"$f":"DD132/CR132","v":0.15286624203821655},{"$f":"DU140","v":24},"=",{"$f":"DG132/CR131","v":0.15286624203821655},24,{"$f":"CHOOSE(1,\"=\",\"TURN\",14,DI130,DG132,DD132)","v":"="},null,0,570,1051,110,"raw",null,null,null,null,null,null,null,null,null,{"$f":"SUM(DN129,DG125,DD133,DM135)","v":137},"\"",{"$f":"IF(EA132<>\"\",EA132-DX132,0)","v":0}]
[null,null,null,null,null,null,null,null,null,null,null,null,null,null,null,null,null,null,null,null,null,null,null,null,null,null,null,null,null,null,null,null,null,null,null,null,null,null,null,null,null,null,null,null,null,null,null,null,null,null,null,null,null,null,null,null,null,null,null,null,null,null,null,null,null,null,null,null,null,null,null,null,null,null,null,null,null,null,null,null,null,null,null,null,null,null,null,null,null,null,null,null,null,null,null,{"$f":"IF(CO132<>\"\",AVERAGE(CR132,CO132),CR132)","v":157},"target",null,null,null,null,null,null,null,null,0,{"$f":"DD133/CR132","v":8.2802547770700632E-2},{"$f":"DT140","v":13},"\"",{"$f":"DG133/CR131","v":8.2802547770700632E-2},13,{"$f":"CHOOSE(1,\"\"\"\",\"TURN\",15,DI130,DG133,DD133)","v":"\""},null,{"$f":"DJ132/DJ147","v":0},{"$f":"DK132/DJ147","v":0.3292894280762565},{"$f":"DL132/DJ147","v":0.60716348931253605},{"$f":"DM132/DJ147","v":6.3547082611207395E-2},"%",null,null,null,null,null,null,null,null,null,{"$f":"IF(EA132<>\"\",AVERAGE(DX132,EA132),DX132)","v":137},"target","imbal"]
[null,null,null,null,null,null,null,null,null,null,null,null,null,null,null,null,null,null,null,null,null,null,null,null,null,null,null,null,null,null,null,null,null,null,null,null,null,null,null,null,null,null,null,null,null,null,null,null,null,null,null,null,null,null,null,null,null,null,null,null,null,null,null,null,null,null,null,null,null,null,null,null,null,null,null,null,null,null,null,null,null,null,null,null,null,null,null,null,null,null,null,null,null,null,null,null,null,null,null,null,null,null,"",null,null,0,{"$f":"DD134/CR132","v":0.76433121019108285},{"$f":"DS140","v":120},"?",{"$f":"DG134/CR131","v":0.76433121019108285},120,{"$f":"CHOOSE(1,\"?\",\"TURN\",16,DI130,DG134,DD134)","v":"?"},null,"L",":","#",";"]
[null,null,null,null,null,null,null,null,null,null,null,null,null,null,null,null,null,null,null,null,null,null,null,null,null,null,null,null,null,null,null,null,null,null,null,null,null,null,null,null,null,null,null,null,null,null,null,null,null,null,null,null,null,null,null,null,null,null,null,null,null,null,null,null,null,null,null,null,null,null,null,null,null,null,null,null,null,null,null,null,null,null,null,null,null,null,null,null,null,null,null,null,null,null,null,null,null,null,null,null,null,null,null,null,null,"RNSE","%","bal",null,"%","raw",null,null,{"$f":"DS137","v":0},{"$f":"DV137","v":570},{"$f":"DU137","v":1051},{"$f":"DT137","v":110},"bal",null,null,null,"Local OD Estimated"]
[null,null,null,null,null,null,null,null,null,null,null,null,null,null,null,null,null,null,null,null,null,null,null,null,null,null,null,null,null,null,null,null,null,null,null,null,null,null,null,null,null,null,null,null,null,null,null,null,null,null,null,null,null,null,null,null,null,null,null,null,null,null,null,null,null,null,null,null,null,null,null,null,null,null,null,null,null,null,null,null,null,null,null,null,null,null,null,null,null,null,null,null,null,null,null,null,null,null,null,null,null,null,null,null,null,null,null,null,null,null,null,null,null,{"$f":"DJ135/DK147","v":0},{"$f":"DK135/DK147","v":0.3292894280762565},{"$f":"DL135/DK147","v":0.60716348931253605},{"$f":"DM135/DK147","v":6.3547082611207395E-2},"%",null,null,null,{"$f":"\"local_od_est_\"&DI130","v":"local_od_est_5"},1,2,3,4,"est","tgt","err"]
[null,null,null,null,null,null,null,null,null,null,null,null,null,null,null,null,null,null,null,null,null,null,null,null,null,null,null,null,null,null,null,null,null,null,null,null,null,null,null,null,null,null,null,null,null,null,null,null,null,null,null,null,null,null,null,null,null,null,null,null,null,null,null,null,null,null,null,null,null,null,null,null,null,null,null,null,null,null,null,null,null,null,null,null,null,null,null,null,null,null,null,null,null,null,null,null,null,null,null,null,null,null,null,null,null,null,null,null,null,null,null,null,null,{"$f":"RNSE(DJ135,DJ132)","v":"-"},0,0,0,"RNSE",null,null,null,1,{"$f":"DS118","v":0},110,1051,570,{"$f":"SUM(DS137:DV137)","v":1731},{"$f":"DX118","v":1716},{"$f":"IFERROR(ABS(DW137-DX137)/DX137,0)","v":8.7412587412587419E-3}]
[null,null,null,null,null,null,null,null,null,null,null,null,null,null,null,null,null,null,null,null,null,null,null,null,null,null,null,null,null,null,null,null,null,null,null,null,null,null,null,null,null,null,null,null,null,null,null,null,null,null,null,null,null,null,null,null,null,null,null,null,null,null,null,null,null,null,null,null,null,null,null,null,null,null,null,null,null,null,null,null,null,null,null,null,null,null,null,null,null,null,null,null,null,null,null,null,null,null,null,null,null,null,null,null,null,null,null,null,null,null,null,null,null,null,null,null,null,null,null,null,null,2,87,0,15,33,{"$f":"SUM(DS138:DV138)","v":135},135,{"$f":"IFERROR(ABS(DW138-DX138)/DX138,0)","v":0}]
[null,null,null,null,null,null,null,null,null,null,null,null,null,null,null,null,null,null,null,null,null,null,null,null,null,null,null,null,null,null,null,null,null,null,null,null,null,null,null,null,null,null,null,null,null,null,null,null,null,null,null,null,null,null,null,null,null,null,null,null,null,null,null,null,null,null,null,null,null,null,null,null,null,null,null,null,null,null,null,null,null,null,null,null,null,null,null,null,null,null,null,null,null,null,null,null,null,null,null,null,null,null,null,null,null,null,null,null,null,null,null,null,null,null,null,null,null,null,null,null,null,3,343,14,0,51,408,408,0]
[null,null,null,null,null,null,null,null,null,null,null,null,null,null,null,null,null,null,null,null,null,null,null,null,null,null,null,null,null,null,null,null,null,null,null,{"$f":"CHOOSE(1,AQ165&\":\",\"IX_NAME\",AK140)","v":"3:"},"High Crossing Blvd & SB I-39/90/94 On-Ramp",null,null,null,null,null,null,null,null,null,null,null,null,null,null,null,null,null,null,null,null,null,null,null,null,null,null,{"$f":"CHOOSE(1,BL165&\":\",\"IX_NAME\",BM140)","v":"4:"},"High Crossing Blvd & NB I-39/90/94 Off-Ramp",null,null,null,null,null,null,null,null,null,null,null,null,null,null,null,null,null,null,null,null,null,null,null,null,null,null,null,null,null,null,null,null,null,null,null,null,null,null,null,null,null,null,null,null,null,null,null,null,null,null,null,"",null,null,null,null,4,120,13,24,0,157,157,0]
[null,null,null,null,null,null,null,null,null,null,null,null,null,null,null,null,null,null,null,null,null,null,null,null,null,null,null,null,null,null,null,null,null,null,null,null,"Raw Count Date:","2012-05-05",null,null,null,null,null,null,null,null,null,null,null,null,null,null,null,null,null,null,null,null,null,null,null,null,null,null,"Raw Count Date:","2012-05-05",null,null,null,null,null,null,null,null,null,null,null,null,null,null,null,null,null,null,null,null,null,null,null,null,null,null,null,null,null,null,null,null,null,null,null,null,null,null,null,null,null,null,null,null,null,null,null,null,null,null,null,null,null,null,null,"est",{"$f":"SUM(DS137:DS140)","v":550},{"$f":"SUM(DT137:DT140)","v":137},1090,654]
[null,null,null,null,null,null,null,null,null,null,null,null,null,null,null,null,null,null,null,null,null,null,null,null,null,null,null,null,null,null,null,"Local OD Raw",null,null,null,null,null,null,null,null,null,null,null,null,null,null,null,null,null,null,null,null,null,null,null,null,null,null,null,null,null,null,null,null,null,null,null,"Local OD Raw",null,null,null,null,null,null,null,null,null,null,null,null,null,null,null,null,null,null,null,null,null,null,null,null,null,null,null,null,null,null,null,null,null,null,null,null,null,null,null,null,null,null,null,null,null,null,null,null,null,null,null,null,null,"tgt",{"$f":"DS123","v":532},137,1090,654]
[null,null,null,null,null,null,null,null,null,null,null,null,null,null,null,null,null,null,null,null,null,null,null,null,null,null,null,null,null,null,null,{"$f":"\"local_od_raw_\"&AQ165","v":"local_od_raw_3"},1,2,4,"est","tgt","err",null,null,null,null,null,null,null,null,null,null,null,null,null,null,null,null,null,null,null,null,null,null,null,null,null,null,null,null,null,{"$f":"\"local_od_raw_\"&BL165","v":"local_od_raw_4"},1,2,4,"est","tgt","err",null,null,null,null,null,null,null,null,null,null,null,null,null,null,null,null,null,null,null,null,null,null,null,null,null,null,null,null,null,null,null,null,null,null,null,null,null,null,null,null,null,null,null,null,null,null,null,"err",{"$f":"IFERROR(ABS(DS141-DS142)/DS142,0)","v":3.3834586466165412E-2},{"$f":"IFERROR(ABS(DT141-DT142)/DT142,0)","v":0},0,0,null,null,{"$f":"SUM(DS143:DV143,DY137:DY140)","v":4.2575845207424155E-2}]
[null,null,null,null,null,null,null,null,null,null,null,null,null,null,null,null,null,null,null,null,null,null,null,null,null,null,null,null,null,null,null,1,0,0,0,{"$f":"SUM(AG144:AI144)","v":0},0,{"$f":"IFERROR(ABS(AJ144-AK144)/AK144,0)","v":0},null,null,null,null,null,null,null,null,null,null,null,null,null,null,null,null,null,null,null,null,null,null,null,null,null,null,null,null,null,1,0,{"$f":"BN167","v":394},{"$f":"BM167","v":141},{"$f":"SUM(BQ144:BS144)","v":535},{"$f":"BO176","v":470},{"$f":"IFERROR(ABS(BT144-BU144)/BU144,0)","v":0.13829787234042554}]
[null,null,null,null,null,null,null,null,null,null,null,null,null,null,null,null,null,null,null,null,null,null,null,null,null,null,null,null,null,null,null,2,{"$f":"AS163","v":175},{"$f":"AS164","v":0},{"$f":"AS162","v":279},{"$f":"SUM(AG145:AI145)","v":454},{"$f":"BA162","v":459},{"$f":"IFERROR(ABS(AJ145-AK145)/AK145,0)","v":1.0893246187363835E-2},null,null,null,null,null,null,null,null,null,null,null,null,null,null,null,null,null,null,null,null,null,null,null,null,null,null,null,null,null,2,0,{"$f":"BN164","v":0},{"$f":"BN163","v":323},{"$f":"SUM(BQ145:BS145)","v":323},{"$f":"BW162","v":323},{"$f":"IFERROR(ABS(BT145-BU145)/BU145,0)","v":0},null,null,null,null,null,null,null,null,null,null,null,null,null,null,null,null,null,null,null,null,null,null,null,null,null,null,null,null,null,null,null,null,null,null,null,{"$f":"IF(DG148<>\"\",AVERAGE(DG145,DG148),DG145)","v":532},{"$f":"SUM(DJ135,DN128,DF125,DD134)","v":550},{"$f":"SUM(DJ132,DK128,DF128,DG134)","v":550}]
[null,null,null,null,null,null,null,null,null,null,null,null,null,null,null,null,null,null,null,null,null,null,null,null,null,null,null,null,null,null,null,4,{"$f":"AO168","v":85},{"$f":"AO167","v":145},{"$f":"AO166","v":0},{"$f":"SUM(AG146:AI146)","v":230},{"$f":"AF168","v":230},{"$f":"IFERROR(ABS(AJ146-AK146)/AK146,0)","v":0},null,null,null,null,null,null,null,null,null,null,null,null,null,null,null,null,null,null,null,null,null,null,null,null,null,null,null,null,null,4,0,{"$f":"BJ167","v":145},{"$f":"BJ166","v":0},{"$f":"SUM(BQ146:BS146)","v":145},{"$f":"BB168","v":145},{"$f":"IFERROR(ABS(BT146-BU146)/BU146,0)","v":0},null,null,null,null,null,null,null,null,null,null,null,null,null,null,null,null,null,null,null,null,null,null,null,null,null,null,null,null,null,null,null,null,null,null,null,"target","$","$",null,"#","#","target"]
[null,null,null,null,null,null,null,null,null,null,null,null,null,null,null,null,null,null,null,null,null,null,null,null,null,null,null,null,null,null,null,"est",{"$f":"SUM(AG144:AG146)","v":260},{"$f":"SUM(AH144:AH146)","v":145},{"$f":"SUM(AI144:AI146)","v":279},null,null,null,null,null,null,null,null,null,null,null,null,null,null,null,null,null,null,null,null,null,null,null,null,null,null,null,null,null,null,null,null,"est",{"$f":"SUM(BQ144:BQ146)","v":0},{"$f":"SUM(BR144:BR146)","v":539},{"$f":"SUM(BS144:BS146)","v":464},null,null,null,null,null,null,null,null,null,null,null,null,null,null,null,null,null,null,null,null,null,null,null,null,null,null,null,null,null,null,null,null,null,null,null,null,null,null,"imbal",{"$f":"IF(DG148<>\"\",DG148-DG145,0)","v":-36},{"$f":"IF(DH148<>\"\",DH148-DH145,0)","v":0},null,{"$f":"SUM(DJ132:DM132)","v":1731},{"$f":"SUM(DJ135:DM135)","v":1731},{"$f":"IF(DK150<>\"\",AVERAGE(DK147,DK150),DK147)","v":1716}]
[null,null,null,null,null,null,null,null,null,null,null,null,null,null,null,null,null,null,null,null,null,null,null,null,null,null,null,null,null,null,null,"tgt",{"$f":"AN176","v":250},{"$f":"AY168","v":145},{"$f":"AH162","v":279},null,null,null,null,null,null,null,null,null,null,null,null,null,null,null,null,null,null,null,null,null,null,null,null,null,null,null,null,null,null,null,null,"tgt",0,{"$f":"BU168","v":539},{"$f":"BD162","v":459},null,null,null,null,null,null,null,null,null,null,null,null,null,null,null,null,null,null,null,null,null,null,null,null,null,null,null,null,null,null,null,null,null,null,null,null,null,null,null,{"$f":"DG183-DF171+DH156","v":514},null,null,{"$f":"IF(DJ147<>\"\",DJ147-DJ150,0)","v":1731},{"$f":"IF(DK147<>\"\",DK147-DK150,0)","v":30},"imbal"]
[null,null,null,null,null,null,null,null,null,null,null,null,null,null,null,null,null,null,null,null,null,null,null,null,null,null,null,null,null,null,null,"err",{"$f":"IFERROR(ABS(AG147-AG148)/AG148,0)","v":0.04},{"$f":"IFERROR(ABS(AH147-AH148)/AH148,0)","v":0},{"$f":"IFERROR(ABS(AI147-AI148)/AI148,0)","v":0},null,null,{"$f":"SUM(AG149:AI149,AL144:AL146)","v":5.0893246187363836E-2},null,null,null,null,null,null,null,null,null,null,null,null,null,null,null,null,null,null,null,null,null,null,null,null,null,null,null,null,null,"err",{"$f":"IFERROR(ABS(BQ147-BQ148)/BQ148,0)","v":0},{"$f":"IFERROR(ABS(BR147-BR148)/BR148,0)","v":0},{"$f":"IFERROR(ABS(BS147-BS148)/BS148,0)","v":1.0893246187363835E-2},null,null,{"$f":"SUM(BQ149:BS149,BV144:BV146)","v":0.14919111852778938},null,null,null,null,null,null,null,null,null,null,null,null,null,null,null,null,null,null,null,null,null,null,null,null,null,null,null,null,null,null,null,null,null,null,null,null,"$",null,null,null,"#"]
[null,null,null,null,null,null,null,null,null,null,null,null,null,null,null,null,null,null,null,null,null,null,null,null,null,null,null,null,null,null,null,null,null,null,null,null,null,null,null,null,null,null,null,null,null,null,null,null,null,null,null,null,null,null,null,null,null,null,null,null,null,null,null,null,null,null,null,null,null,null,null,null,null,null,null,null,null,null,null,null,null,null,null,null,null,null,null,null,null,null,null,null,null,null,null,null,null,null,null,null,null,null,null,null,null,null,null,null,null,null,null,null,null,null,{"$f":"SUM(DK155,DK177,DK185)","v":1701}]
[]
[]
[]
[null,null,null,null,null,null,null,null,null,null,null,null,null,null,null,null,null,null,null,null,null,null,null,null,null,null,null,null,null,null,null,null,null,null,null,null,null,null,null,null,null,null,null,null,null,null,null,null,null,null,null,null,null,null,null,null,null,null,null,null,null,null,null,null,null,null,null,null,null,null,null,null,null,null,null,null,null,null,null,null,null,null,null,null,null,null,null,null,null,null,null,null,null,null,null,null,null,null,null,null,null,null,null,null,null,null,null,null,null,null,null,null,null,null,{"$f":"CHOOSE(1,\"<\",\"LINK\",DL155,DK155)","v":"<"}]
[null,null,null,null,null,null,null,null,null,null,null,null,null,null,null,null,null,null,null,null,null,null,null,null,null,null,null,null,null,null,null,null,null,null,null,null,null,null,null,null,null,null,null,null,null,null,null,null,null,null,null,null,null,null,null,null,null,null,null,null,null,null,null,null,null,null,null,null,null,null,null,null,null,null,null,null,null,null,null,null,null,null,null,null,null,null,null,null,null,null,null,null,null,null,null,null,null,null,null,null,null,null,null,null,null,null,null,null,null,null,null,null,null,null,{"$f":"INDEX(Freeway_Import!$H$10:$H$101, MATCH(DL155,Freeway_Import!$C$10:$C$101,0))","v":320},"LINK_4020"]
[null,null,null,null,null,null,null,null,null,null,null,null,null,null,null,null,null,null,null,null,null,null,null,null,null,null,null,null,null,null,null,null,null,null,null,null,null,null,null,null,null,null,null,null,null,null,null,null,null,null,null,null,null,null,null,null,null,null,null,null,null,null,null,null,null,null,null,null,null,null,null,null,null,null,null,null,null,null,null,null,null,null,null,null,null,null,null,null,null,null,null,null,null,null,null,null,null,null,null,null,null,null,null,null,null,null,null,null,null,null,null,{"$f":"INDEX(Freeway_Import!$H$10:$H$101, MATCH(DG157,Freeway_Import!$C$10:$C$101,0))","v":290}]
[null,null,null,null,null,null,null,null,null,null,null,null,null,null,null,null,null,null,null,null,null,null,null,null,null,null,null,null,null,null,null,null,null,null,null,null,null,null,null,null,null,null,null,null,null,null,null,null,null,null,null,null,null,null,null,null,null,null,null,null,null,null,null,null,null,null,null,null,null,null,null,null,null,null,null,null,null,null,null,null,null,null,null,null,null,null,null,null,null,null,null,null,null,null,null,null,null,null,null,null,null,null,null,null,null,null,null,null,null,null,"LINK_4060",{"$f":"CHOOSE(1,\"8\",\"LINK\",DG157,DH156)","v":"8"}]
[]
[]
[]
[null,null,null,null,null,null,null,null,null,null,null,null,null,null,null,null,null,null,null,null,null,null,null,null,null,null,null,null,null,null,null,null,null,null,null,null,null,null,null,null,null,null,null,null,"raw","%",null,"bal","%","RNSE",null,null,null,null,null,null,null,null,null,null,null,null,null,null,null,null,null,null,null,null,null,null,null,null,null,null,null,null,null,null,null,null,null,null,null,null,null,null,null,null,null,null,null,null,null,null,null,null,null,null,null,null,null,null,null,"US 151",null,null,null,null,null,null,null,null,null,null,null,null,null,null,null,null,null,null,null,null,null,null,null,null,null,null,null,"US 151",null,null,null,null,null,null,null,null,null,null,null,null,null,null,null,null,null,null,null,null,null,null,null,null,null,"US 151"]
[null,null,null,null,null,null,null,null,null,null,null,null,null,null,null,null,null,null,null,null,null,null,null,null,null,null,null,null,null,null,null,"imbal","target",{"$f":"IF(AE163<>\"\",AVERAGE(AH163,AE163),AH163)","v":279},null,null,null,null,null,null,null,null,null,{"$f":"CHOOSE(1,\"!\",\"TURN\",7,AQ165,AS162,AV162)","v":"!"},279,{"$f":"AS162/BA164","v":0.61453744493392071},"!",{"$f":"AI184","v":279},{"$f":"AV162/BA163","v":0.61453744493392071},{"$f":"RNSE(AV162,AS162)","v":0},null,"target",{"$f":"IF(BD163<>\"\",AVERAGE(BA163,BD163),BA163)","v":459},"imbal","target",{"$f":"IF(BA163<>\"\",AVERAGE(BD163,BA163),BD163)","v":459},null,null,null,null,null,null,null,null,null,"raw","%",null,"bal","%","RNSE",null,null,"target",{"$f":"IF(BZ163<>\"\",AVERAGE(BW163,BZ163),BW163)","v":323}]
[null,null,null,null,null,null,null,null,null,null,null,null,null,null,null,null,null,null,null,null,null,null,null,null,null,null,null,null,null,null,null,{"$f":"IF(AE163<>\"\",AE163-AH163,0)","v":0},"!",{"$f":"SUM(AL166,AV162)","v":279},null,null,null,null,null,null,null,null,null,{"$f":"CHOOSE(1,\">\",\"TURN\",6,AQ165,AS163,AV163)","v":">"},175,{"$f":"AS163/BA164","v":0.38546255506607929},">",{"$f":"AG184","v":175},{"$f":"AV163/BA163","v":0.38546255506607929},0,null,"!",{"$f":"SUM(AV162:AV164)","v":454},{"$f":"IF(BA163<>\"\",BA163-BD163,0)","v":-10},"!",{"$f":"SUM(BM170,BQ163,BG166)","v":464},null,null,null,null,null,null,null,null,{"$f":"CHOOSE(1,\"!\",\"TURN\",7,BL165,BN163,BQ163)","v":"!"},323,{"$f":"BN163/BW164","v":1},"!",{"$f":"BS184","v":323},{"$f":"BQ163/BW163","v":1},{"$f":"RNSE(BQ163,BN163)","v":0},null,null,"!",{"$f":"SUM(BQ163:BQ164)","v":323}]
[null,null,null,null,null,null,null,null,null,null,null,null,null,null,null,null,null,null,null,null,null,null,null,null,null,null,null,null,null,null,null,{"$f":"IF(AE164<>\"\",AE164-AH164,0)","v":0},"!",{"$f":"SUM(AO166,AS162)","v":279},null,null,null,"High Crossing Blvd",null,null,null,null,null,{"$f":"CHOOSE(1,\"N\",\"TURN\",5,AQ165,AS164,AV164)","v":"N"},0,{"$f":"AS164/BA164","v":0},"N",{"$f":"AH184","v":0},{"$f":"AV164/BA163","v":0},"-",null,"!",{"$f":"SUM(AS162:AS164)","v":454},{"$f":"IF(BA164<>\"\",BA164-BD164,0)","v":-10},"!",{"$f":"SUM(BM167,BN163,BJ166)","v":464},null,null,null,null,null,"High Crossing Blvd",null,null,{"$f":"CHOOSE(1,\"N\",\"TURN\",5,BL165,BN164,BQ164)","v":"N"},0,{"$f":"BN164/BW164","v":0},"N",{"$f":"BR184","v":0},{"$f":"BQ164/BW163","v":0},{"$f":"RNSE(BQ164,BN164)","v":"-"},null,null,"!",{"$f":"SUM(BN163:BN164)","v":323}]
[null,null,null,null,null,null,null,null,null,null,null,null,null,null,null,null,null,null,null,null,null,null,null,null,null,null,null,null,null,null,null,null,null,null,null,null,null,null,null,null,null,null,3,null,null,null,null,null,null,null,null,null,null,null,null,null,null,null,null,null,null,null,null,4]
[null,null,null,null,null,null,null,null,null,null,null,null,null,null,null,null,null,null,null,null,null,null,null,null,null,null,null,null,null,null,null,{"$f":"SUM(AO166:AO168)","v":230},"\"",null,null,{"$f":"RNSE(AL166,AO166)","v":"-"},{"$f":"AL166/AF167","v":0},{"$f":"AI185","v":0},"O",{"$f":"AO166/AF166","v":0},0,{"$f":"CHOOSE(1,\"O\",\"TURN\",13,AQ165,AO166,AL166)","v":"O"},null,null,null,null,null,null,null,null,{"$f":"SUM(AS164,AO167)","v":145},"\"",{"$f":"IF(BB166<>\"\",BB166-AY166,0)","v":0},{"$f":"SUM(BJ166:BJ167)","v":145},"\"",null,{"$f":"RNSE(BG166,BJ166)","v":"-"},{"$f":"BG166/BB167","v":0},{"$f":"BS185","v":0},"O",{"$f":"BJ166/BB166","v":0},0,{"$f":"CHOOSE(1,\"O\",\"TURN\",13,BL165,BJ166,BG166)","v":"O"},null,{"$f":"CHOOSE(1,\":\",\"TURN\",2,BL165,BM167,BM170)","v":":"},{"$f":"CHOOSE(1,\";\",\"TURN\",4,BL165,BN167,BN170)","v":";"},null,null,null,null,null,null,{"$f":"SUM(BN164,BJ167,BN167)","v":539},"\"",{"$f":"IF(BX166<>\"\",BX166-BU166,0)","v":0}]
[null,null,null,null,null,null,null,null,null,null,null,null,null,null,null,null,null,null,null,null,null,null,null,null,null,null,null,null,null,null,null,{"$f":"SUM(AL166:AL168)","v":230},"\"",null,null,{"$f":"RNSE(AL167,AO167)","v":0},{"$f":"AL167/AF167","v":0.63043478260869568},{"$f":"AH185","v":145},"\"",{"$f":"AO167/AF166","v":0.63043478260869568},145,{"$f":"CHOOSE(1,\"\"\"\",\"TURN\",15,AQ165,AO167,AL167)","v":"\""},null,null,null,null,null,null,null,null,{"$f":"SUM(AV164,AL167)","v":145},"\"",{"$f":"IF(BB167<>\"\",BB167-AY167,0)","v":0},{"$f":"SUM(BG166:BG167)","v":145},"\"",null,{"$f":"RNSE(BG167,BJ167)","v":0},{"$f":"BG167/BB167","v":1},{"$f":"BR185","v":145},"\"",{"$f":"BJ167/BB166","v":1},145,{"$f":"CHOOSE(1,\"\"\"\",\"TURN\",15,BL165,BJ167,BG167)","v":"\""},null,141,394,"raw",null,null,null,null,null,{"$f":"SUM(BQ164,BG167,BN170)","v":539},"\"",{"$f":"IF(BX167<>\"\",BX167-BU167,0)","v":0},null,null,null,null,null,null,null,null,null,null,null,null,null,null,null,null,null,null,null,null,null,null,null,null,null,null,null,null,null,null,null,null,null,null,null,null,null,null,null,null,null,null,null,null,null,null,null,null,null,null,null,null,null,null,null,null,null,null,null,null,null,null,null,null,{"$f":"CHOOSE(1,\"#\",\"LINK\",EK168,EJ168)","v":"#"}]
[null,null,null,null,null,null,null,null,null,null,null,null,null,null,null,null,null,null,null,null,null,null,null,null,null,null,null,null,null,null,null,{"$f":"IF(AC167<>\"\",AVERAGE(AF167,AC167),AF167)","v":230},"target",null,null,{"$f":"RNSE(AL168,AO168)","v":0},{"$f":"AL168/AF167","v":0.36956521739130432},{"$f":"AG185","v":85},"?",{"$f":"AO168/AF166","v":0.36956521739130432},85,{"$f":"CHOOSE(1,\"?\",\"TURN\",16,AQ165,AO168,AL168)","v":"?"},null,null,null,null,null,null,null,null,{"$f":"IF(BB167<>\"\",AVERAGE(AY167,BB167),AY167)","v":145},"target","imbal",{"$f":"IF(AY167<>\"\",AVERAGE(BB167,AY167),BB167)","v":145},"target",null,"RNSE","%","bal",null,"%","raw",null,null,{"$f":"BM167/BM176","v":0.26355140186915887},{"$f":"BN167/BM176","v":0.73644859813084107},"%",null,null,null,null,null,{"$f":"IF(BX167<>\"\",AVERAGE(BU167,BX167),BU167)","v":539},"target","imbal",null,null,null,null,null,null,null,null,null,null,null,null,null,null,null,null,null,null,null,null,null,null,null,null,null,null,null,null,null,null,null,null,null,null,null,null,null,null,null,null,null,null,null,null,null,null,null,null,null,null,null,null,null,null,null,null,null,null,null,null,null,null,null,null,{"$f":"INDEX(Freeway_Import!$H$10:$H$101, MATCH(EK168,Freeway_Import!$C$10:$C$101,0))","v":70},"LINK_4040"]
[null,null,null,null,null,null,null,null,null,null,null,null,null,null,null,null,null,null,null,null,null,null,null,null,null,null,null,null,null,null,null,null,null,null,null,"RNSE","%","bal",null,"%","raw",null,null,null,null,null,null,null,null,null,null,null,null,null,null,null,null,null,null,null,null,null,null,null,":",";"]
[null,null,null,null,null,null,null,null,null,null,null,null,null,null,null,null,null,null,null,null,null,null,null,null,null,null,null,null,null,null,null,null,null,null,null,null,null,null,null,null,null,null,null,null,null,null,null,null,null,null,null,null,null,null,null,null,null,null,null,null,null,null,null,null,{"$f":"BS183","v":141},{"$f":"BR183","v":394},"bal",null,null,null,null,null,null,null,null,null,null,null,null,null,null,null,null,null,null,null,null,null,null,null,null,null,null,null,null,null,null,null,null,null,null,null,null,null,null,null,null,null,null,null,null,null,null,null,null,null,null,null,null,null,null,null,null,null,null,null,null,null,null,null,null,null,null,null,null,null,null,null,null,null,null,null,null,{"$f":"INDEX(Freeway_Import!$H$10:$H$101, MATCH(EO171,Freeway_Import!$C$10:$C$101,0))","v":150},{"$f":"CHOOSE(1,\"\"\"\",\"LINK\",EO171,EN170)","v":"\""}]
[null,null,null,null,null,null,null,null,null,null,null,null,null,null,null,null,null,null,null,null,null,null,null,null,null,null,null,null,null,null,null,null,null,null,null,null,null,null,null,null,null,null,null,null,null,null,null,null,null,null,null,null,null,null,null,null,null,null,null,null,null,null,null,null,{"$f":"BM170/BN176","v":0.26355140186915887},{"$f":"BN170/BN176","v":0.73644859813084107},"%",null,null,null,null,null,null,null,null,null,null,null,null,null,null,null,null,null,null,null,null,null,null,null,null,null,null,null,null,null,null,null,null,null,null,null,null,null,null,null,null,null,null,{"$f":"INDEX(Freeway_Import!$H$10:$H$101, MATCH(DE172,Freeway_Import!$C$10:$C$101,0))","v":130},null,null,null,null,null,null,null,null,null,null,null,null,null,null,null,null,null,null,null,null,null,null,null,null,null,null,null,null,null,null,null,null,null,null,"LINK_3090"]
[null,null,null,null,null,null,null,null,null,null,null,null,null,null,null,null,null,null,null,null,null,null,null,null,null,null,null,null,null,null,null,null,null,null,null,null,null,null,null,null,null,null,null,null,null,null,null,null,null,null,null,null,null,null,null,null,null,null,null,null,null,null,null,null,{"$f":"RNSE(BM170,BM167)","v":0},{"$f":"RNSE(BN170,BN167)","v":0},"RNSE",null,null,null,null,null,null,null,null,null,null,null,null,null,null,null,null,null,null,null,null,null,null,null,null,null,null,null,null,null,null,null,null,null,null,null,null,null,null,null,null,null,"LINK_3060",{"$f":"CHOOSE(1,\"?\",\"LINK\",DE172,DF171)","v":"?"}]
[]
[]
[null,null,null,null,null,null,null,null,null,null,null,null,null,null,null,null,null,null,null,null,null,null,null,null,null,null,null,null,null,null,null,null,null,null,null,null,null,null,null,null,null,null,null,null,null,null,null,null,null,null,null,null,null,null,null,null,null,null,null,null,null,null,null,null,"#","#","target"]
[null,null,null,null,null,null,null,null,null,null,null,null,null,null,null,null,null,null,null,null,null,null,null,null,null,null,null,null,null,null,null,null,null,null,null,null,null,null,null,{"$f":"IF(AO179<>\"\",AO179,AO176)","v":250},{"$f":"SUM(AL168,AV163)","v":260},{"$f":"SUM(AO168,AS163)","v":260},null,null,null,null,null,null,null,null,null,null,null,null,null,null,null,null,null,null,null,null,null,null,{"$f":"SUM(BM167:BN167)","v":535},{"$f":"SUM(BM170:BN170)","v":535},{"$f":"IF(BN179<>\"\",BN179,BN176)","v":470},null,null,null,null,null,null,null,null,null,null,null,null,null,null,null,null,null,null,null,null,null,null,null,null,null,null,null,null,null,null,null,null,null,null,null,null,null,null,null,null,null,null,null,null,null,null,null,{"$f":"CHOOSE(1,\"#\",\"LINK\",DL177,DK177)","v":"#"}]
[null,null,null,null,null,null,null,null,null,null,null,null,null,null,null,null,null,null,null,null,null,null,null,null,null,null,null,null,null,null,null,null,null,null,null,null,null,null,null,"target","$","$",null,null,null,null,null,null,null,null,null,null,null,null,null,null,null,null,null,null,null,null,null,null,{"$f":"IF(BN179<>\"\",BM176-BN179,0)","v":65},{"$f":"IF(BN179<>\"\",BN176-BN179,0)","v":65},"imbal",null,null,null,null,null,null,null,null,null,null,null,null,null,null,null,null,null,null,null,null,null,null,null,null,null,null,null,null,null,null,null,null,null,null,null,null,null,null,null,null,null,null,null,null,null,null,null,{"$f":"INDEX(Freeway_Import!$H$10:$H$101, MATCH(DL177,Freeway_Import!$C$10:$C$101,0))","v":910},"LINK_3070"]
[null,null,null,null,null,null,null,null,null,null,null,null,null,null,null,null,null,null,null,null,null,null,null,null,null,null,null,null,null,null,null,null,null,null,null,null,null,null,null,"imbal",{"$f":"IF(AO179<>\"\",AO179-AO176,0)","v":-10},{"$f":"IF(AO179<>\"\",AO179-AP176,0)","v":-10},null,null,null,null,null,null,null,null,null,null,null,null,null,null,null,null,null,null,null,null,null,null,null,{"$f":"CHOOSE(1,\"#\",\"LINK\",BO179,BN179)","v":"#"}]
[null,null,null,null,null,null,null,null,null,null,null,null,null,null,null,null,null,null,null,null,null,null,null,null,null,null,null,null,null,null,null,null,null,null,null,null,null,null,null,null,{"$f":"INDEX(Freeway_Import!$H$10:$H$101, MATCH(AN180,Freeway_Import!$C$10:$C$101,0))","v":250},null,null,null,null,null,null,null,null,null,null,null,null,null,null,null,null,null,null,null,null,null,null,null,null,{"$f":"INDEX(Freeway_Import!$H$10:$H$101, MATCH(BO179,Freeway_Import!$C$10:$C$101,0))","v":470},"LINK_1080"]
[null,null,null,null,null,null,null,null,null,null,null,null,null,null,null,null,null,null,null,null,null,null,null,null,null,null,null,null,null,null,null,null,null,null,null,null,null,null,null,"LINK_2140",{"$f":"CHOOSE(1,\"$\",\"LINK\",AN180,AO179)","v":"$"},null,null,null,null,null,null,null,null,null,null,null,null,null,null,null,null,null,null,null,null,null,null,null,null,null,null,null,null,null,null,null,null,null,null,null,null,null,null,null,null,null,null,null,null,null,null,null,null,null,null,null,null,null,null,null,null,null,null,null,null,null,null,null,null,null,null,null,null,null,{"$f":"DG145-DH156+DF171","v":390}]
[null,null,null,null,null,null,null,null,null,null,null,null,null,null,null,null,null,null,null,null,null,null,null,null,null,null,null,null,null,null,null,"Local OD Estimated",null,null,null,null,null,null,null,null,null,null,null,null,null,null,null,null,null,null,null,"I-39/90/94",null,null,null,null,null,null,null,null,null,null,null,null,null,null,null,"Local OD Estimated",null,null,null,null,null,null,null,null,null,null,null,null,null,null,null,null,null,null,null,null,null,null,null,null,null,null,null,null,null,null,null,null,null,null,null,null,null,null,null,null,null,null,"$",null,null,null,"#"]
[null,null,null,null,null,null,null,null,null,null,null,null,null,null,null,null,null,null,null,null,null,null,null,null,null,null,null,null,null,null,null,{"$f":"\"local_od_est_\"&AQ165","v":"local_od_est_3"},1,2,4,"est","tgt","err",null,null,null,null,null,null,null,null,null,null,null,null,null,null,null,null,null,null,null,null,null,null,null,null,null,null,null,null,null,{"$f":"\"local_od_est_\"&BL165","v":"local_od_est_4"},1,2,4,"est","tgt","err",null,null,null,null,null,null,null,null,null,null,null,null,null,null,null,null,null,null,null,null,null,null,null,null,null,null,null,null,null,null,null,null,null,null,null,"imbal",{"$f":"IF(DG183<>\"\",DG183-DG180,0)","v":-36},{"$f":"IF(DH183<>\"\",DH183-DH180,0)","v":354},null,null,{"$f":"DK147-DK155-DK177","v":501}]
[null,null,null,null,null,null,null,null,null,null,null,null,null,null,null,null,null,null,null,null,null,null,null,null,null,null,null,null,null,null,null,1,{"$f":"AG144","v":0},0,0,{"$f":"SUM(AG183:AI183)","v":0},{"$f":"AK144","v":0},{"$f":"IFERROR(ABS(AJ183-AK183)/AK183,0)","v":0},null,null,null,null,null,null,null,null,null,null,null,null,null,null,null,null,null,null,null,null,null,null,null,null,null,null,null,null,null,1,{"$f":"BQ144","v":0},394,141,{"$f":"SUM(BQ183:BS183)","v":535},{"$f":"BU144","v":470},{"$f":"IFERROR(ABS(BT183-BU183)/BU183,0)","v":0.13829787234042554},null,null,null,null,null,null,null,null,null,null,null,null,null,null,null,null,null,null,null,null,null,null,null,null,null,null,null,null,null,null,null,null,null,null,null,{"$f":"IF(DG180<>\"\",AVERAGE(DG183,DG180),DG183)","v":372},{"$f":"SUM(DE195:DH195)","v":354},{"$f":"SUM(DE198:DH198)","v":354},null,{"$f":"IF(DJ182<>\"\",DJ182-DJ185,0)","v":0},{"$f":"IF(DK182<>\"\",DK182-DK185,0)","v":30},"imbal"]
[null,null,null,null,null,null,null,null,null,null,null,null,null,null,null,null,null,null,null,null,null,null,null,null,null,null,null,null,null,null,null,2,175,0,279,{"$f":"SUM(AG184:AI184)","v":454},{"$f":"AK145","v":459},{"$f":"IFERROR(ABS(AJ184-AK184)/AK184,0)","v":1.0893246187363835E-2},null,null,null,null,null,null,null,null,null,null,null,null,null,null,null,null,null,null,null,null,null,null,null,null,null,null,null,null,null,2,0,0,323,{"$f":"SUM(BQ184:BS184)","v":323},{"$f":"BU145","v":323},{"$f":"IFERROR(ABS(BT184-BU184)/BU184,0)","v":0},null,null,null,null,null,null,null,null,null,null,null,null,null,null,null,null,null,null,null,null,null,null,null,null,null,null,null,null,null,null,null,null,null,null,null,"target","$","$",null,"#","#","target"]
[null,null,null,null,null,null,null,null,null,null,null,null,null,null,null,null,null,null,null,null,null,null,null,null,null,null,null,null,null,null,null,4,85,145,0,{"$f":"SUM(AG185:AI185)","v":230},{"$f":"AK146","v":230},{"$f":"IFERROR(ABS(AJ185-AK185)/AK185,0)","v":0},null,null,null,null,null,null,null,null,null,null,null,null,null,null,null,null,null,null,null,null,null,null,null,null,null,null,null,null,null,4,0,145,0,{"$f":"SUM(BQ185:BS185)","v":145},{"$f":"BU146","v":145},{"$f":"IFERROR(ABS(BT185-BU185)/BU185,0)","v":0},null,null,null,null,null,null,null,null,null,null,null,null,null,null,null,null,null,null,null,null,null,null,null,null,null,null,null,null,null,null,null,null,null,null,null,null,null,null,null,{"$f":"SUM(DH198,DG202,DL202,DK196)","v":471},{"$f":"SUM(DH195,DD202,DL205,DN196)","v":471},{"$f":"IF(DK182<>\"\",AVERAGE(DK185,DK182),DK185)","v":486}]
[null,null,null,null,null,null,null,null,null,null,null,null,null,null,null,null,null,null,null,null,null,null,null,null,null,null,null,null,null,null,null,"est",{"$f":"SUM(AG183:AG185)","v":260},{"$f":"SUM(AH183:AH185)","v":145},{"$f":"SUM(AI183:AI185)","v":279},null,null,null,null,null,null,null,null,null,null,null,null,null,null,null,null,null,null,null,null,null,null,null,null,null,null,null,null,null,null,null,null,"est",{"$f":"SUM(BQ183:BQ185)","v":0},{"$f":"SUM(BR183:BR185)","v":539},{"$f":"SUM(BS183:BS185)","v":464},null,null,null,null,null,null,null,null,null,null,null,null,null,null,null,null,null,null,null,null,null,null,null,null,null,null,null,{"$f":"CHOOSE(1,DI200&\":\",\"IX_NAME\",CV186)","v":"6:"},"High Crossing Blvd & American Pkwy / Nelson Rd & US 151",null,null,null,null,null,null,null,null,null,null,null,null,null,null,null,null,null,null,null,null,null,"Local OD Raw"]
[null,null,null,null,null,null,null,null,null,null,null,null,null,null,null,null,null,null,null,null,null,null,null,null,null,null,null,null,null,null,null,"tgt",{"$f":"AG148","v":250},{"$f":"AH148","v":145},{"$f":"AI148","v":279},null,null,null,null,null,null,null,null,null,null,null,null,null,null,null,null,null,null,null,null,null,null,null,null,null,null,null,null,null,null,null,null,"tgt",{"$f":"BQ148","v":0},{"$f":"BR148","v":539},{"$f":"BS148","v":459},null,null,null,null,null,null,null,null,null,null,null,null,null,null,null,null,null,null,null,null,null,null,null,null,null,null,null,null,"Raw Count Date:","2012-05-05",null,null,null,null,null,null,null,null,null,null,null,null,null,null,null,null,null,null,null,null,{"$f":"\"local_od_raw_\"&DI200","v":"local_od_raw_6"},1,2,3,4,"est","tgt","err"]
[null,null,null,null,null,null,null,null,null,null,null,null,null,null,null,null,null,null,null,null,null,null,null,null,null,null,null,null,null,null,null,"err",{"$f":"IFERROR(ABS(AG186-AG187)/AG187,0)","v":0.04},{"$f":"IFERROR(ABS(AH186-AH187)/AH187,0)","v":0},{"$f":"IFERROR(ABS(AI186-AI187)/AI187,0)","v":0},null,null,{"$f":"SUM(AG188:AI188,AL183:AL185)","v":5.0893246187363836E-2},null,null,null,null,null,null,null,null,null,null,null,null,null,null,null,null,null,null,null,null,null,null,null,null,null,null,null,null,null,"err",{"$f":"IFERROR(ABS(BQ186-BQ187)/BQ187,0)","v":0},{"$f":"IFERROR(ABS(BR186-BR187)/BR187,0)","v":0},{"$f":"IFERROR(ABS(BS186-BS187)/BS187,0)","v":1.0893246187363835E-2},null,null,{"$f":"SUM(BQ188:BS188,BV183:BV185)","v":0.14919111852778938},null,null,null,null,null,null,null,null,null,null,null,null,null,null,null,null,null,null,null,null,null,null,null,null,null,null,null,null,null,null,null,null,null,null,null,null,null,null,null,null,null,null,null,null,null,null,null,1,{"$f":"DJ202","v":0},{"$f":"DM202","v":82},{"$f":"DL202","v":252},{"$f":"DK202","v":74},{"$f":"SUM(DS188:DV188)","v":408},{"$f":"DL217","v":408},{"$f":"IFERROR(ABS(DW188-DX188)/DX188,0)","v":0}]
[null,null,null,null,null,null,null,null,null,null,null,null,null,null,null,null,null,null,null,null,null,null,null,null,null,null,null,null,null,null,null,null,null,null,null,null,null,null,null,null,null,null,null,null,null,null,null,null,null,null,null,null,null,null,null,null,null,null,null,null,null,null,null,null,null,null,null,null,null,null,null,null,null,null,null,null,null,null,null,null,null,null,null,null,null,null,null,null,null,null,null,null,null,null,null,null,null,null,null,null,null,null,null,null,null,null,null,null,null,null,null,"American Pkwy",null,null,null,null,null,null,null,null,null,2,{"$f":"DK198","v":24},{"$f":"DK199","v":0},{"$f":"DK196","v":5},{"$f":"DK197","v":113},{"$f":"SUM(DS189:DV189)","v":142},{"$f":"DZ197","v":166},{"$f":"IFERROR(ABS(DW189-DX189)/DX189,0)","v":0.14457831325301204}]
[null,null,null,null,null,null,null,null,null,null,null,null,null,null,null,null,null,null,null,null,null,null,null,null,null,null,null,null,null,null,null,null,null,null,null,null,null,null,null,null,null,null,null,null,null,null,null,null,null,null,null,null,null,null,null,null,null,null,null,null,null,null,null,null,null,null,null,null,null,null,null,null,null,null,null,null,null,null,null,null,null,null,null,null,null,null,null,null,null,null,null,null,null,null,null,null,null,null,null,null,null,null,null,null,null,null,null,null,"",null,null,null,null,null,null,null,null,null,null,null,null,3,{"$f":"DF198","v":137},{"$f":"DG198","v":51},{"$f":"DH198","v":0},{"$f":"DE198","v":166},{"$f":"SUM(DS190:DV190)","v":354},{"$f":"DF183","v":372},4.8387096774193547E-2]
[null,null,null,null,null,null,null,null,null,null,null,null,null,null,null,null,null,null,null,null,null,null,null,null,null,null,null,null,null,null,null,null,null,null,null,null,null,null,null,null,null,null,null,null,null,null,null,null,null,null,null,null,null,null,null,null,null,null,null,null,null,null,null,null,null,null,null,null,null,null,null,null,null,null,null,null,null,null,null,null,null,null,null,null,null,null,null,null,null,null,null,null,null,null,null,null,null,null,null,null,null,null,null,null,null,null,null,null,null,null,null,null,null,null,null,null,null,null,null,null,null,4,{"$f":"DG204","v":41},{"$f":"DG203","v":100},{"$f":"DG202","v":214},{"$f":"DG201","v":0},{"$f":"SUM(DS191:DV191)","v":355},{"$f":"CR203","v":355},0]
[null,null,null,null,null,null,null,null,null,null,null,null,null,null,null,null,null,null,null,null,null,null,null,null,null,null,null,null,null,null,null,null,null,null,null,null,null,null,null,null,null,null,null,null,null,null,null,null,null,null,null,null,null,null,null,null,null,null,null,null,null,null,null,null,null,null,null,null,null,null,null,null,null,null,null,null,null,null,null,null,null,null,null,null,null,null,null,null,null,null,null,null,null,null,null,null,null,null,null,null,null,null,null,null,null,null,null,null,null,null,null,null,null,null,null,null,null,null,null,null,null,"est",{"$f":"SUM(DS188:DS191)","v":202},{"$f":"SUM(DT188:DT191)","v":233},{"$f":"SUM(DU188:DU191)","v":471},{"$f":"SUM(DV188:DV191)","v":353}]
[null,null,null,null,null,null,null,null,null,null,null,null,null,null,null,null,null,null,null,null,null,null,null,null,null,null,null,null,null,null,null,null,null,null,null,null,null,null,null,null,null,null,null,null,null,null,null,null,null,null,null,null,null,null,null,null,null,null,null,null,null,null,null,null,null,null,null,null,null,null,null,null,null,null,null,null,null,null,null,null,null,null,null,null,null,null,null,null,null,null,null,null,null,null,null,null,null,null,null,null,null,null,null,null,null,null,null,"RNSE",{"$f":"RNSE(DE195,DE198)","v":0},{"$f":"RNSE(DF195,DF198)","v":0},0,"-",null,null,null,null,null,null,null,null,null,"tgt",{"$f":"DF215","v":202},{"$f":"DX203","v":226.5},{"$f":"DL185","v":486},{"$f":"CT197","v":353}]
[null,null,null,null,null,null,null,null,null,null,null,null,null,null,null,null,null,null,null,null,null,null,null,null,null,null,null,null,null,null,null,null,null,null,null,null,null,null,null,null,null,null,null,null,null,null,null,null,null,null,null,null,null,null,null,null,null,null,null,null,null,null,null,null,null,null,null,null,null,null,null,null,null,null,null,null,null,null,null,null,null,null,null,null,null,null,null,null,null,null,null,null,null,null,null,null,null,null,null,null,null,null,null,null,null,null,null,"%",{"$f":"DE195/DG183","v":0.46892655367231639},{"$f":"DF195/DG183","v":0.38700564971751411},{"$f":"DG195/DG183","v":0.1440677966101695},{"$f":"DH195/DG183","v":0},null,null,null,null,null,null,null,null,null,"err",{"$f":"IFERROR(ABS(DS192-DS193)/DS193,0)","v":0},{"$f":"IFERROR(ABS(DT192-DT193)/DT193,0)","v":2.8697571743929361E-2},3.0864197530864196E-2,0,null,null,{"$f":"SUM(DS194:DV194,DY188:DY191)","v":0.25252717930199914}]
[null,null,null,null,null,null,null,null,null,null,null,null,null,null,null,null,null,null,null,null,null,null,null,null,null,null,null,null,null,null,null,null,null,null,null,null,null,null,null,null,null,null,null,null,null,null,null,null,null,null,null,null,null,null,null,null,null,null,null,null,null,null,null,null,null,null,null,null,null,null,null,null,null,null,null,null,null,null,null,null,null,null,null,null,null,null,null,null,null,null,null,null,null,null,null,null,null,null,null,null,null,null,null,null,null,null,null,"bal",{"$f":"DV209","v":166},{"$f":"DS209","v":137},{"$f":"DT209","v":51},{"$f":"DU209","v":0},null,null,"raw","%",null,"bal","%","RNSE"]
[null,null,null,null,null,null,null,null,null,null,null,null,null,null,null,null,null,null,null,null,null,null,null,null,null,null,null,null,null,null,null,null,null,null,null,null,null,null,null,null,null,null,null,null,null,null,null,null,null,null,null,null,null,null,null,null,null,null,null,null,null,null,null,null,null,null,null,null,null,null,null,null,null,null,null,null,null,null,null,null,null,null,null,null,null,null,null,null,null,null,null,null,null,null,null,null,null,null,null,null,null,null,null,null,null,null,null,null,8,"$",9,"M",null,{"$f":"CHOOSE(1,\"<\",\"TURN\",8,DI200,DK196,DN196)","v":"<"},5,{"$f":"DK196/DZ199","v":3.5211267605633804E-2},"<",{"$f":"DU208","v":5},{"$f":"DN196/DZ198","v":3.5211267605633804E-2},{"$f":"RNSE(DN196,DK196)","v":0},null,null,""]
[null,null,null,null,null,null,null,null,null,null,null,null,null,null,null,null,null,null,null,null,null,null,null,null,null,null,null,null,null,null,null,null,null,null,null,null,null,null,null,null,null,null,null,null,null,null,null,null,null,null,null,null,null,null,null,null,null,null,null,null,null,null,null,null,null,null,null,null,null,null,null,null,null,null,null,null,null,null,null,null,null,null,null,null,null,null,null,null,null,null,null,null,null,null,null,"imbal","target",{"$f":"IF(CQ198<>\"\",AVERAGE(CT198,CQ198),CT198)","v":353},null,null,null,null,null,null,null,null,null,"%",{"$f":"DE198/DH183","v":0.46892655367231639},{"$f":"DF198/DH183","v":0.38700564971751411},{"$f":"DG198/DH183","v":0.1440677966101695},{"$f":"DH198/DH183","v":0},null,{"$f":"CHOOSE(1,\"!\",\"TURN\",7,DI200,DK197,DN197)","v":"!"},113,{"$f":"DK197/DZ199","v":0.79577464788732399},"!",{"$f":"DV208","v":113},{"$f":"DN197/DZ198","v":0.79577464788732399},{"$f":"RNSE(DN197,DK197)","v":0},null,null,null,null,null,null,null,null,"target",{"$f":"IF(EC198<>\"\",AVERAGE(DZ198,EC198),DZ198)","v":166},"imbal",null,"LINK_4030"]
[null,null,null,null,null,null,null,null,null,null,null,null,null,null,null,null,null,null,null,null,null,null,null,null,null,null,null,null,null,null,null,null,null,null,null,null,null,null,null,null,null,null,null,null,null,null,null,null,null,null,null,null,null,null,null,null,null,null,null,null,null,null,null,null,null,null,null,null,null,null,null,null,null,null,null,null,null,null,null,null,null,null,null,null,null,null,null,null,null,null,null,null,null,null,null,{"$f":"IF(CQ198<>\"\",CQ198-CT198,0)","v":0},"!",{"$f":"SUM(DD201,DK205,DN197,DE195)","v":353},null,null,null,null,null,null,null,null,null,"raw",166,137,51,0,null,{"$f":"CHOOSE(1,\">\",\"TURN\",6,DI200,DK198,DN198)","v":">"},24,{"$f":"DK198/DZ199","v":0.16901408450704225},">",{"$f":"DS208","v":24},{"$f":"DN198/DZ198","v":0.16901408450704225},0,null,null,null,null,null,null,null,null,"!",{"$f":"SUM(DN196:DN199)","v":142},{"$f":"IF(EC198<>\"\",DZ198-EC198,0)","v":-48},{"$f":"CHOOSE(1,\"!\",\"LINK\",EC197,EC198)","v":"!"},{"$f":"INDEX(Freeway_Import!$H$10:$H$101, MATCH(EC197,Freeway_Import!$C$10:$C$101,0))","v":190}]
[null,null,null,null,null,null,null,null,null,null,null,null,null,null,null,null,null,null,null,null,null,null,null,null,null,null,null,null,null,null,null,null,null,null,null,null,null,null,null,null,null,null,null,null,null,null,null,null,null,null,null,null,null,null,null,null,null,null,null,null,null,null,null,null,null,null,null,null,null,null,null,null,null,null,null,null,null,null,null,null,null,null,null,null,null,null,null,null,null,null,null,null,null,null,null,{"$f":"IF(CQ199<>\"\",CQ199-CT199,0)","v":0},"!",{"$f":"SUM(DG201,DK202,DK197,DE198)","v":353},null,null,null,null,null,null,null,null,null,null,{"$f":"CHOOSE(1,8,\"TURN\",12,DI200,DE198,DE195)","v":8},{"$f":"CHOOSE(1,\"$\",\"TURN\",11,DI200,DF198,DF195)","v":"$"},{"$f":"CHOOSE(1,\"9\",\"TURN\",10,DI200,DG198,DG195)","v":"9"},{"$f":"CHOOSE(1,\"M\",\"TURN\",9,DI200,DH198,DH195)","v":"M"},null,{"$f":"CHOOSE(1,\"N\",\"TURN\",5,DI200,DK199,DN199)","v":"N"},0,{"$f":"DK199/DZ199","v":0},"N",{"$f":"DT208","v":0},{"$f":"DN199/DZ198","v":0},"-",null,null,null,null,null,null,null,null,"!",{"$f":"SUM(DK196:DK199)","v":142},{"$f":"IF(EC198<>\"\",DZ199-EC198,0)","v":-48}]
[null,null,null,null,null,null,null,null,null,null,null,null,null,null,null,null,null,null,null,null,null,null,null,null,null,null,null,null,null,null,null,null,null,null,null,null,null,null,null,null,null,null,null,null,null,null,null,null,null,null,null,null,null,null,null,null,null,null,null,null,null,null,null,null,null,null,null,null,null,null,null,null,null,null,null,null,null,null,null,null,null,null,null,null,null,null,null,null,null,null,null,null,null,null,null,null,null,null,null,null,null,null,null,null,null,null,null,null,null,null,null,null,6]
[null,null,null,null,null,null,null,null,null,null,null,null,null,null,null,null,null,null,null,null,null,null,null,null,null,null,null,null,null,null,null,null,null,null,null,null,null,null,null,null,null,null,null,null,null,null,null,null,null,null,null,null,null,null,null,null,null,null,null,null,null,null,null,null,null,null,null,null,null,null,null,null,null,null,null,null,null,null,null,null,null,null,null,null,null,null,null,null,null,null,null,null,null,null,null,{"$f":"SUM(DG201:DG204)","v":355},"\"",null,null,null,null,null,null,"High Crossing Blvd",null,{"$f":"RNSE(DD201,DG201)","v":"-"},{"$f":"DD201/CR202","v":0},{"$f":"DV210","v":0},"O",{"$f":"DG201/CR201","v":0},0,{"$f":"CHOOSE(1,\"O\",\"TURN\",13,DI200,DG201,DD201)","v":"O"},null,{"$f":"CHOOSE(1,\"L\",\"TURN\",1,DI200,DJ202,DJ205)","v":"L"},{"$f":"CHOOSE(1,\":\",\"TURN\",2,DI200,DK202,DK205)","v":":"},{"$f":"CHOOSE(1,\"#\",\"TURN\",3,DI200,DL202,DL205)","v":"#"},{"$f":"CHOOSE(1,\";\",\"TURN\",4,DI200,DM202,DM205)","v":";"},null,null,null,null,null,null,null,"US 151 Ramps",null,null,{"$f":"SUM(DK199,DG198,DG203,DM202)","v":233},"\"",{"$f":"IF(EA201<>\"\",EA201-DX201,0)","v":0}]
[null,null,null,null,null,null,null,null,null,null,null,null,null,null,null,null,null,null,null,null,null,null,null,null,null,null,null,null,null,null,null,null,null,null,null,null,null,null,null,null,null,null,null,null,null,null,null,null,null,null,null,null,null,null,null,null,null,null,null,null,null,null,null,null,null,null,null,null,null,null,null,null,null,null,null,null,null,null,null,null,null,null,null,null,null,null,null,null,null,null,null,null,null,null,null,{"$f":"SUM(DD201:DD204)","v":355},"\"",null,null,null,null,null,null,null,null,0,{"$f":"DD202/CR202","v":0.60281690140845068},{"$f":"DU210","v":214},"=",{"$f":"DG202/CR201","v":0.60281690140845068},214,{"$f":"CHOOSE(1,\"=\",\"TURN\",14,DI200,DG202,DD202)","v":"="},null,0,74,252,82,"raw",null,null,null,null,null,null,null,null,null,{"$f":"SUM(DN199,DG195,DD203,DM205)","v":233},"\"",{"$f":"IF(EA202<>\"\",EA202-DX202,0)","v":-13},{"$f":"SUM(EJ168,EN170)","v":220},"\""]
[null,null,null,null,null,null,null,null,null,null,null,null,null,null,null,null,null,null,null,null,null,null,null,null,null,null,null,null,null,null,null,null,null,null,null,null,null,null,null,null,null,null,null,null,null,null,null,null,null,null,null,null,null,null,null,null,null,null,null,null,null,null,null,null,null,null,null,null,null,null,null,null,null,null,null,null,null,null,null,null,null,null,null,null,null,null,null,null,null,null,null,null,null,null,null,{"$f":"IF(CO202<>\"\",AVERAGE(CR202,CO202),CR202)","v":355},"target",null,null,null,null,null,null,null,null,0,{"$f":"DD203/CR202","v":0.28169014084507044},{"$f":"DT210","v":100},"\"",{"$f":"DG203/CR201","v":0.28169014084507044},100,{"$f":"CHOOSE(1,\"\"\"\",\"TURN\",15,DI200,DG203,DD203)","v":"\""},null,{"$f":"DJ202/DJ217","v":0},{"$f":"DK202/DJ217","v":0.18137254901960784},{"$f":"DL202/DJ217","v":0.61764705882352944},{"$f":"DM202/DJ217","v":0.20098039215686275},"%",null,null,null,null,null,null,null,null,null,{"$f":"IF(EA202<>\"\",AVERAGE(DX202,EA202),DX202)","v":226.5},"target","imbal",{"$f":"SUM(EJ168,EN170)","v":220},"target"]
[null,null,null,null,null,null,null,null,null,null,null,null,null,null,null,null,null,null,null,null,null,null,null,null,null,null,null,null,null,null,null,null,null,null,null,null,null,null,null,null,null,null,null,null,null,null,null,null,null,null,null,null,null,null,null,null,null,null,null,null,null,null,null,null,null,null,null,null,null,null,null,null,null,null,null,null,null,null,null,null,null,null,null,null,null,null,null,null,null,null,null,null,null,null,null,null,null,null,null,null,null,null,"",null,null,0,{"$f":"DD204/CR202","v":0.11549295774647887},{"$f":"DS210","v":41},"?",{"$f":"DG204/CR201","v":0.11549295774647887},41,{"$f":"CHOOSE(1,\"?\",\"TURN\",16,DI200,DG204,DD204)","v":"?"},null,"L",":","#",";"]
[null,null,null,null,null,null,null,null,null,null,null,null,null,null,null,null,null,null,null,null,null,null,null,null,null,null,null,null,null,null,null,null,null,null,null,null,null,null,null,null,null,null,null,null,null,null,null,null,null,null,null,null,null,null,null,null,null,null,null,null,null,null,null,null,null,null,null,null,null,null,null,null,null,null,null,null,null,null,null,null,null,null,null,null,null,null,null,null,null,null,null,null,null,null,null,null,null,null,null,null,null,null,null,null,null,"RNSE","%","bal",null,"%","raw",null,null,{"$f":"DS207","v":0},{"$f":"DV207","v":74},{"$f":"DU207","v":252},{"$f":"DT207","v":82},"bal",null,null,null,"Local OD Estimated"]
[null,null,null,null,null,null,null,null,null,null,null,null,null,null,null,null,null,null,null,null,null,null,null,null,null,null,null,null,null,null,null,null,null,null,null,null,null,null,null,null,null,null,null,null,null,null,null,null,null,null,null,null,null,null,null,null,null,null,null,null,null,null,null,null,null,null,null,null,null,null,null,null,null,null,null,null,null,null,null,null,null,null,null,null,null,null,null,null,null,null,null,null,null,null,null,null,null,null,null,null,null,null,null,null,null,null,null,null,null,null,null,null,null,{"$f":"DJ205/DK217","v":0},{"$f":"DK205/DK217","v":0.18137254901960784},{"$f":"DL205/DK217","v":0.61764705882352944},{"$f":"DM205/DK217","v":0.20098039215686275},"%",null,null,null,{"$f":"\"local_od_est_\"&DI200","v":"local_od_est_6"},1,2,3,4,"est","tgt","err"]
[null,null,null,null,null,null,null,null,null,null,null,null,null,null,null,null,null,null,null,null,null,null,null,null,null,null,null,null,null,null,null,null,null,null,null,null,null,null,null,null,null,null,null,null,null,null,null,null,null,null,null,null,null,null,null,null,null,null,null,null,null,null,null,null,null,null,null,null,null,null,null,null,null,null,null,null,null,null,null,null,null,null,null,null,null,null,null,null,null,null,null,null,null,null,null,null,null,null,null,null,null,null,null,null,null,null,null,null,null,null,null,null,null,{"$f":"RNSE(DJ205,DJ202)","v":"-"},0,0,0,"RNSE",null,null,null,1,{"$f":"DS188","v":0},82,252,74,{"$f":"SUM(DS207:DV207)","v":408},{"$f":"DX188","v":408},{"$f":"IFERROR(ABS(DW207-DX207)/DX207,0)","v":0}]
[null,null,null,null,null,null,null,null,null,null,null,null,null,null,null,null,null,null,null,null,null,null,null,null,null,null,null,null,null,null,null,null,null,null,null,null,null,null,null,null,null,null,null,null,null,null,null,null,null,null,null,null,null,null,null,null,null,null,null,null,null,null,null,null,null,null,null,null,null,null,null,null,null,null,null,null,null,null,null,null,null,null,null,null,null,null,null,null,null,null,null,null,null,null,null,null,null,null,null,null,null,null,null,null,null,null,null,null,null,null,null,null,null,null,null,null,null,null,null,null,null,2,24,0,5,113,{"$f":"SUM(DS208:DV208)","v":142},166,{"$f":"IFERROR(ABS(DW208-DX208)/DX208,0)","v":0.14457831325301204}]
[null,null,null,null,null,null,null,null,null,null,null,null,null,null,null,null,null,null,null,null,null,null,null,null,null,null,null,null,null,null,null,null,null,null,null,null,null,null,null,null,null,null,null,null,null,null,null,null,null,null,null,null,null,null,null,null,null,null,null,null,null,null,null,null,null,null,null,null,null,null,null,null,null,null,null,null,null,null,null,null,null,null,null,null,null,null,null,null,null,null,null,null,null,null,null,null,null,null,null,null,null,null,null,null,null,null,null,null,null,null,null,null,null,null,null,null,null,null,null,null,null,3,137,51,0,166,354,372,4.8387096774193547E-2]
[null,null,null,null,null,null,null,null,null,null,null,null,null,null,null,null,null,null,null,null,null,null,null,null,null,null,null,null,null,null,null,null,null,null,null,null,null,null,null,null,null,null,null,null,null,null,null,null,null,null,null,null,null,null,null,null,null,null,null,null,null,null,null,null,null,null,null,null,null,null,null,null,null,null,null,null,null,null,null,null,null,null,null,null,null,null,null,null,null,null,null,null,null,null,null,null,null,null,null,null,null,null,null,null,null,null,null,null,null,null,null,null,null,null,null,null,"",null,null,null,null,4,41,100,214,0,355,355,0]
[null,null,null,null,null,null,null,null,null,null,null,null,null,null,null,null,null,null,null,null,null,null,null,null,null,null,null,null,null,null,null,null,null,null,null,null,null,null,null,null,null,null,null,null,null,null,null,null,null,null,null,"I-39/90/94",null,null,null,null,null,null,null,null,null,null,null,null,null,null,null,null,null,null,null,null,null,null,null,null,null,null,null,null,null,null,null,null,null,null,null,null,null,null,null,null,null,null,null,null,null,null,null,null,null,null,null,null,null,null,null,null,null,null,null,"Nelson Rd",null,null,null,null,null,null,null,null,null,"est",{"$f":"SUM(DS207:DS210)","v":202},{"$f":"SUM(DT207:DT210)","v":233},471,353]
[null,null,null,null,null,null,null,null,null,null,null,null,null,null,null,null,null,null,null,null,null,null,null,null,null,null,null,null,null,null,null,null,null,null,null,null,null,null,null,null,null,null,null,null,null,null,null,null,null,null,null,null,null,null,null,null,null,null,null,null,null,null,null,null,null,null,null,null,null,null,null,null,null,null,null,null,null,null,null,null,null,null,null,null,null,null,null,null,null,null,null,null,null,null,null,null,null,null,null,null,null,null,null,null,null,null,null,null,null,null,null,null,null,null,null,null,null,null,null,null,null,"tgt",{"$f":"DS193","v":202},226.5,486,353]
[null,null,null,null,null,null,null,null,null,null,null,null,null,null,null,null,null,null,null,null,null,null,null,null,null,null,null,null,null,null,null,null,null,null,null,null,null,null,null,null,null,null,null,null,null,null,null,null,null,null,null,null,null,null,null,null,null,null,null,null,null,null,null,null,null,null,null,null,null,null,null,null,null,null,null,null,null,null,null,null,null,null,null,null,null,null,null,null,null,null,null,null,null,null,null,null,null,null,null,null,null,null,null,null,null,null,null,null,null,null,null,null,null,null,null,null,null,null,null,null,null,"err",{"$f":"IFERROR(ABS(DS211-DS212)/DS212,0)","v":0},{"$f":"IFERROR(ABS(DT211-DT212)/DT212,0)","v":2.8697571743929361E-2},3.0864197530864196E-2,0,null,null,{"$f":"SUM(DS213:DV213,DY207:DY210)","v":0.25252717930199914}]
[]
[null,null,null,null,null,null,null,null,null,null,null,null,null,null,null,null,null,null,null,null,null,null,null,null,null,null,null,null,null,null,null,null,null,null,null,null,null,null,null,null,null,null,null,null,null,null,null,null,null,null,null,null,null,null,null,null,null,null,null,null,null,null,null,null,null,null,null,null,null,null,null,null,null,null,null,null,null,null,null,null,null,null,null,null,null,null,null,null,null,null,null,null,null,null,null,null,null,null,null,null,null,null,null,null,null,null,null,null,null,{"$f":"IF(DG218<>\"\",AVERAGE(DG215,DG218),DG215)","v":202},{"$f":"SUM(DJ205,DN198,DF195,DD204)","v":202},{"$f":"SUM(DJ202,DK198,DF198,DG204)","v":202}]
[null,null,null,null,null,null,null,null,null,null,null,null,null,null,null,null,null,null,null,null,null,null,null,null,null,null,null,null,null,null,null,null,null,null,null,null,null,null,null,null,null,null,null,null,null,null,null,null,null,null,null,null,null,null,null,null,null,null,null,null,null,null,null,null,null,null,null,null,null,null,null,null,null,null,null,null,null,null,null,null,null,null,null,null,null,null,null,null,null,null,null,null,null,null,null,null,null,null,null,null,null,null,null,null,null,null,null,null,null,"target","$","$",null,"#","#","target"]
[null,null,null,null,null,null,null,null,null,null,null,null,null,null,null,null,null,null,null,null,null,null,null,null,null,null,null,null,null,null,null,null,null,null,null,null,null,null,null,null,null,null,null,null,null,null,null,null,null,null,null,null,null,null,null,null,null,null,null,null,null,null,null,null,null,null,null,null,null,null,null,null,null,null,null,null,null,null,null,null,null,null,null,null,null,null,null,null,null,null,null,null,null,null,null,null,null,null,null,null,null,null,null,null,null,null,null,null,null,"imbal",{"$f":"IF(DG218<>\"\",DG218-DG215,0)","v":0},{"$f":"IF(DH218<>\"\",DH218-DH215,0)","v":0},null,{"$f":"SUM(DJ202:DM202)","v":408},{"$f":"SUM(DJ205:DM205)","v":408},{"$f":"IF(DK220<>\"\",AVERAGE(DK217,DK220),DK217)","v":408}]
[]
[]
[]
[]
[]
[]
[]
[]
[]
[]
[]
[]
[]
[]
[]
[]
[]
[]
[]
[]
[]
[]
[]
[]
[]
[]
[]
[null,null,null,null,null,null,null,null,null,null,null,null,null,null,null,null,null,null,null,null,null,null,null,null,null,null,null,null,null,null,null,null,null,null,null,null,null,null,null,null,null,null,null,null,null,null,null,null,null,null,null,null,null,null,{"$f":"IF(BD242<>\"\",AVERAGE(BD245,BD242),BD245)","v":847},{"$f":"SUM(BC257:BE257)","v":847},{"$f":"SUM(BC260:BE260)","v":847},null,{"$f":"IF(BG244<>\"\",BG244-BG247,0)","v":0},{"$f":"IF(BH244<>\"\",BH244-BH247,0)","v":0},"imbal",null,null,null,null,null,null,null,null,null,null,null,null,null,null,null,null,null,null,null,null,null,null,null,null,null,null,null,null,null,null,null,null,null,null,null,null,null,null,null,null,null,null,null,null,null,null,{"$f":"IF(DE242<>\"\",AVERAGE(DE245,DE242),DE245)","v":556},{"$f":"SUM(DC257:DF257)","v":556},{"$f":"SUM(DC260:DF260)","v":556},null,{"$f":"IF(DH244<>\"\",DH244-DH247,0)","v":0},{"$f":"IF(DI244<>\"\",DI244-DI247,0)","v":0},"imbal"]
[null,null,null,null,null,null,null,null,null,null,null,null,null,null,null,null,null,null,null,null,null,null,null,null,null,null,null,null,null,null,null,null,null,null,null,null,null,null,null,null,null,null,null,null,null,null,null,null,null,null,null,null,null,null,"target","$","$",null,"#","#","target",null,null,null,null,null,null,null,null,null,null,null,null,null,null,null,null,null,null,null,null,null,null,null,null,null,null,null,null,null,null,null,null,null,null,null,null,null,null,null,null,null,null,null,null,null,null,"target","$","$",null,"#","#","target"]
[null,null,null,null,null,null,null,null,null,null,null,null,null,null,null,null,null,null,null,null,null,null,null,null,null,null,null,null,null,null,null,null,null,null,null,null,null,null,null,null,null,null,null,null,null,null,null,null,null,null,null,null,null,null,null,null,null,null,{"$f":"SUM(BE260,BI264,BH259)","v":1053},{"$f":"SUM(BE257,BI267,BK259)","v":1053},{"$f":"IF(BH244<>\"\",AVERAGE(BH247,BH244),BH247)","v":1053},null,null,null,null,null,null,null,null,null,null,null,null,null,null,null,null,null,null,null,null,null,null,null,null,null,null,null,null,null,null,null,null,null,null,null,null,null,null,null,null,null,null,null,null,null,null,null,null,null,null,{"$f":"SUM(DF260,DE264,DJ264,DI258)","v":216},{"$f":"SUM(DF257,DB264,DJ267,DL258)","v":216},{"$f":"IF(DI244<>\"\",AVERAGE(DI247,DI244),DI247)","v":216}]
[null,null,null,null,null,null,null,null,null,null,null,null,null,null,null,null,null,null,null,null,null,null,null,null,null,null,null,null,null,null,null,null,null,null,null,null,null,null,null,null,null,null,null,{"$f":"CHOOSE(1,BF262&\":\",\"IX_NAME\",AS248)","v":"7:"},"US 51 & WB WIS 30 Ramps",null,null,null,null,null,null,null,null,null,null,null,null,null,null,null,null,null,null,null,null,null,"Local OD Raw",null,null,null,null,null,null,null,null,"Local OD Estimated",null,null,null,null,null,null,null,null,null,null,null,null,null,null,null,null,null,null,null,null,{"$f":"CHOOSE(1,DG262&\":\",\"IX_NAME\",CT248)","v":"9:"},"Thompson Dr & WB WIS 30 On-Ramp",null,null,null,null,null,null,null,null,null,null,null,null,null,null,null,null,null,null,null,null,null,"Local OD Raw"]
[null,null,null,null,null,null,null,null,null,null,null,null,null,null,null,null,null,null,null,null,null,null,null,null,null,null,null,null,null,null,null,null,null,null,null,null,null,null,null,null,null,null,null,null,"Raw Count Date:","2012-07-18",null,null,null,null,null,null,null,null,null,null,null,null,null,null,null,null,null,null,null,null,{"$f":"\"local_od_raw_\"&BF262","v":"local_od_raw_7"},1,2,3,4,"est","tgt","err",null,{"$f":"\"local_od_est_\"&BF262","v":"local_od_est_7"},1,2,3,4,"est","tgt","err",null,null,null,null,null,null,null,null,null,null,null,null,null,null,"Raw Count Date:","2013-05-02",null,null,null,null,null,null,null,null,null,null,null,null,null,null,null,null,null,null,null,null,{"$f":"\"local_od_raw_\"&DG262","v":"local_od_raw_9"},1,2,3,4,"est","tgt","err"]
[null,null,null,null,null,null,null,null,null,null,null,null,null,null,null,null,null,null,null,null,null,null,null,null,null,null,null,null,null,null,null,null,null,null,null,null,null,null,null,null,null,null,null,null,null,null,null,null,null,null,null,null,null,null,null,null,null,null,null,null,null,null,null,null,null,null,1,{"$f":"BG264","v":0},0,{"$f":"BI264","v":710},{"$f":"BH264","v":472},{"$f":"SUM(BP250:BS250)","v":1182},{"$f":"BI279","v":1182},{"$f":"IFERROR(ABS(BT250-BU250)/BU250,0)","v":0},null,1,{"$f":"BP250","v":0},0,710,472,{"$f":"SUM(BY250:CB250)","v":1182},{"$f":"BU250","v":1182},{"$f":"IFERROR(ABS(CC250-CD250)/CD250,0)","v":0},null,null,null,null,null,null,null,null,null,null,null,null,null,null,null,null,null,null,null,null,null,null,null,null,null,null,null,null,null,null,null,null,null,null,null,null,1,{"$f":"DH264","v":0},{"$f":"DK264","v":153},{"$f":"DJ264","v":213},{"$f":"DI264","v":195},{"$f":"SUM(DQ250:DT250)","v":561},{"$f":"DJ279","v":543.5},{"$f":"IFERROR(ABS(DU250-DV250)/DV250,0)","v":3.219871205151794E-2}]
[null,null,null,null,null,null,null,null,null,null,null,null,null,null,null,null,null,null,null,null,null,null,null,null,null,null,null,null,null,null,null,null,null,null,null,null,null,null,null,null,null,null,null,null,null,null,null,null,null,null,null,null,null,null,null,null,"US 51",null,null,null,null,null,null,null,null,null,2,{"$f":"BH261","v":868},0,{"$f":"BH259","v":343},{"$f":"BH260","v":0},{"$f":"SUM(BP251:BS251)","v":1211},{"$f":"BQ262","v":1320},{"$f":"IFERROR(ABS(BT251-BU251)/BU251,0)","v":8.257575757575758E-2},null,2,868,0,343,0,{"$f":"SUM(BY251:CB251)","v":1211},{"$f":"BU251","v":1320},{"$f":"IFERROR(ABS(CC251-CD251)/CD251,0)","v":8.257575757575758E-2},null,null,null,null,null,null,null,null,null,null,null,null,null,null,null,null,null,null,null,null,null,null,null,null,null,null,"Thompson Dr",null,null,null,null,null,null,null,null,null,2,{"$f":"DI260","v":47},{"$f":"DI261","v":0},{"$f":"DI258","v":3},{"$f":"DI259","v":454},{"$f":"SUM(DQ251:DT251)","v":504},{"$f":"DX259","v":504},{"$f":"IFERROR(ABS(DU251-DV251)/DV251,0)","v":0}]
[null,null,null,null,null,null,null,null,null,null,null,null,null,null,null,null,null,null,null,null,null,null,null,null,null,null,null,null,null,null,null,null,null,null,null,null,null,null,null,null,null,null,null,null,null,null,null,null,null,null,null,null,null,"",null,null,null,null,null,null,null,null,null,null,null,null,3,{"$f":"BD260","v":813},0,{"$f":"BE260","v":0},{"$f":"BC260","v":34},{"$f":"SUM(BP252:BS252)","v":847},{"$f":"BC245","v":847},0,null,3,813,0,0,34,847,{"$f":"BU252","v":847},0,null,null,null,null,null,null,null,null,null,null,null,null,null,null,null,null,null,null,null,null,null,null,null,"",null,null,null,null,null,null,null,null,null,null,null,null,3,{"$f":"DD260","v":103},{"$f":"DE260","v":5},{"$f":"DF260","v":0},{"$f":"DC260","v":448},{"$f":"SUM(DQ252:DT252)","v":556},{"$f":"DD245","v":556},0]
[null,null,null,null,null,null,null,null,null,null,null,null,null,null,null,null,null,null,null,null,null,null,null,null,null,null,null,null,null,null,null,null,null,null,null,null,null,null,null,null,null,null,null,null,null,null,null,null,null,null,null,null,null,null,null,null,null,null,null,null,null,null,null,null,null,null,4,0,0,0,0,{"$f":"SUM(BP253:BS253)","v":0},0,0,null,4,0,0,0,0,0,{"$f":"BU253","v":0},0,null,null,null,null,null,null,null,null,null,null,null,null,null,null,null,null,null,null,null,null,null,null,null,null,null,null,null,null,null,null,null,null,null,null,null,null,4,{"$f":"DE266","v":0},{"$f":"DE265","v":0},{"$f":"DE264","v":0},{"$f":"DE263","v":0},{"$f":"SUM(DQ253:DT253)","v":0},{"$f":"CP265","v":0},0]
[null,null,null,null,null,null,null,null,null,null,null,null,null,null,null,null,null,null,null,null,null,null,null,null,null,null,null,null,null,null,null,null,null,null,null,null,null,null,null,null,null,null,null,null,null,null,null,null,null,null,null,null,null,null,null,null,null,null,null,null,null,null,null,null,null,null,"est",{"$f":"SUM(BP250:BP253)","v":1681},{"$f":"SUM(BQ250:BQ253)","v":0},{"$f":"SUM(BR250:BR253)","v":1053},{"$f":"SUM(BS250:BS253)","v":506},null,null,null,null,"est",{"$f":"SUM(BY250:BY253)","v":1681},{"$f":"SUM(BZ250:BZ253)","v":0},1053,506,null,null,null,null,null,null,null,null,null,null,null,null,null,null,null,null,null,null,null,null,null,null,null,null,null,null,null,null,null,null,null,null,null,null,null,null,null,null,null,"est",{"$f":"SUM(DQ250:DQ253)","v":150},{"$f":"SUM(DR250:DR253)","v":158},{"$f":"SUM(DS250:DS253)","v":216},{"$f":"SUM(DT250:DT253)","v":1097}]
[null,null,null,null,null,null,null,null,null,null,null,null,null,null,null,null,null,null,null,null,null,null,null,null,null,null,null,null,null,null,null,null,null,null,null,null,null,null,null,null,null,null,null,null,null,null,null,null,null,null,null,null,null,"RNSE",{"$f":"RNSE(BC257,BC260)","v":0},{"$f":"RNSE(BD257,BD260)","v":0},{"$f":"RNSE(BE257,BE260)","v":"-"},null,null,null,null,null,null,null,null,null,"tgt",{"$f":"BC277","v":1681},0,{"$f":"BI247","v":1053},{"$f":"AW262","v":550},null,null,null,null,"tgt",{"$f":"BP255","v":1681},{"$f":"BQ255","v":0},{"$f":"BR255","v":1053},{"$f":"BS255","v":550},null,null,null,null,null,null,null,null,null,null,null,null,null,null,null,null,null,null,null,null,null,null,null,null,null,"RNSE",{"$f":"RNSE(DC257,DC260)","v":0},{"$f":"RNSE(DD257,DD260)","v":0},0,"-",null,null,null,null,null,null,null,null,null,"tgt",{"$f":"DD277","v":157.5},{"$f":"DV265","v":158},{"$f":"DJ247","v":216},{"$f":"CR259","v":1103.5}]
[null,null,null,null,null,null,null,null,null,null,null,null,null,null,null,null,null,null,null,null,null,null,null,null,null,null,null,null,null,null,null,null,null,null,null,null,null,null,null,null,null,null,null,null,null,null,null,null,null,null,null,null,null,"%",{"$f":"BC257/BD245","v":4.0141676505312869E-2},{"$f":"BD257/BD245","v":0.95985832349468714},{"$f":"BE257/BD245","v":0},null,null,null,null,null,null,null,null,null,"err",{"$f":"IFERROR(ABS(BP254-BP255)/BP255,0)","v":0},{"$f":"IFERROR(ABS(BQ254-BQ255)/BQ255,0)","v":0},0,0.08,null,null,{"$f":"SUM(BP256:BS256,BV250:BV253)","v":0.1625757575757576},null,"err",{"$f":"IFERROR(ABS(BY254-BY255)/BY255,0)","v":0},{"$f":"IFERROR(ABS(BZ254-BZ255)/BZ255,0)","v":0},0,0.08,null,null,{"$f":"SUM(BY256:CB256,CE250:CE253)","v":0.1625757575757576},null,null,null,null,null,null,null,null,null,null,null,null,null,null,null,null,null,null,null,null,null,null,"%",{"$f":"DC257/DE245","v":0.80575539568345322},{"$f":"DD257/DE245","v":0.18525179856115107},{"$f":"DE257/DE245","v":8.9928057553956831E-3},{"$f":"DF257/DE245","v":0},null,null,null,null,null,null,null,null,null,"err",{"$f":"IFERROR(ABS(DQ254-DQ255)/DQ255,0)","v":4.7619047619047616E-2},{"$f":"IFERROR(ABS(DR254-DR255)/DR255,0)","v":0},0,5.8903488898957865E-3,null,null,{"$f":"SUM(DQ256:DT256,DW250:DW253)","v":8.5708108560461349E-2}]
[null,null,null,null,null,null,null,null,null,null,null,null,null,null,null,null,null,null,null,null,null,null,null,null,null,null,null,null,null,null,null,null,null,null,null,null,null,null,null,null,null,null,null,null,null,null,null,null,null,null,null,null,null,"bal",{"$f":"CB252","v":34},{"$f":"BY252","v":813},{"$f":"CA252","v":0},null,null,null,null,null,null,null,null,null,null,null,null,null,null,null,null,null,null,null,null,null,null,null,null,null,null,null,null,null,null,null,null,null,null,null,null,null,null,null,null,null,null,null,null,null,null,null,null,"bal",{"$f":"DT271","v":448},{"$f":"DQ271","v":103},{"$f":"DR271","v":5},{"$f":"DS271","v":0},null,null,"raw","%",null,"bal","%","RNSE"]
[null,null,null,null,null,null,null,null,null,null,null,null,null,null,null,null,null,null,null,null,null,null,null,null,null,null,null,null,null,null,null,null,null,null,null,null,null,null,null,null,null,null,null,null,null,null,null,null,null,null,null,null,null,null,8,"$","M",null,null,"raw","%",null,"bal","%","RNSE",null,null,"",null,null,null,null,null,null,null,null,null,null,null,null,null,null,null,null,null,null,null,null,null,null,null,"WB WIS 30 On-Ramp",null,null,null,null,null,null,null,null,null,null,null,null,null,null,8,"$",9,"M",null,{"$f":"CHOOSE(1,\"<\",\"TURN\",8,DG262,DI258,DL258)","v":"<"},3,{"$f":"DI258/DX261","v":5.9523809523809521E-3},"<",{"$f":"DS270","v":3},{"$f":"DL258/DX260","v":5.9523809523809521E-3},{"$f":"RNSE(DL258,DI258)","v":0},null,null,""]
[null,null,null,null,null,null,null,null,null,null,null,null,null,null,null,null,null,null,null,null,null,null,null,null,null,null,null,null,null,null,null,null,null,null,null,null,null,null,null,null,null,null,null,null,null,null,null,null,null,null,null,null,null,"%",{"$f":"BC260/BE245","v":4.0141676505312869E-2},{"$f":"BD260/BE245","v":0.95985832349468714},{"$f":"BE260/BE245","v":0},null,{"$f":"CHOOSE(1,\"<\",\"TURN\",8,BF262,BH259,BK259)","v":"<"},343,{"$f":"BH259/BQ264","v":0.2832369942196532},"<",{"$f":"CA251","v":343},{"$f":"BK259/BQ263","v":0.2832369942196532},{"$f":"RNSE(BK259,BH259)","v":0},null,null,null,null,null,null,null,null,null,null,null,null,null,null,null,null,null,null,null,null,null,null,null,null,null,null,"LINK_6070",null,"imbal","target",{"$f":"IF(CO260<>\"\",AVERAGE(CR260,CO260),CR260)","v":1103.5},null,null,null,null,null,null,null,null,null,"%",{"$f":"DC260/DF245","v":0.80575539568345322},{"$f":"DD260/DF245","v":0.18525179856115107},{"$f":"DE260/DF245","v":8.9928057553956831E-3},{"$f":"DF260/DF245","v":0},null,{"$f":"CHOOSE(1,\"!\",\"TURN\",7,DG262,DI259,DL259)","v":"!"},454,{"$f":"DI259/DX261","v":0.90079365079365081},"!",{"$f":"DT270","v":454},{"$f":"DL259/DX260","v":0.90079365079365081},{"$f":"RNSE(DL259,DI259)","v":0},null,null,null,null,null,null,null,null,"target",{"$f":"IF(EA260<>\"\",AVERAGE(DX260,EA260),DX260)","v":504}]
[null,null,null,null,null,null,null,null,null,null,null,null,null,null,null,null,null,null,null,null,null,null,null,null,null,null,null,null,null,null,null,null,null,null,null,null,null,null,null,null,null,null,null,null,null,null,null,null,null,null,null,null,null,"raw",34,813,0,null,{"$f":"CHOOSE(1,\"!\",\"TURN\",7,BF262,BH260,BK260)","v":"!"},0,{"$f":"BH260/BQ264","v":0},"!",{"$f":"CB251","v":0},{"$f":"BK260/BQ263","v":0},{"$f":"RNSE(BK260,BH260)","v":"-"},null,null,null,null,null,null,null,null,null,null,null,null,null,null,null,null,null,null,null,null,null,null,null,null,null,null,{"$f":"CHOOSE(1,\"!\",\"LINK\",CN259,CO260)","v":"!"},{"$f":"INDEX(Freeway_Import!$H$10:$H$101, MATCH(CN259,Freeway_Import!$C$10:$C$101,0))","v":1110},{"$f":"IF(CO260<>\"\",CO260-CR260,0)","v":13},"!",{"$f":"SUM(DB263,DI267,DL259,DC257)","v":1097},null,null,null,null,null,null,null,null,null,"raw",448,103,5,0,null,{"$f":"CHOOSE(1,\">\",\"TURN\",6,DG262,DI260,DL260)","v":">"},47,{"$f":"DI260/DX261","v":9.3253968253968256E-2},">",{"$f":"DQ270","v":47},{"$f":"DL260/DX260","v":9.3253968253968256E-2},0,null,null,null,null,null,null,null,null,"!",{"$f":"SUM(DL258:DL261)","v":504}]
[null,null,null,null,null,null,null,null,null,null,null,null,null,null,null,null,null,null,null,null,null,null,null,null,null,null,null,null,null,null,null,null,null,null,null,null,null,null,null,null,null,null,null,null,null,null,null,null,null,null,null,null,null,null,{"$f":"CHOOSE(1,8,\"TURN\",12,BF262,BC260,BC257)","v":8},{"$f":"CHOOSE(1,\"$\",\"TURN\",11,BF262,BD260,BD257)","v":"$"},{"$f":"CHOOSE(1,\"M\",\"TURN\",9,BF262,BE260,BE257)","v":"M"},null,{"$f":"CHOOSE(1,\">\",\"TURN\",6,BF262,BH261,BK261)","v":">"},868,{"$f":"BH261/BQ264","v":0.7167630057803468},">",{"$f":"BY251","v":868},{"$f":"BK261/BQ263","v":0.7167630057803468},{"$f":"RNSE(BK261,BH261)","v":0},null,null,null,null,null,null,null,null,null,null,null,null,null,null,null,null,null,null,null,null,null,null,null,null,null,null,null,null,{"$f":"IF(CO261<>\"\",CO261-CR261,0)","v":0},"!",{"$f":"SUM(DE263,DI264,DI259,DC260)","v":1097},null,null,null,null,null,null,null,null,null,null,{"$f":"CHOOSE(1,8,\"TURN\",12,DG262,DC260,DC257)","v":8},{"$f":"CHOOSE(1,\"$\",\"TURN\",11,DG262,DD260,DD257)","v":"$"},{"$f":"CHOOSE(1,\"9\",\"TURN\",10,DG262,DE260,DE257)","v":"9"},{"$f":"CHOOSE(1,\"M\",\"TURN\",9,DG262,DF260,DF257)","v":"M"},null,{"$f":"CHOOSE(1,\"N\",\"TURN\",5,DG262,DI261,DL261)","v":"N"},0,{"$f":"DI261/DX261","v":0},"N",{"$f":"DR270","v":0},{"$f":"DL261/DX260","v":0},"-",null,null,null,null,null,null,null,null,"!",{"$f":"SUM(DI258:DI261)","v":504}]
[null,null,null,null,null,null,null,null,null,null,null,null,null,null,null,null,null,null,null,null,null,null,null,null,null,null,null,null,null,null,null,null,null,null,null,null,null,null,null,null,null,null,null,null,"LINK_6100",null,"imbal","target",{"$f":"IF(AT263<>\"\",AT263,AW263)","v":550},null,null,null,null,null,null,null,null,7,null,null,null,null,null,null,null,null,null,"target",{"$f":"IF(BT263<>\"\",BT263,BQ263)","v":1320},"imbal",null,"LINK_6090",null,null,null,null,null,null,null,null,null,null,null,null,null,null,null,null,null,null,null,null,null,null,null,null,null,null,null,null,null,null,null,null,null,null,null,null,null,null,9]
[null,null,null,null,null,null,null,null,null,null,null,null,null,null,null,null,null,null,null,null,null,null,null,null,null,null,null,null,null,null,null,null,null,null,null,null,null,null,null,null,null,null,null,null,{"$f":"CHOOSE(1,\"!\",\"LINK\",AS262,AT263)","v":"!"},{"$f":"INDEX(Freeway_Import!$H$10:$H$101, MATCH(AS262,Freeway_Import!$C$10:$C$101,0))","v":550},{"$f":"IF(AT263<>\"\",AT263-AW263,0)","v":44},"!",{"$f":"SUM(BH267,BC257,BK260)","v":506},null,null,null,null,null,null,null,null,null,{"$f":"CHOOSE(1,\"L\",\"TURN\",1,BF262,BG264,BG267)","v":"L"},{"$f":"CHOOSE(1,\":\",\"TURN\",2,BF262,BH264,BH267)","v":":"},{"$f":"CHOOSE(1,\"#\",\"TURN\",3,BF262,BI264,BI267)","v":"#"},null,null,null,null,null,null,"!",{"$f":"SUM(BK259:BK261)","v":1211},{"$f":"IF(BT263<>\"\",BQ263-BT263,0)","v":-109},{"$f":"CHOOSE(1,\"!\",\"LINK\",BT262,BT263)","v":"!"},{"$f":"INDEX(Freeway_Import!$H$10:$H$101, MATCH(BT262,Freeway_Import!$C$10:$C$101,0))","v":1320},null,null,null,null,null,null,null,null,null,null,null,null,null,null,null,null,null,null,null,null,null,{"$f":"SUM(DE263:DE266)","v":0},"\"",null,null,null,null,null,null,null,null,{"$f":"RNSE(DB263,DE263)","v":"-"},{"$f":"DB263/CP264","v":{"$error":"#DIV/0!"}},{"$f":"DT272","v":0},"O",{"$f":"DE263/CP263","v":{"$error":"#DIV/0!"}},0,{"$f":"CHOOSE(1,\"O\",\"TURN\",13,DG262,DE263,DB263)","v":"O"},null,{"$f":"CHOOSE(1,\"L\",\"TURN\",1,DG262,DH264,DH267)","v":"L"},{"$f":"CHOOSE(1,\":\",\"TURN\",2,DG262,DI264,DI267)","v":":"},{"$f":"CHOOSE(1,\"#\",\"TURN\",3,DG262,DJ264,DJ267)","v":"#"},{"$f":"CHOOSE(1,\";\",\"TURN\",4,DG262,DK264,DK267)","v":";"},null,null,null,null,null,"Commercial Ave",null,null,null,null,{"$f":"SUM(DI261,DE260,DE265,DK264)","v":158},"\"",{"$f":"IF(DY263<>\"\",DY263-DV263,0)","v":0}]
[null,null,null,null,null,null,null,null,null,null,null,null,null,null,null,null,null,null,null,null,null,null,null,null,null,null,null,null,null,null,null,null,null,null,null,null,null,null,null,null,null,null,null,null,null,null,{"$f":"IF(AT263<>\"\",AT263-AW264,0)","v":44},"!",{"$f":"SUM(BH264,BC260,BH260)","v":506},null,null,null,null,null,null,null,null,null,0,472,710,"raw",null,null,null,null,null,"!",{"$f":"SUM(BH259:BH261)","v":1211},{"$f":"IF(BT263<>\"\",BQ264-BT263,0)","v":-109},null,null,null,null,null,null,null,null,null,null,null,null,null,null,null,null,null,null,null,null,null,null,null,{"$f":"SUM(DB263:DB266)","v":0},"\"","From Pully Dr (not Included)",null,null,null,null,null,null,null,"-",{"$f":"DB264/CP264","v":{"$error":"#DIV/0!"}},{"$f":"DS272","v":0},"=",{"$f":"DE264/CP263","v":{"$error":"#DIV/0!"}},0,{"$f":"CHOOSE(1,\"=\",\"TURN\",14,DG262,DE264,DB264)","v":"="},null,0,195,213,153,"raw",null,null,null,null,null,null,null,null,null,{"$f":"SUM(DL261,DE257,DB265,DK267)","v":158},"\"",{"$f":"IF(DY264<>\"\",DY264-DV264,0)","v":0}]
[null,null,null,null,null,null,null,null,null,null,null,null,null,null,null,null,null,null,null,null,null,null,null,null,null,null,null,null,null,null,null,null,null,null,null,null,null,null,null,null,null,null,null,null,null,null,null,null,null,null,null,null,null,null,null,null,null,null,{"$f":"BG264/BG279","v":0},{"$f":"BH264/BG279","v":0.39932318104906939},{"$f":"BI264/BG279","v":0.60067681895093061},"%",null,null,null,null,null,null,null,null,null,null,null,null,null,null,null,null,null,null,null,null,null,null,null,null,null,null,null,null,null,null,null,{"$f":"IF(CM264<>\"\",AVERAGE(CP264,CM264),CP264)","v":0},"target",null,null,null,null,null,null,null,null,"-",{"$f":"DB265/CP264","v":{"$error":"#DIV/0!"}},{"$f":"DR272","v":0},"\"",{"$f":"DE265/CP263","v":{"$error":"#DIV/0!"}},0,{"$f":"CHOOSE(1,\"\"\"\",\"TURN\",15,DG262,DE265,DB265)","v":"\""},null,{"$f":"DH264/DH279","v":0},{"$f":"DI264/DH279","v":0.34759358288770054},{"$f":"DJ264/DH279","v":0.37967914438502676},{"$f":"DK264/DH279","v":0.27272727272727271},"%",null,null,null,null,null,null,null,null,null,{"$f":"IF(DY264<>\"\",AVERAGE(DV264,DY264),DV264)","v":158},"target","imbal"]
[null,null,null,null,null,null,null,null,null,null,null,null,null,null,null,null,null,null,null,null,null,null,null,null,null,null,null,null,null,null,null,null,null,null,null,null,null,null,null,null,null,null,null,null,null,null,null,"",null,null,null,null,null,null,null,null,null,null,"L",":","#",null,null,null,null,null,null,null,null,null,null,null,null,null,null,null,null,null,null,null,null,null,null,null,null,null,null,null,null,null,null,null,null,null,null,null,null,null,null,null,"",null,null,"-",{"$f":"DB266/CP264","v":{"$error":"#DIV/0!"}},{"$f":"DQ272","v":0},"?",{"$f":"DE266/CP263","v":{"$error":"#DIV/0!"}},0,{"$f":"CHOOSE(1,\"?\",\"TURN\",16,DG262,DE266,DB266)","v":"?"},null,"L",":","#",";"]
[null,null,null,null,null,null,null,null,null,null,null,null,null,null,null,null,null,null,null,null,null,null,null,null,null,null,null,null,null,null,null,null,null,null,null,null,null,null,null,null,null,null,null,null,null,null,null,null,null,null,null,null,null,null,null,null,null,null,{"$f":"BY250","v":0},{"$f":"CB250","v":472},{"$f":"CA250","v":710},"bal",null,null,null,null,null,null,null,null,null,null,null,null,null,null,null,null,null,null,null,null,null,null,null,null,null,null,null,null,null,null,null,null,null,null,null,null,null,null,null,null,null,"RNSE","%","bal",null,"%","raw",null,null,{"$f":"DQ269","v":0},{"$f":"DT269","v":195},{"$f":"DS269","v":213},{"$f":"DR269","v":153},"bal",null,null,null,"Local OD Estimated"]
[null,null,null,null,null,null,null,null,null,null,null,null,null,null,null,null,null,null,null,null,null,null,null,null,null,null,null,null,null,null,null,null,null,null,null,null,null,null,null,null,null,null,null,null,null,null,null,null,null,null,null,null,null,null,null,null,null,null,{"$f":"BG267/BH279","v":0},{"$f":"BH267/BH279","v":0.39932318104906939},{"$f":"BI267/BH279","v":0.60067681895093061},"%",null,null,null,null,null,null,null,null,null,null,null,null,null,null,null,null,null,null,null,null,null,null,null,null,null,null,null,null,null,null,null,null,null,null,null,null,null,null,null,null,null,null,null,null,null,null,null,null,null,{"$f":"DH267/DI279","v":0},{"$f":"DI267/DI279","v":0.34759358288770054},{"$f":"DJ267/DI279","v":0.37967914438502676},{"$f":"DK267/DI279","v":0.27272727272727271},"%",null,null,null,{"$f":"\"local_od_est_\"&DG262","v":"local_od_est_9"},1,2,3,4,"est","tgt","err"]
[null,null,null,null,null,null,null,null,null,null,null,null,null,null,null,null,null,null,null,null,null,null,null,null,null,null,null,null,null,null,null,null,null,null,null,null,null,null,null,null,null,null,null,null,null,null,null,null,null,null,null,null,null,null,null,null,null,null,{"$f":"RNSE(BG267,BG264)","v":"-"},0,0,"RNSE",null,null,null,null,null,null,null,null,null,null,null,null,null,null,null,null,null,null,null,null,null,null,null,null,null,null,null,null,null,null,null,null,null,null,null,null,null,null,null,null,null,null,null,null,null,null,null,null,null,{"$f":"RNSE(DH267,DH264)","v":"-"},0,0,0,"RNSE",null,null,null,1,{"$f":"DQ250","v":0},153,213,195,{"$f":"SUM(DQ269:DT269)","v":561},{"$f":"DV250","v":543.5},{"$f":"IFERROR(ABS(DU269-DV269)/DV269,0)","v":3.219871205151794E-2}]
[null,null,null,null,null,null,null,null,null,null,null,null,null,null,null,null,null,null,null,null,null,null,null,null,null,null,null,null,null,null,null,null,null,null,null,null,null,null,null,null,null,null,null,null,null,null,null,null,null,null,null,null,null,null,null,null,null,null,null,null,null,null,null,null,null,null,null,null,null,null,null,null,null,null,null,null,null,null,null,null,null,null,null,null,null,null,null,null,null,null,null,null,null,null,null,null,null,null,null,null,null,null,null,null,null,null,null,null,null,null,null,null,null,null,null,null,null,null,null,2,47,0,3,454,{"$f":"SUM(DQ270:DT270)","v":504},504,{"$f":"IFERROR(ABS(DU270-DV270)/DV270,0)","v":0}]
[null,null,null,null,null,null,null,null,null,null,null,null,null,null,null,null,null,null,null,null,null,null,null,null,null,null,null,null,null,null,null,null,null,null,null,null,null,null,null,null,null,null,null,null,null,null,null,null,null,null,null,null,null,null,null,null,null,null,null,null,null,null,null,null,null,null,null,null,null,null,null,null,null,null,null,null,null,null,null,null,null,null,null,null,null,null,null,null,null,null,null,null,null,null,null,null,null,null,null,null,null,null,null,null,null,null,null,null,null,null,null,null,null,null,null,null,null,null,null,3,103,5,0,448,556,556,0]
[null,null,null,null,null,null,null,null,null,null,null,null,null,null,null,null,null,null,null,null,null,null,null,null,null,null,null,null,null,null,null,null,null,null,null,null,null,null,null,null,null,null,null,null,null,null,null,null,null,null,null,null,null,null,null,null,null,null,null,null,null,"",null,null,null,null,null,null,null,null,null,null,null,null,null,null,null,null,null,null,null,null,null,null,null,null,null,null,null,null,null,null,null,null,null,null,null,null,null,null,null,null,null,null,null,null,null,null,null,null,null,null,null,null,"",null,null,null,null,4,0,0,0,0,0,0,0]
[null,null,null,null,null,null,null,null,null,null,null,null,null,null,null,null,null,null,null,null,null,null,null,null,null,null,null,null,null,null,null,null,null,null,null,null,null,null,null,null,null,null,null,null,null,null,null,null,null,null,null,null,null,null,null,null,null,null,null,null,null,null,null,null,null,null,null,null,null,null,null,null,null,null,null,null,null,null,null,null,null,null,null,null,null,null,null,null,null,null,null,null,null,null,null,null,null,null,null,null,null,null,null,null,null,null,null,null,null,null,null,null,null,null,null,null,null,null,null,"est",{"$f":"SUM(DQ269:DQ272)","v":150},{"$f":"SUM(DR269:DR272)","v":158},216,1097]
[null,null,null,null,null,null,null,null,null,null,null,null,null,null,null,null,null,null,null,null,null,null,null,null,null,null,null,null,null,null,null,null,null,null,null,null,null,null,null,null,null,null,null,null,null,null,null,null,null,null,null,null,null,null,null,null,null,null,null,null,null,null,null,null,null,null,null,null,null,null,null,null,null,null,null,null,null,null,null,null,null,null,null,null,null,null,null,null,null,null,null,null,null,null,null,null,null,null,null,null,null,null,null,null,null,null,null,null,null,null,null,null,null,null,null,null,null,null,null,"tgt",{"$f":"DQ255","v":157.5},158,216,1103.5]
[null,null,null,null,null,null,null,null,null,null,null,null,null,null,null,null,null,null,null,null,null,null,null,null,null,null,null,null,null,null,null,null,null,null,null,null,null,null,null,null,null,null,null,null,null,null,null,null,null,null,null,null,null,null,null,null,null,null,null,null,null,null,null,null,null,null,null,null,null,null,null,null,null,null,null,null,null,null,null,null,null,null,null,null,null,null,null,null,null,null,null,null,null,null,null,null,null,null,null,null,null,null,null,null,null,null,null,null,null,null,null,null,null,null,null,null,null,null,null,"err",{"$f":"IFERROR(ABS(DQ273-DQ274)/DQ274,0)","v":4.7619047619047616E-2},{"$f":"IFERROR(ABS(DR273-DR274)/DR274,0)","v":0},0,5.8903488898957865E-3,null,null,{"$f":"SUM(DQ275:DT275,DW269:DW272)","v":8.5708108560461349E-2}]
[]
[null,null,null,null,null,null,null,null,null,null,null,null,null,null,null,null,null,null,null,null,null,null,null,null,null,null,null,null,null,null,null,null,null,null,null,null,null,null,null,null,null,null,null,null,null,null,null,null,null,null,null,null,null,null,{"$f":"IF(BD280<>\"\",AVERAGE(BD277,BD280),BD277)","v":1681},{"$f":"SUM(BG267,BK261,BD257,BA266)","v":1681},{"$f":"SUM(BG264,BH261,BD260,BD266)","v":1681},null,null,null,null,null,null,null,null,null,null,null,null,null,null,null,null,null,null,null,null,null,null,null,null,null,null,null,null,null,null,null,null,null,null,null,null,null,null,null,null,null,null,null,null,null,null,null,null,null,null,{"$f":"IF(DE280<>\"\",AVERAGE(DE277,DE280),DE277)","v":157.5},{"$f":"SUM(DH267,DB266,DD257,DL260)","v":150},{"$f":"SUM(DH264,DE266,DD260,DI260)","v":150}]
[null,null,null,null,null,null,null,null,null,null,null,null,null,null,null,null,null,null,null,null,null,null,null,null,null,null,null,null,null,null,null,null,null,null,null,null,null,null,null,null,null,null,null,null,null,null,"WIS 30",null,null,null,null,null,null,null,"target","$","$",null,"#","#","target",null,null,null,null,"WIS 30",null,null,null,null,null,null,null,null,null,null,null,null,null,null,null,null,null,null,null,null,null,null,null,null,null,null,null,null,null,null,null,null,null,null,null,null,null,"WIS 30",null,null,null,"target","$","$",null,"#","#","target",null,null,null,null,null,null,null,null,null,null,null,null,null,"WIS 30"]
[null,null,null,null,null,null,null,null,null,null,null,null,null,null,null,null,null,null,null,null,null,null,null,null,null,null,null,null,null,null,null,null,null,null,null,null,null,null,null,null,null,null,null,null,null,null,null,null,null,null,null,null,null,null,"imbal",{"$f":"IF(BD280<>\"\",BD280-BD277,0)","v":0},{"$f":"IF(BE280<>\"\",BE280-BE277,0)","v":0},null,{"$f":"SUM(BG264:BJ264)","v":1182},{"$f":"SUM(BG267:BJ267)","v":1182},{"$f":"IF(BH282<>\"\",AVERAGE(BH279,BH282),BH279)","v":1182},null,null,null,null,null,null,null,null,null,null,null,null,null,null,null,null,null,null,null,null,null,null,null,null,null,null,null,null,null,null,null,null,null,null,null,null,null,null,null,null,null,null,null,null,null,null,"imbal",{"$f":"IF(DE280<>\"\",DE280-DE277,0)","v":15},{"$f":"IF(DF280<>\"\",DF280-DF277,0)","v":15},null,{"$f":"SUM(DH264:DK264)","v":561},{"$f":"SUM(DH267:DK267)","v":561},{"$f":"IF(DI282<>\"\",AVERAGE(DI279,DI282),DI279)","v":543.5}]
[null,null,null,null,null,null,null,null,null,null,null,null,null,null,null,null,null,null,null,null,null,null,null,null,null,null,null,null,null,null,null,null,null,null,null,null,null,null,null,null,null,null,null,null,null,null,null,null,null,null,null,null,null,null,{"$f":"IF(BD277<>\"\",AVERAGE(BD280,BD277),BD280)","v":1681},{"$f":"SUM(BB292:BE292)","v":1681},{"$f":"SUM(BB295:BE295)","v":1681},null,{"$f":"IF(BG279<>\"\",BG279-BG282,0)","v":0},{"$f":"IF(BH279<>\"\",BH279-BH282,0)","v":0},"imbal",null,null,null,null,null,null,null,null,null,null,null,null,null,null,null,null,null,null,null,null,null,null,null,null,null,null,null,null,null,null,null,null,null,null,null,null,null,null,null,null,null,null,null,null,null,null,{"$f":"IF(DE277<>\"\",AVERAGE(DE280,DE277),DE280)","v":157.5},{"$f":"SUM(DE292:DF292)","v":165},{"$f":"SUM(DE295:DF295)","v":165},null,{"$f":"IF(DH279<>\"\",DH279-DH282,0)","v":35},{"$f":"IF(DI279<>\"\",DI279-DI282,0)","v":35},"imbal"]
[null,null,null,null,null,null,null,null,null,null,null,null,null,null,null,null,null,null,null,null,null,null,null,null,null,null,null,null,null,null,null,null,null,null,null,null,null,null,null,null,null,null,null,null,null,null,null,null,null,null,null,null,null,null,"target","$","$",null,"#","#","target",null,null,null,null,null,null,null,null,null,null,null,null,null,null,null,null,null,null,null,null,null,null,null,null,null,null,null,null,null,null,null,null,null,null,null,null,null,null,null,null,null,null,null,null,null,null,"target","$","$",null,"#","#","target"]
[null,null,null,null,null,null,null,null,null,null,null,null,null,null,null,null,null,null,null,null,null,null,null,null,null,null,null,null,null,null,null,null,null,null,null,null,null,null,null,null,null,null,null,null,null,null,null,null,null,null,null,null,null,null,null,null,null,null,{"$f":"SUM(BE295,BD298,BH299,BH293)","v":1182},{"$f":"SUM(BE292,BA298,BH302,BK293)","v":1182},{"$f":"IF(BH279<>\"\",AVERAGE(BH282,BH279),BH282)","v":1182},null,null,null,null,null,null,null,null,null,null,null,null,null,null,null,null,null,null,null,null,null,null,null,null,null,null,null,null,null,null,null,null,null,null,null,null,null,null,null,null,null,null,null,null,null,null,null,null,null,null,{"$f":"SUM(DF295,DE298,DI299)","v":526},{"$f":"SUM(DF292,DB298,DI302)","v":526},{"$f":"IF(DI279<>\"\",AVERAGE(DI282,DI279),DI282)","v":543.5}]
[]
[]
[]
[]
[null,null,null,null,null,null,null,null,null,null,null,null,null,null,null,null,null,null,null,null,null,null,null,null,null,null,null,null,null,null,null,null,null,null,null,null,null,null,null,null,null,null,null,null,null,null,null,null,null,null,null,null,null,"",null,null,null,null,null,null,null,null,null,null,null,null,null,null,null,null,null,null,null,null,null,null,null,null,null,null,null,null,null,null,null,null,null,null,null,null,null,null,null,null,null,null,null,null,null,null,null,null,null,null,null,null,""]
[]
[]
[null,null,null,null,null,null,null,null,null,null,null,null,null,null,null,null,null,null,null,null,null,null,null,null,null,null,null,null,null,null,null,null,null,null,null,null,null,null,null,null,null,null,null,null,null,null,null,null,null,null,null,null,null,"RNSE",{"$f":"RNSE(BC292,BC295)","v":0},0,"-",null,null,null,null,null,null,null,null,null,null,null,null,null,null,null,null,null,null,null,null,null,null,null,null,null,null,null,null,null,null,null,null,null,null,null,null,null,null,null,null,null,null,null,null,null,null,null,null,null,null,"RNSE",{"$f":"RNSE(DE292,DE295)","v":0},{"$f":"RNSE(DF292,DF295)","v":"-"}]
[null,null,null,null,null,null,null,null,null,null,null,null,null,null,null,null,null,null,null,null,null,null,null,null,null,null,null,null,null,null,null,null,null,null,null,null,null,null,null,null,null,null,null,null,null,null,null,null,null,null,null,null,null,"%",{"$f":"BC292/BD280","v":0.93634741225461038},{"$f":"BD292/BD280","v":6.3652587745389649E-2},{"$f":"BE292/BD280","v":0},null,null,null,null,null,null,null,null,null,null,null,null,null,null,null,null,null,null,null,null,null,null,null,null,null,null,null,null,null,null,null,null,null,null,null,null,null,null,null,null,null,null,null,null,null,null,null,null,null,null,"%",{"$f":"DE292/DE280","v":1},{"$f":"DF292/DE280","v":0}]
[null,null,null,null,null,null,null,null,null,null,null,null,null,null,null,null,null,null,null,null,null,null,null,null,null,null,null,null,null,null,null,null,null,null,null,null,null,null,null,null,null,null,null,null,null,null,null,null,null,null,null,null,null,"bal",{"$f":"BY307","v":1574},{"$f":"BZ307","v":107},{"$f":"CA307","v":0},null,null,null,null,null,null,null,null,null,null,null,null,null,null,null,null,null,null,null,null,null,null,null,null,null,null,null,null,null,null,null,null,null,null,null,null,null,null,null,null,null,null,null,null,null,null,null,null,null,null,"bal",{"$f":"DZ306","v":165},{"$f":"EA306","v":0}]
[null,null,null,null,null,null,null,null,null,null,null,null,null,null,null,null,null,null,null,null,null,null,null,null,null,null,null,null,null,null,null,null,null,null,null,null,null,null,null,null,null,null,null,null,null,null,null,null,null,null,null,null,null,null,"$",9,"M",null,null,null,null,null,null,null,null,null,null,"",null,null,null,null,null,null,null,null,null,null,null,null,null,null,null,null,null,null,null,null,null,null,null,null,null,null,null,null,null,null,null,null,null,null,null,null,null,null,null,null,"$","M",null,null,null,null,null,null,null,null,null,null,""]
[null,null,null,null,null,null,null,null,null,null,null,null,null,null,null,null,null,null,null,null,null,null,null,null,null,null,null,null,null,null,null,null,null,null,null,null,null,null,null,null,null,null,null,null,null,null,null,null,null,null,null,null,null,"%",{"$f":"BC295/BE280","v":0.93634741225461038},{"$f":"BD295/BE280","v":6.3652587745389649E-2},{"$f":"BE295/BE280","v":0},null,null,null,null,null,null,null,null,null,null,null,null,null,null,null,null,null,null,null,null,null,null,null,null,null,null,null,null,null,null,null,null,null,null,null,null,null,null,null,null,null,null,null,null,null,null,null,null,null,null,"%",{"$f":"DE295/DF280","v":1},{"$f":"DF295/DF280","v":0}]
[null,null,null,null,null,null,null,null,null,null,null,null,null,null,null,null,null,null,null,null,null,null,null,null,null,null,null,null,null,null,null,null,null,null,null,null,null,null,null,null,null,null,null,null,null,null,null,null,null,null,null,null,null,"raw",1574,107,0,null,null,null,null,null,null,null,null,null,null,null,null,null,null,null,null,null,null,null,null,null,null,null,null,null,null,null,null,null,null,null,null,null,null,null,null,null,null,null,null,null,null,null,null,null,null,null,null,null,null,"raw",165,0]
[null,null,null,null,null,null,null,null,null,null,null,null,null,null,null,null,null,null,null,null,null,null,null,null,null,null,null,null,null,null,null,null,null,null,null,null,null,null,null,null,null,null,null,null,null,null,null,null,null,null,null,null,null,null,{"$f":"CHOOSE(1,\"$\",\"TURN\",11,BF297,BC295,BC292)","v":"$"},{"$f":"CHOOSE(1,\"9\",\"TURN\",10,BF297,BD295,BD292)","v":"9"},{"$f":"CHOOSE(1,\"M\",\"TURN\",9,BF297,BE295,BE292)","v":"M"},null,null,null,null,null,null,null,null,{"$f":"SUM(BD299,BD295,BI299)","v":459},"\"",{"$f":"IF(BQ297<>\"\",BQ297-BN296,0)","v":41},null,null,null,null,null,null,null,null,null,null,null,null,null,null,null,null,null,null,null,null,null,null,null,null,null,null,null,null,null,null,null,null,null,null,null,null,null,null,null,null,{"$f":"CHOOSE(1,\"$\",\"TURN\",11,DG297,DE295,DE292)","v":"$"},{"$f":"CHOOSE(1,\"M\",\"TURN\",9,DG297,DF295,DF292)","v":"M"}]
[null,null,null,null,null,null,null,null,null,null,null,null,null,null,null,null,null,null,null,null,null,null,null,null,null,null,null,null,null,null,null,null,null,null,null,null,null,null,null,null,null,null,null,null,null,null,null,null,null,null,null,null,null,null,null,null,null,8,null,null,null,null,null,null,null,{"$f":"SUM(BA299,BD292,BI302)","v":459},"\"",{"$f":"IF(BQ297<>\"\",BQ297-BN297,0)","v":41},{"$f":"INDEX(Freeway_Import!$H$10:$H$101, MATCH(BR298,Freeway_Import!$C$10:$C$101,0))","v":500},{"$f":"CHOOSE(1,\"\"\"\",\"LINK\",BR298,BQ297)","v":"\""},null,null,null,null,null,null,null,null,null,null,null,null,null,null,null,null,null,null,null,null,null,null,null,null,null,null,null,null,null,null,null,null,null,null,null,null,null,null,null,null,10]
[null,null,null,null,null,null,null,null,null,null,null,null,null,null,null,null,null,null,null,null,null,null,null,null,null,null,null,null,null,null,null,null,null,null,null,null,null,null,null,null,null,null,null,null,null,null,{"$f":"IF(AV298<>\"\",AV298-AS298,0)","v":619},{"$f":"SUM(BD298:BD300)","v":619},"\"",null,{"$f":"RNSE(BA298,BD298)","v":0},{"$f":"BA298/AV299","v":5.9773828756058162E-2},{"$f":"CA308","v":37},"=",{"$f":"BD298/AV298","v":5.9773828756058162E-2},37,{"$f":"CHOOSE(1,\"=\",\"TURN\",14,BF297,BD298,BA298)","v":"="},null,{"$f":"CHOOSE(1,\"L\",\"TURN\",1,BF297,BG299,BG302)","v":"L"},{"$f":"CHOOSE(1,\"#\",\"TURN\",3,BF297,BH299,BH302)","v":"#"},{"$f":"CHOOSE(1,\";\",\"TURN\",4,BF297,BI299,BI302)","v":";"},null,null,null,null,{"$f":"IF(BQ297<>\"\",BQ297,BN297)","v":500},"target","imbal",null,"LINK_5020",null,null,null,null,null,null,null,null,null,null,null,null,null,null,null,null,null,null,null,null,null,null,null,null,null,null,null,null,null,{"$f":"IF(CW298<>\"\",CW298-CT298,0)","v":271},{"$f":"SUM(DE298:DE299)","v":271},"\"",null,{"$f":"RNSE(DB298,DE298)","v":0},{"$f":"DB298/CW299","v":0.83394833948339486},{"$f":"EA307","v":226},"=",{"$f":"DE298/CW298","v":0.83394833948339486},226,{"$f":"CHOOSE(1,\"=\",\"TURN\",14,DG297,DE298,DB298)","v":"="},null,{"$f":"CHOOSE(1,\"L\",\"TURN\",1,DG297,DH299,DH302)","v":"L"},{"$f":"CHOOSE(1,\"#\",\"TURN\",3,DG297,DI299,DI302)","v":"#"}]
[null,null,null,null,null,null,null,null,null,null,null,null,null,null,null,null,null,null,null,null,null,null,null,null,null,null,null,null,null,null,null,null,null,null,null,null,null,null,null,null,null,null,null,null,{"$f":"INDEX(Freeway_Import!$H$10:$H$101, MATCH(AS300,Freeway_Import!$C$10:$C$101,0))","v":650},{"$f":"CHOOSE(1,\"\"\"\",\"LINK\",AS300,AS299)","v":"\""},{"$f":"IF(AV299<>\"\",AV299-AS299,0)","v":-31},{"$f":"SUM(BA298:BA300)","v":619},"\"",null,{"$f":"RNSE(BA299,BD299)","v":"-"},{"$f":"BA299/AV299","v":0},{"$f":"BZ308","v":0},"\"",{"$f":"BD299/AV298","v":0},0,{"$f":"CHOOSE(1,\"\"\"\",\"TURN\",15,BF297,BD299,BA299)","v":"\""},null,0,1145,352,"raw",null,null,null,null,null,null,null,null,null,null,null,null,null,null,null,null,null,null,null,null,null,null,null,null,null,null,null,null,null,null,null,null,null,null,null,{"$f":"INDEX(Freeway_Import!$H$10:$H$101, MATCH(CT300,Freeway_Import!$C$10:$C$101,0))","v":270},{"$f":"CHOOSE(1,\"\"\"\",\"LINK\",CT300,CT299)","v":"\""},{"$f":"IF(CW299<>\"\",CW299-CT299,0)","v":1},{"$f":"SUM(DB298:DB299)","v":271},"\"",null,{"$f":"RNSE(DB299,DE299)","v":0},{"$f":"DB299/CW299","v":0.16605166051660517},{"$f":"DZ307","v":45},"?",{"$f":"DE299/CW298","v":0.16605166051660517},45,{"$f":"CHOOSE(1,\"?\",\"TURN\",16,DG297,DE299,DB299)","v":"?"},null,0,300,"raw"]
[null,null,null,null,null,null,null,null,null,null,null,null,null,null,null,null,null,null,null,null,null,null,null,null,null,null,null,null,null,null,null,null,null,null,null,null,null,null,null,null,null,null,null,null,"LINK_5010",null,"imbal",{"$f":"IF(AS299<>\"\",AS299,AV299)","v":650},"target",null,{"$f":"RNSE(BA300,BD300)","v":0},{"$f":"BA300/AV299","v":0.94022617124394181},{"$f":"BY308","v":582},"?",{"$f":"BD300/AV298","v":0.94022617124394181},582,{"$f":"CHOOSE(1,\"?\",\"TURN\",16,BF297,BD300,BA300)","v":"?"},null,{"$f":"BG299/BG314","v":0},{"$f":"BH299/BG314","v":0.76486305945223776},{"$f":"BI299/BG314","v":0.23513694054776219},"%",null,null,null,null,null,null,null,null,null,null,null,null,null,null,null,null,null,null,null,null,null,null,null,null,null,null,null,null,null,null,null,null,null,null,null,"LINK_5040",null,"imbal",{"$f":"IF(CT299<>\"\",CT299,CW299)","v":270},"target",null,"RNSE","%","bal",null,"%","raw",null,null,{"$f":"DH299/DH314","v":0},{"$f":"DI299/DH314","v":1},"%"]
[null,null,null,null,null,null,null,null,null,null,null,null,null,null,null,null,null,null,null,null,null,null,null,null,null,null,null,null,null,null,null,null,null,null,null,null,null,null,null,null,null,null,null,null,null,null,null,"",null,null,"RNSE","%","bal",null,"%","raw",null,null,"L","#",";",null,null,null,null,null,null,null,null,null,null,null,null,null,null,null,null,null,null,null,null,null,null,null,null,null,null,null,null,null,null,null,null,null,null,null,null,null,null,null,"",null,null,null,null,null,null,null,null,null,null,"L","#"]
[null,null,null,null,null,null,null,null,null,null,null,null,null,null,null,null,null,null,null,null,null,null,null,null,null,null,null,null,null,null,null,null,null,null,null,null,null,null,null,null,null,null,null,null,null,null,null,null,null,null,null,null,null,null,null,null,null,null,{"$f":"BY305","v":0},{"$f":"CA305","v":1145},{"$f":"BZ305","v":352},"bal",null,null,null,null,null,null,null,null,null,null,null,null,null,null,null,null,null,null,null,null,null,null,null,null,null,null,null,null,null,null,null,null,null,null,null,null,null,null,null,null,null,null,null,null,null,null,null,null,null,{"$f":"DZ305","v":0},{"$f":"EA305","v":300},"bal"]
[null,null,null,null,null,null,null,null,null,null,null,null,null,null,null,null,null,null,null,null,null,null,null,null,null,null,null,null,null,null,null,null,null,null,null,null,null,null,null,null,null,null,null,null,null,null,null,null,null,null,null,null,null,null,null,null,null,null,{"$f":"BG302/BH314","v":0},{"$f":"BH302/BH314","v":0.76486305945223776},{"$f":"BI302/BH314","v":0.23513694054776219},"%",null,null,null,"Local OD Raw",null,null,null,null,null,null,null,null,null,"Local OD Estimated",null,null,null,null,null,null,null,null,null,null,null,null,null,null,null,null,null,null,null,null,null,null,null,null,null,null,null,null,null,null,null,null,null,null,null,{"$f":"DH302/DI314","v":0},{"$f":"DI302/DI314","v":1},"%",null,null,null,null,"Local OD Raw",null,null,null,null,null,null,null,null,null,"Local OD Estimated"]
[null,null,null,null,null,null,null,null,null,null,null,null,null,null,null,null,null,null,null,null,null,null,null,null,null,null,null,null,null,null,null,null,null,null,null,null,null,null,null,null,null,null,null,null,null,null,null,null,null,null,null,null,null,null,null,null,null,null,{"$f":"RNSE(BG302,BG299)","v":"-"},{"$f":"RNSE(BH302,BH299)","v":0},{"$f":"RNSE(BI302,BI299)","v":0},"RNSE",null,null,null,{"$f":"\"local_od_raw_\"&BF297","v":"local_od_raw_8"},1,2,3,4,"est","tgt","err",null,null,{"$f":"\"local_od_est_\"&BF297","v":"local_od_est_8"},1,2,3,4,"est","tgt","err",null,null,null,null,null,null,null,null,null,null,null,null,null,null,null,null,null,null,null,null,null,null,null,null,null,null,null,null,{"$f":"RNSE(DH302,DH299)","v":"-"},{"$f":"RNSE(DI302,DI299)","v":0},"RNSE",null,null,null,null,{"$f":"\"local_od_raw_\"&DG297","v":"local_od_raw_10"},1,3,4,"est","tgt","err",null,null,null,{"$f":"\"local_od_est_\"&DG297","v":"local_od_est_10"},1,3,4,"est","tgt","err"]
[null,null,null,null,null,null,null,null,null,null,null,null,null,null,null,null,null,null,null,null,null,null,null,null,null,null,null,null,null,null,null,null,null,null,null,null,null,null,null,null,null,null,null,null,null,null,null,null,null,null,null,null,null,null,null,null,null,null,null,null,null,null,null,null,null,1,{"$f":"BG299","v":0},{"$f":"BI299","v":352},{"$f":"BH299","v":1145},0,{"$f":"SUM(BO305:BR305)","v":1497},{"$f":"BI314","v":1497},{"$f":"IFERROR(ABS(BS305-BT305)/BT305,0)","v":0},null,null,1,{"$f":"BO305","v":0},352,1145,0,{"$f":"SUM(BY305:CB305)","v":1497},{"$f":"BT305","v":1497},{"$f":"IFERROR(ABS(CC305-CD305)/CD305,0)","v":0},null,null,null,null,null,null,null,null,null,null,null,null,null,null,null,null,null,null,null,null,null,null,null,null,null,null,null,null,null,null,null,null,null,null,null,1,{"$f":"DH299","v":0},{"$f":"DI299","v":300},0,{"$f":"SUM(DP305:DR305)","v":300},{"$f":"DJ314","v":300},{"$f":"IFERROR(ABS(DS305-DT305)/DT305,0)","v":0},null,null,null,1,{"$f":"DP305","v":0},300,0,{"$f":"SUM(DZ305:EB305)","v":300},{"$f":"DT305","v":300},{"$f":"IFERROR(ABS(EC305-ED305)/ED305,0)","v":0}]
[null,null,null,null,null,null,null,null,null,null,null,null,null,null,null,null,null,null,null,null,null,null,null,null,null,null,null,null,null,null,null,null,null,null,null,null,null,null,null,null,null,null,null,null,null,null,null,null,null,null,null,null,null,null,null,null,null,null,null,null,null,null,null,null,null,2,0,0,0,0,{"$f":"SUM(BO306:BR306)","v":0},0,{"$f":"IFERROR(ABS(BS306-BT306)/BT306,0)","v":0},null,null,2,0,0,0,0,{"$f":"SUM(BY306:CB306)","v":0},{"$f":"BT306","v":0},{"$f":"IFERROR(ABS(CC306-CD306)/CD306,0)","v":0},null,null,null,null,null,null,null,null,null,null,null,null,null,null,null,null,null,null,null,null,null,null,null,null,null,null,null,null,null,null,null,null,null,null,null,3,{"$f":"DE295","v":165},{"$f":"DF295","v":0},0,{"$f":"SUM(DP306:DR306)","v":165},{"$f":"DD280","v":157.5},{"$f":"IFERROR(ABS(DS306-DT306)/DT306,0)","v":4.7619047619047616E-2},null,null,null,3,165,0,0,{"$f":"SUM(DZ306:EB306)","v":165},{"$f":"DT306","v":157.5},{"$f":"IFERROR(ABS(EC306-ED306)/ED306,0)","v":4.7619047619047616E-2}]
[null,null,null,null,null,null,null,null,null,null,null,null,null,null,null,null,null,null,null,null,null,null,null,null,null,null,null,null,null,null,null,null,null,null,null,null,null,null,null,null,null,null,null,null,null,null,null,null,null,null,null,null,null,null,null,null,null,null,"US 51",null,null,"",null,null,null,3,{"$f":"BC295","v":1574},{"$f":"BD295","v":107},{"$f":"BE295","v":0},0,{"$f":"SUM(BO307:BR307)","v":1681},{"$f":"BC280","v":1681},0,null,null,3,1574,107,0,0,1681,{"$f":"BT307","v":1681},0,null,null,null,null,null,null,null,null,null,null,null,null,null,null,null,null,null,null,null,null,null,null,null,null,null,null,null,null,"Thompson Dr",null,null,"",null,null,null,4,{"$f":"DE299","v":45},{"$f":"DE298","v":226},0,{"$f":"SUM(DP307:DR307)","v":271},{"$f":"CW300","v":270},{"$f":"IFERROR(ABS(DS307-DT307)/DT307,0)","v":3.7037037037037038E-3},null,null,null,4,45,226,0,{"$f":"SUM(DZ307:EB307)","v":271},{"$f":"DT307","v":270},{"$f":"IFERROR(ABS(EC307-ED307)/ED307,0)","v":3.7037037037037038E-3}]
[null,null,null,null,null,null,null,null,null,null,null,null,null,null,null,null,null,null,null,null,null,null,null,null,null,null,null,null,null,null,null,null,null,null,null,null,null,null,null,null,null,null,null,{"$f":"CHOOSE(1,BF297&\":\",\"IX_NAME\",AS308)","v":"8:"},"US 51 & EB WIS 30 Ramps",null,null,null,null,null,null,null,null,null,null,null,null,null,null,null,null,null,null,null,null,4,{"$f":"BD300","v":582},{"$f":"BD299","v":0},{"$f":"BD298","v":37},0,{"$f":"SUM(BO308:BR308)","v":619},{"$f":"AV300","v":650},4.7692307692307694E-2,null,null,4,582,0,37,0,619,{"$f":"BT308","v":650},4.7692307692307694E-2,null,null,null,null,null,null,null,null,null,null,null,null,null,{"$f":"CHOOSE(1,DG297&\":\",\"IX_NAME\",CT308)","v":"10:"},"Thompson Dr & EB WIS 30Off-Ramp",null,null,null,null,null,null,null,null,null,null,null,null,null,null,null,null,null,null,null,null,"est",{"$f":"SUM(DP305:DP307)","v":210},{"$f":"SUM(DQ305:DQ307)","v":526},{"$f":"SUM(DR305:DR307)","v":0},null,null,null,null,null,null,"est",{"$f":"SUM(DZ305:DZ307)","v":210},{"$f":"SUM(EA305:EA307)","v":526},{"$f":"SUM(EB305:EB307)","v":0}]
[null,null,null,null,null,null,null,null,null,null,null,null,null,null,null,null,null,null,null,null,null,null,null,null,null,null,null,null,null,null,null,null,null,null,null,null,null,null,null,null,null,null,null,null,"Raw Count Date:","2012-07-18",null,null,null,null,null,null,null,null,null,null,null,null,null,null,null,null,null,null,null,"est",{"$f":"SUM(BO305:BO308)","v":2156},{"$f":"SUM(BP305:BP308)","v":459},{"$f":"SUM(BQ305:BQ308)","v":1182},{"$f":"SUM(BR305:BR308)","v":0},null,null,null,null,null,"est",{"$f":"SUM(BY305:BY308)","v":2156},{"$f":"SUM(BZ305:BZ308)","v":459},1182,0,null,null,null,null,null,null,null,null,null,null,null,null,null,null,null,null,null,"Raw Count Date:","2013-05-02",null,null,null,null,null,null,null,null,null,null,null,null,null,null,null,null,null,null,null,"tgt",{"$f":"DD312","v":210},{"$f":"DJ282","v":543.5},0,null,null,null,null,null,null,"tgt",{"$f":"DP309","v":210},{"$f":"DQ309","v":543.5},{"$f":"DR309","v":0}]
[null,null,null,null,null,null,null,null,null,null,null,null,null,null,null,null,null,null,null,null,null,null,null,null,null,null,null,null,null,null,null,null,null,null,null,null,null,null,null,null,null,null,null,null,null,null,null,null,null,null,null,null,null,null,null,null,null,null,null,null,null,null,null,null,null,"tgt",{"$f":"BC312","v":2156},{"$f":"BN298","v":500},{"$f":"BI282","v":1182},0,null,null,null,null,null,"tgt",{"$f":"BO310","v":2156},{"$f":"BP310","v":500},{"$f":"BQ310","v":1182},{"$f":"BR310","v":0},null,null,null,null,null,null,null,null,null,null,null,null,null,null,null,null,null,null,null,null,null,null,null,null,null,null,null,null,null,null,null,null,null,null,null,null,null,null,"err",{"$f":"IFERROR(ABS(DP308-DP309)/DP309,0)","v":0},{"$f":"IFERROR(ABS(DQ308-DQ309)/DQ309,0)","v":3.219871205151794E-2},{"$f":"IFERROR(ABS(DR308-DR309)/DR309,0)","v":0},null,null,{"$f":"SUM(DP310:DR310,DU305:DU307)","v":8.3521463374269272E-2},null,null,null,"err",{"$f":"IFERROR(ABS(DZ308-DZ309)/DZ309,0)","v":0},{"$f":"IFERROR(ABS(EA308-EA309)/EA309,0)","v":3.219871205151794E-2},{"$f":"IFERROR(ABS(EB308-EB309)/EB309,0)","v":0},null,null,{"$f":"SUM(DZ310:EB310,EE305:EE307)","v":8.3521463374269272E-2}]
[null,null,null,null,null,null,null,null,null,null,null,null,null,null,null,null,null,null,null,null,null,null,null,null,null,null,null,null,null,null,null,null,null,null,null,null,null,null,null,null,null,null,null,null,null,null,null,null,null,null,null,null,null,null,null,null,null,null,null,null,null,null,null,null,null,"err",{"$f":"IFERROR(ABS(BO309-BO310)/BO310,0)","v":0},{"$f":"IFERROR(ABS(BP309-BP310)/BP310,0)","v":8.2000000000000003E-2},0,0,null,null,{"$f":"SUM(BO311:BR311,BU305:BU308)","v":0.12969230769230769},null,null,"err",{"$f":"IFERROR(ABS(BY309-BY310)/BY310,0)","v":0},{"$f":"IFERROR(ABS(BZ309-BZ310)/BZ310,0)","v":8.2000000000000003E-2},0,0,null,null,{"$f":"SUM(BY311:CB311,CE305:CE308)","v":0.12969230769230769}]
[null,null,null,null,null,null,null,null,null,null,null,null,null,null,null,null,null,null,null,null,null,null,null,null,null,null,null,null,null,null,null,null,null,null,null,null,null,null,null,null,null,null,null,null,null,null,null,null,null,null,null,null,null,null,{"$f":"IF(BD315<>\"\",AVERAGE(BD312,BD315),BD312)","v":2156},{"$f":"SUM(BG302,BC292,BA300)","v":2156},{"$f":"SUM(BG299,BC295,BD300)","v":2156},null,null,null,null,null,null,null,null,null,null,null,null,null,null,null,null,null,null,null,null,null,null,null,null,null,null,null,null,null,null,null,null,null,null,null,null,null,null,null,null,null,null,null,null,null,null,null,null,null,null,{"$f":"IF(DE315<>\"\",AVERAGE(DE312,DE315),DE312)","v":210},{"$f":"SUM(DH302,DE292,DB299)","v":210},{"$f":"SUM(DH299,DE295,DE299)","v":210}]
[null,null,null,null,null,null,null,null,null,null,null,null,null,null,null,null,null,null,null,null,null,null,null,null,null,null,null,null,null,null,null,null,null,null,null,null,null,null,null,null,null,null,null,null,null,null,null,null,null,null,null,null,null,null,"target","$","$",null,"#","#","target",null,null,null,null,null,null,null,null,null,null,null,null,null,null,null,null,null,null,null,null,null,null,null,null,null,null,null,null,null,null,null,null,null,null,null,null,null,null,null,null,null,null,null,null,null,null,"target","$","$",null,"#","#","target"]
[null,null,null,null,null,null,null,null,null,null,null,null,null,null,null,null,null,null,null,null,null,null,null,null,null,null,null,null,null,null,null,null,null,null,null,null,null,null,null,null,null,null,null,null,null,null,null,null,null,null,null,null,null,null,"imbal",{"$f":"IF(BD315<>\"\",BD315-BD312,0)","v":0},{"$f":"IF(BE315<>\"\",BE315-BE312,0)","v":0},null,{"$f":"SUM(BG299:BI299)","v":1497},{"$f":"SUM(BG302:BI302)","v":1497},{"$f":"IF(BH317<>\"\",AVERAGE(BH314,BH317),BH314)","v":1497},null,null,null,null,null,null,null,null,null,null,null,null,null,null,null,null,null,null,null,null,null,null,null,null,null,null,null,null,null,null,null,null,null,null,null,null,null,null,null,null,null,null,null,null,null,null,"imbal",{"$f":"IF(DE315<>\"\",DE315-DE312,0)","v":0},{"$f":"IF(DF315<>\"\",DF315-DF312,0)","v":0},null,{"$f":"SUM(DH299:DI299)","v":300},{"$f":"SUM(DH302:DI302)","v":300},{"$f":"IF(DI317<>\"\",AVERAGE(DI314,DI317),DI314)","v":300}]

{"sheet":"Listing","index":2,"n_rows":104,"n_cols":21,"rows_kept":104,"cut":false,"hidden":false,"merged":[[6,12,6,13]]}
[]
[null,null,null,null,null,null,null,null,"Project",{"$f":"Schematic!$L$3","v":"Sample Freeway & Intersection Balancing"}]
[null,null,null,null,null,null,null,null,"Scenario",{"$f":"Schematic!$L$4","v":"Year 2012 AM Peak"}]
[]
[null,null,"Intersection Numbers & Names",null,null,null,"Intersection Turning Movement Volume Comparison",null,null,null,null,null,null,null,null,null,null,null,null,"Imbalance Cells"]
[]
[null,null,null,null,null,null,null,null,null,null,null,null,"Volume"]
[null,null,"Intersection\nNumber","Intersection\nName",null,null,"SORT","TURN_ID","Intersection Number","Intersection","Intersection","Turn","Raw","Balanced","Diff.\n(Bal - Raw)","RNSE",null,null,null,"Cell","Value"]
[null,null,1,{"$f":"Schematic!$AJ$30","v":"US 51 & NB I-39/90/94 Ramps"},null,null,1,"TURN_001_03",1,{"$f":"INDEX($D$9:$D$18, MATCH($I9,$C$9:$C$18,0))","v":"US 51 & NB I-39/90/94 Ramps"},{"$f":"INDEX($D$9:$D$18, MATCH($I9,$C$9:$C$18,0))","v":"US 51 & NB I-39/90/94 Ramps"},"NBT",{"$f":"INDIRECT(H9 & \"_raw\")","v":312},{"$f":"INDIRECT(H9 & \"_bal\")","v":312},{"$f":"$N9-$M9","v":0},{"$f":"IF($M9>0, SQRT($O9^2/$M9),\"\")","v":0},null,null,null,{"$f":"CELL(\"address\",Schematic!$AY$27)","v":"'[Intersection_EXAMPLE (Tool v5.8.1).xlsm]Schematic'!$AY$27"},{"$f":"INDIRECT($T9)","v":0}]
[null,null,2,{"$f":"Schematic!$AJ$65","v":"US 51 & SB I-39/90/94 Ramps"},null,null,2,"TURN_001_04",1,null,"US 51 & NB I-39/90/94 Ramps","NBR",143,143,0,0,null,null,null,{"$f":"CELL(\"address\",Schematic!$AF$42)","v":"'[Intersection_EXAMPLE (Tool v5.8.1).xlsm]Schematic'!$AF$42"},28]
[null,null,3,{"$f":"Schematic!$AK$140","v":"High Crossing Blvd & SB I-39/90/94 On-Ramp"},null,null,3,"TURN_001_06",1,null,"US 51 & NB I-39/90/94 Ramps","WBL",91,91,0,0,null,null,null,{"$f":"CELL(\"address\",Schematic!$BO$42)","v":"'[Intersection_EXAMPLE (Tool v5.8.1).xlsm]Schematic'!$BO$42"},8]
[null,null,4,{"$f":"Schematic!$BM$140","v":"High Crossing Blvd & NB I-39/90/94 Off-Ramp"},null,null,4,"TURN_001_08",1,null,"US 51 & NB I-39/90/94 Ramps","WBR",217,217,0,0,null,null,null,{"$f":"CELL(\"address\",Schematic!$BN$46)","v":"'[Intersection_EXAMPLE (Tool v5.8.1).xlsm]Schematic'!$BN$46"},-33]
[null,null,5,{"$f":"Schematic!$CV$116","v":"American Pkwy & Eastpark Blvd"},null,null,5,"TURN_001_11",1,null,"US 51 & NB I-39/90/94 Ramps","SBT",1193,1193,0,0,null,null,null,{"$f":"CELL(\"address\",Schematic!$AU$61)","v":"'[Intersection_EXAMPLE (Tool v5.8.1).xlsm]Schematic'!$AU$61"},49]
[null,null,6,{"$f":"Schematic!$CV$186","v":"High Crossing Blvd & American Pkwy / Nelson Rd & US 151"},null,null,6,"TURN_001_12",1,null,"US 51 & NB I-39/90/94 Ramps","SBR",12,12,0,0,null,null,null,{"$f":"CELL(\"address\",Schematic!$AY$62)","v":"'[Intersection_EXAMPLE (Tool v5.8.1).xlsm]Schematic'!$AY$62"},29]
[null,null,7,{"$f":"Schematic!$AS$248","v":"US 51 & WB WIS 30 Ramps"},null,null,7,"TURN_002_03",2,{"$f":"INDEX($D$9:$D$18, MATCH($I15,$C$9:$C$18,0))","v":"US 51 & SB I-39/90/94 Ramps"},"US 51 & SB I-39/90/94 Ramps","NBT",423,423,0,0,null,null,null,{"$f":"CELL(\"address\",Schematic!$AF$77)","v":"'[Intersection_EXAMPLE (Tool v5.8.1).xlsm]Schematic'!$AF$77"},-109]
[null,null,8,{"$f":"Schematic!$AS$308","v":"US 51 & EB WIS 30 Ramps"},null,null,8,"TURN_002_04",2,null,"US 51 & SB I-39/90/94 Ramps","NBR",76,76,0,0,null,null,null,{"$f":"CELL(\"address\",Schematic!$AE$81)","v":"'[Intersection_EXAMPLE (Tool v5.8.1).xlsm]Schematic'!$AE$81"},-121]
[null,null,9,{"$f":"Schematic!$CT$248","v":"Thompson Dr & WB WIS 30 On-Ramp"},null,null,9,"TURN_002_11",2,null,"US 51 & SB I-39/90/94 Ramps","SBT",1064,1064,0,0,null,null,null,{"$f":"CELL(\"address\",Schematic!$BN$81)","v":"'[Intersection_EXAMPLE (Tool v5.8.1).xlsm]Schematic'!$BN$81"},74]
[null,null,10,{"$f":"Schematic!$CT$308","v":"Thompson Dr & EB WIS 30Off-Ramp"},null,null,10,"TURN_002_12",2,null,"US 51 & SB I-39/90/94 Ramps","SBR",269,269,0,0,null,null,null,{"$f":"CELL(\"address\",Schematic!$AU$96)","v":"'[Intersection_EXAMPLE (Tool v5.8.1).xlsm]Schematic'!$AU$96"},0]
[null,null,null,null,null,null,11,"TURN_002_14",2,null,"US 51 & SB I-39/90/94 Ramps","EBL",3,3,0,0,null,null,null,{"$f":"CELL(\"address\",Schematic!$DK$113)","v":"'[Intersection_EXAMPLE (Tool v5.8.1).xlsm]Schematic'!$DK$113"},0]
[null,null,null,null,null,null,12,"TURN_002_16",2,null,"US 51 & SB I-39/90/94 Ramps","EBR",786,786,0,0,null,null,null,{"$f":"CELL(\"address\",Schematic!$CR$128)","v":"'[Intersection_EXAMPLE (Tool v5.8.1).xlsm]Schematic'!$CR$128"},0]
[null,null,null,null,null,null,13,"TURN_003_05",3,{"$f":"INDEX($D$9:$D$18, MATCH($I21,$C$9:$C$18,0))","v":"High Crossing Blvd & SB I-39/90/94 On-Ramp"},"High Crossing Blvd & SB I-39/90/94 On-Ramp","WBU",0,0,0,"",null,null,null,{"$f":"CELL(\"address\",Schematic!$DZ$132)","v":"'[Intersection_EXAMPLE (Tool v5.8.1).xlsm]Schematic'!$DZ$132"},0]
[null,null,null,null,null,null,14,"TURN_003_06",3,null,"High Crossing Blvd & SB I-39/90/94 On-Ramp","WBL",175,175,0,0,null,null,null,{"$f":"CELL(\"address\",Schematic!$DG$147)","v":"'[Intersection_EXAMPLE (Tool v5.8.1).xlsm]Schematic'!$DG$147"},-36]
[null,null,null,null,null,null,15,"TURN_003_07",3,null,"High Crossing Blvd & SB I-39/90/94 On-Ramp","WBT",279,279,0,0,null,null,null,{"$f":"CELL(\"address\",Schematic!$DK$148)","v":"'[Intersection_EXAMPLE (Tool v5.8.1).xlsm]Schematic'!$DK$148"},30]
[null,null,null,null,null,null,16,"TURN_003_13",3,null,"High Crossing Blvd & SB I-39/90/94 On-Ramp","EBU",0,0,0,"",null,null,null,{"$f":"CELL(\"address\",Schematic!$AF$163)","v":"'[Intersection_EXAMPLE (Tool v5.8.1).xlsm]Schematic'!$AF$163"},0]
[null,null,null,null,null,null,17,"TURN_003_15",3,null,"High Crossing Blvd & SB I-39/90/94 On-Ramp","EBT",145,145,0,0,null,null,null,{"$f":"CELL(\"address\",Schematic!$BB$163)","v":"'[Intersection_EXAMPLE (Tool v5.8.1).xlsm]Schematic'!$BB$163"},-10]
[null,null,null,null,null,null,18,"TURN_003_16",3,null,"High Crossing Blvd & SB I-39/90/94 On-Ramp","EBR",85,85,0,0,null,null,null,{"$f":"CELL(\"address\",Schematic!$BA$167)","v":"'[Intersection_EXAMPLE (Tool v5.8.1).xlsm]Schematic'!$BA$167"},0]
[null,null,null,null,null,null,19,"TURN_004_02",4,{"$f":"INDEX($D$9:$D$18, MATCH($I27,$C$9:$C$18,0))","v":"High Crossing Blvd & NB I-39/90/94 Off-Ramp"},"High Crossing Blvd & NB I-39/90/94 Off-Ramp","NBL",141,141,0,0,null,null,null,{"$f":"CELL(\"address\",Schematic!$BW$167)","v":"'[Intersection_EXAMPLE (Tool v5.8.1).xlsm]Schematic'!$BW$167"},0]
[null,null,null,null,null,null,20,"TURN_004_04",4,null,"High Crossing Blvd & NB I-39/90/94 Off-Ramp","NBR",394,394,0,0,null,null,null,{"$f":"CELL(\"address\",Schematic!$BN$177)","v":"'[Intersection_EXAMPLE (Tool v5.8.1).xlsm]Schematic'!$BN$177"},65]
[null,null,null,null,null,null,21,"TURN_004_05",4,null,"High Crossing Blvd & NB I-39/90/94 Off-Ramp","WBU",0,0,0,"",null,null,null,{"$f":"CELL(\"address\",Schematic!$AO$178)","v":"'[Intersection_EXAMPLE (Tool v5.8.1).xlsm]Schematic'!$AO$178"},-10]
[null,null,null,null,null,null,22,"TURN_004_07",4,null,"High Crossing Blvd & NB I-39/90/94 Off-Ramp","WBT",323,323,0,0,null,null,null,{"$f":"CELL(\"address\",Schematic!$DG$182)","v":"'[Intersection_EXAMPLE (Tool v5.8.1).xlsm]Schematic'!$DG$182"},-36]
[null,null,null,null,null,null,23,"TURN_004_13",4,null,"High Crossing Blvd & NB I-39/90/94 Off-Ramp","EBU",0,0,0,"",null,null,null,{"$f":"CELL(\"address\",Schematic!$DK$183)","v":"'[Intersection_EXAMPLE (Tool v5.8.1).xlsm]Schematic'!$DK$183"},30]
[null,null,null,null,null,null,24,"TURN_004_15",4,null,"High Crossing Blvd & NB I-39/90/94 Off-Ramp","EBT",145,145,0,0,null,null,null,{"$f":"CELL(\"address\",Schematic!$CR$198)","v":"'[Intersection_EXAMPLE (Tool v5.8.1).xlsm]Schematic'!$CR$198"},0]
[null,null,null,null,null,null,25,"TURN_005_01",5,{"$f":"INDEX($D$9:$D$18, MATCH($I33,$C$9:$C$18,0))","v":"American Pkwy & Eastpark Blvd"},"American Pkwy & Eastpark Blvd","NBU",0,0,0,"",null,null,null,{"$f":"CELL(\"address\",Schematic!$EA$198)","v":"'[Intersection_EXAMPLE (Tool v5.8.1).xlsm]Schematic'!$EA$198"},-48]
[null,null,null,null,null,null,26,"TURN_005_02",5,null,"American Pkwy & Eastpark Blvd","NBL",570,570,0,0,null,null,null,{"$f":"CELL(\"address\",Schematic!$DZ$202)","v":"'[Intersection_EXAMPLE (Tool v5.8.1).xlsm]Schematic'!$DZ$202"},-13]
[null,null,null,null,null,null,27,"TURN_005_03",5,null,"American Pkwy & Eastpark Blvd","NBT",1051,1051,0,0,null,null,null,{"$f":"CELL(\"address\",Schematic!$DG$217)","v":"'[Intersection_EXAMPLE (Tool v5.8.1).xlsm]Schematic'!$DG$217"},0]
[null,null,null,null,null,null,28,"TURN_005_04",5,null,"American Pkwy & Eastpark Blvd","NBR",110,110,0,0,null,null,null,{"$f":"CELL(\"address\",Schematic!$BH$245)","v":"'[Intersection_EXAMPLE (Tool v5.8.1).xlsm]Schematic'!$BH$245"},0]
[null,null,null,null,null,null,29,"TURN_005_05",5,null,"American Pkwy & Eastpark Blvd","WBU",0,0,0,"",null,null,null,{"$f":"CELL(\"address\",Schematic!$DI$245)","v":"'[Intersection_EXAMPLE (Tool v5.8.1).xlsm]Schematic'!$DI$245"},0]
[null,null,null,null,null,null,30,"TURN_005_06",5,null,"American Pkwy & Eastpark Blvd","WBL",87,87,0,0,null,null,null,{"$f":"CELL(\"address\",Schematic!$CP$260)","v":"'[Intersection_EXAMPLE (Tool v5.8.1).xlsm]Schematic'!$CP$260"},13]
[null,null,null,null,null,null,31,"TURN_005_07",5,null,"American Pkwy & Eastpark Blvd","WBT",33,33,0,0,null,null,null,{"$f":"CELL(\"address\",Schematic!$AU$263)","v":"'[Intersection_EXAMPLE (Tool v5.8.1).xlsm]Schematic'!$AU$263"},44]
[null,null,null,null,null,null,32,"TURN_005_08",5,null,"American Pkwy & Eastpark Blvd","WBR",15,15,0,0,null,null,null,{"$f":"CELL(\"address\",Schematic!$BR$263)","v":"'[Intersection_EXAMPLE (Tool v5.8.1).xlsm]Schematic'!$BR$263"},-109]
[null,null,null,null,null,null,33,"TURN_005_09",5,null,{"$f":"INDEX($D$9:$D$18, MATCH($I41,$C$9:$C$18,0))","v":"American Pkwy & Eastpark Blvd"},"SBU",{"$f":"INDIRECT(H41 & \"_raw\")","v":0},{"$f":"INDIRECT(H41 & \"_bal\")","v":0},{"$f":"$N41-$M41","v":0},{"$f":"IF($M41>0, SQRT($O41^2/$M41),\"\")","v":""},null,null,null,{"$f":"CELL(\"address\",Schematic!$DX$264)","v":"'[Intersection_EXAMPLE (Tool v5.8.1).xlsm]Schematic'!$DX$264"},0]
[null,null,null,null,null,null,34,"TURN_005_10",5,null,"American Pkwy & Eastpark Blvd","SBL",14,14,0,0,null,null,null,{"$f":"CELL(\"address\",Schematic!$BD$279)","v":"'[Intersection_EXAMPLE (Tool v5.8.1).xlsm]Schematic'!$BD$279"},0]
[null,null,null,null,null,null,35,"TURN_005_11",5,null,"American Pkwy & Eastpark Blvd","SBT",343,343,0,0,null,null,null,{"$f":"CELL(\"address\",Schematic!$DE$279)","v":"'[Intersection_EXAMPLE (Tool v5.8.1).xlsm]Schematic'!$DE$279"},15]
[null,null,null,null,null,null,36,"TURN_005_12",5,null,"American Pkwy & Eastpark Blvd","SBR",51,51,0,0,null,null,null,{"$f":"CELL(\"address\",Schematic!$BH$280)","v":"'[Intersection_EXAMPLE (Tool v5.8.1).xlsm]Schematic'!$BH$280"},0]
[null,null,null,null,null,null,37,"TURN_005_13",5,null,"American Pkwy & Eastpark Blvd","EBU",0,0,0,"",null,null,null,{"$f":"CELL(\"address\",Schematic!$DI$280)","v":"'[Intersection_EXAMPLE (Tool v5.8.1).xlsm]Schematic'!$DI$280"},35]
[null,null,null,null,null,null,38,"TURN_005_14",5,null,"American Pkwy & Eastpark Blvd","EBL",24,24,0,0,null,null,null,{"$f":"CELL(\"address\",Schematic!$BP$297)","v":"'[Intersection_EXAMPLE (Tool v5.8.1).xlsm]Schematic'!$BP$297"},41]
[null,null,null,null,null,null,39,"TURN_005_15",5,null,"American Pkwy & Eastpark Blvd","EBT",13,13,0,0,null,null,null,{"$f":"CELL(\"address\",Schematic!$AU$299)","v":"'[Intersection_EXAMPLE (Tool v5.8.1).xlsm]Schematic'!$AU$299"},-31]
[null,null,null,null,null,null,40,"TURN_005_16",5,null,"American Pkwy & Eastpark Blvd","EBR",120,120,0,0,null,null,null,{"$f":"CELL(\"address\",Schematic!$CV$299)","v":"'[Intersection_EXAMPLE (Tool v5.8.1).xlsm]Schematic'!$CV$299"},1]
[null,null,null,null,null,null,41,"TURN_006_01",6,{"$f":"INDEX($D$9:$D$18, MATCH($I49,$C$9:$C$18,0))","v":"High Crossing Blvd & American Pkwy / Nelson Rd & US 151"},"High Crossing Blvd & American Pkwy / Nelson Rd & US 151","NBU",0,0,0,"",null,null,null,{"$f":"CELL(\"address\",Schematic!$BD$314)","v":"'[Intersection_EXAMPLE (Tool v5.8.1).xlsm]Schematic'!$BD$314"},0]
[null,null,null,null,null,null,42,"TURN_006_02",6,null,"High Crossing Blvd & American Pkwy / Nelson Rd & US 151","NBL",74,74,0,0,null,null,null,{"$f":"CELL(\"address\",Schematic!$DE$314)","v":"'[Intersection_EXAMPLE (Tool v5.8.1).xlsm]Schematic'!$DE$314"},0]
[null,null,null,null,null,null,43,"TURN_006_03",6,null,"High Crossing Blvd & American Pkwy / Nelson Rd & US 151","NBT",252,252,0,0]
[null,null,null,null,null,null,44,"TURN_006_04",6,null,"High Crossing Blvd & American Pkwy / Nelson Rd & US 151","NBR",82,82,0,0]
[null,null,null,null,null,null,45,"TURN_006_05",6,null,"High Crossing Blvd & American Pkwy / Nelson Rd & US 151","WBU",0,0,0,""]
[null,null,null,null,null,null,46,"TURN_006_06",6,null,"High Crossing Blvd & American Pkwy / Nelson Rd & US 151","WBL",24,24,0,0]
[null,null,null,null,null,null,47,"TURN_006_07",6,null,"High Crossing Blvd & American Pkwy / Nelson Rd & US 151","WBT",113,113,0,0]
[null,null,null,null,null,null,48,"TURN_006_08",6,null,"High Crossing Blvd & American Pkwy / Nelson Rd & US 151","WBR",5,5,0,0]
[null,null,null,null,null,null,49,"TURN_006_09",6,null,"High Crossing Blvd & American Pkwy / Nelson Rd & US 151","SBU",0,0,0,""]
[null,null,null,null,null,null,50,"TURN_006_10",6,null,"High Crossing Blvd & American Pkwy / Nelson Rd & US 151","SBL",51,51,0,0]
[null,null,null,null,null,null,51,"TURN_006_11",6,null,"High Crossing Blvd & American Pkwy / Nelson Rd & US 151","SBT",137,137,0,0]
[null,null,null,null,null,null,52,"TURN_006_12",6,null,"High Crossing Blvd & American Pkwy / Nelson Rd & US 151","SBR",166,166,0,0]
[null,null,null,null,null,null,53,"TURN_006_13",6,null,"High Crossing Blvd & American Pkwy / Nelson Rd & US 151","EBU",0,0,0,""]
[null,null,null,null,null,null,54,"TURN_006_14",6,null,"High Crossing Blvd & American Pkwy / Nelson Rd & US 151","EBL",214,214,0,0]
[null,null,null,null,null,null,55,"TURN_006_15",6,null,"High Crossing Blvd & American Pkwy / Nelson Rd & US 151","EBT",100,100,0,0]
[null,null,null,null,null,null,56,"TURN_006_16",6,null,"High Crossing Blvd & American Pkwy / Nelson Rd & US 151","EBR",41,41,0,0]
[null,null,null,null,null,null,57,"TURN_007_01",7,{"$f":"INDEX($D$9:$D$18, MATCH($I65,$C$9:$C$18,0))","v":"US 51 & WB WIS 30 Ramps"},"US 51 & WB WIS 30 Ramps","NBU",0,0,0,""]
[null,null,null,null,null,null,58,"TURN_007_02",7,null,"US 51 & WB WIS 30 Ramps","NBL",472,472,0,0]
[null,null,null,null,null,null,59,"TURN_007_03",7,null,"US 51 & WB WIS 30 Ramps","NBT",710,710,0,0]
[null,null,null,null,null,null,60,"TURN_007_06",7,null,"US 51 & WB WIS 30 Ramps","WBL",868,868,0,0]
[null,null,null,null,null,null,61,"TURN_007_07",7,null,"US 51 & WB WIS 30 Ramps","WBT",0,0,0,""]
[null,null,null,null,null,null,62,"TURN_007_08",7,null,"US 51 & WB WIS 30 Ramps","WBR",343,343,0,0]
[null,null,null,null,null,null,63,"TURN_007_09",7,null,"US 51 & WB WIS 30 Ramps","SBU",0,0,0,""]
[null,null,null,null,null,null,64,"TURN_007_11",7,null,"US 51 & WB WIS 30 Ramps","SBT",813,813,0,0]
[null,null,null,null,null,null,65,"TURN_007_12",7,null,{"$f":"INDEX($D$9:$D$18, MATCH($I73,$C$9:$C$18,0))","v":"US 51 & WB WIS 30 Ramps"},"SBR",{"$f":"INDIRECT(H73 & \"_raw\")","v":34},{"$f":"INDIRECT(H73 & \"_bal\")","v":34},{"$f":"$N73-$M73","v":0},{"$f":"IF($M73>0, SQRT($O73^2/$M73),\"\")","v":0}]
[null,null,null,null,null,null,66,"TURN_008_01",8,{"$f":"INDEX($D$9:$D$18, MATCH($I74,$C$9:$C$18,0))","v":"US 51 & EB WIS 30 Ramps"},"US 51 & EB WIS 30 Ramps","NBU",0,0,0,""]
[null,null,null,null,null,null,67,"TURN_008_03",8,null,"US 51 & EB WIS 30 Ramps","NBT",1145,1145,0,0]
[null,null,null,null,null,null,68,"TURN_008_04",8,null,"US 51 & EB WIS 30 Ramps","NBR",352,352,0,0]
[null,null,null,null,null,null,69,"TURN_008_09",8,null,"US 51 & EB WIS 30 Ramps","SBU",0,0,0,""]
[null,null,null,null,null,null,70,"TURN_008_10",8,null,"US 51 & EB WIS 30 Ramps","SBL",107,107,0,0]
[null,null,null,null,null,null,71,"TURN_008_11",8,null,"US 51 & EB WIS 30 Ramps","SBT",1574,1574,0,0]
[null,null,null,null,null,null,72,"TURN_008_14",8,null,"US 51 & EB WIS 30 Ramps","EBL",37,37,0,0]
[null,null,null,null,null,null,73,"TURN_008_15",8,null,"US 51 & EB WIS 30 Ramps","EBT",0,0,0,""]
[null,null,null,null,null,null,74,"TURN_008_16",8,null,"US 51 & EB WIS 30 Ramps","EBR",582,582,0,0]
[null,null,null,null,null,null,75,"TURN_009_01",9,{"$f":"INDEX($D$9:$D$18, MATCH($I83,$C$9:$C$18,0))","v":"Thompson Dr & WB WIS 30 On-Ramp"},"Thompson Dr & WB WIS 30 On-Ramp","NBU",0,0,0,""]
[null,null,null,null,null,null,76,"TURN_009_02",9,null,"Thompson Dr & WB WIS 30 On-Ramp","NBL",195,195,0,0]
[null,null,null,null,null,null,77,"TURN_009_03",9,null,"Thompson Dr & WB WIS 30 On-Ramp","NBT",213,213,0,0]
[null,null,null,null,null,null,78,"TURN_009_04",9,null,"Thompson Dr & WB WIS 30 On-Ramp","NBR",153,153,0,0]
[null,null,null,null,null,null,79,"TURN_009_05",9,null,"Thompson Dr & WB WIS 30 On-Ramp","WBU",0,0,0,""]
[null,null,null,null,null,null,80,"TURN_009_06",9,null,"Thompson Dr & WB WIS 30 On-Ramp","WBL",47,47,0,0]
[null,null,null,null,null,null,81,"TURN_009_07",9,null,"Thompson Dr & WB WIS 30 On-Ramp","WBT",454,454,0,0]
[null,null,null,null,null,null,82,"TURN_009_08",9,null,"Thompson Dr & WB WIS 30 On-Ramp","WBR",3,3,0,0]
[null,null,null,null,null,null,83,"TURN_009_09",9,null,"Thompson Dr & WB WIS 30 On-Ramp","SBU",0,0,0,""]
[null,null,null,null,null,null,84,"TURN_009_10",9,null,"Thompson Dr & WB WIS 30 On-Ramp","SBL",5,5,0,0]
[null,null,null,null,null,null,85,"TURN_009_11",9,null,"Thompson Dr & WB WIS 30 On-Ramp","SBT",103,103,0,0]
[null,null,null,null,null,null,86,"TURN_009_12",9,null,"Thompson Dr & WB WIS 30 On-Ramp","SBR",448,448,0,0]
[null,null,null,null,null,null,87,"TURN_009_13",9,null,"Thompson Dr & WB WIS 30 On-Ramp","EBU",0,0,0,""]
[null,null,null,null,null,null,88,"TURN_009_14",9,null,"Thompson Dr & WB WIS 30 On-Ramp","EBL",0,0,0,""]
[null,null,null,null,null,null,89,"TURN_009_15",9,null,"Thompson Dr & WB WIS 30 On-Ramp","EBT",0,0,0,""]
[null,null,null,null,null,null,90,"TURN_009_16",9,null,"Thompson Dr & WB WIS 30 On-Ramp","EBR",0,0,0,""]
[null,null,null,null,null,null,91,"TURN_010_01",10,{"$f":"INDEX($D$9:$D$18, MATCH($I99,$C$9:$C$18,0))","v":"Thompson Dr & EB WIS 30Off-Ramp"},"Thompson Dr & EB WIS 30Off-Ramp","NBU",0,0,0,""]
[null,null,null,null,null,null,92,"TURN_010_03",10,null,"Thompson Dr & EB WIS 30Off-Ramp","NBT",300,300,0,0]
[null,null,null,null,null,null,93,"TURN_010_09",10,null,"Thompson Dr & EB WIS 30Off-Ramp","SBU",0,0,0,""]
[null,null,null,null,null,null,94,"TURN_010_11",10,null,"Thompson Dr & EB WIS 30Off-Ramp","SBT",165,165,0,0]
[null,null,null,null,null,null,95,"TURN_010_14",10,null,"Thompson Dr & EB WIS 30Off-Ramp","EBL",226,226,0,0]
[null,null,null,null,null,null,96,"TURN_010_16",10,null,"Thompson Dr & EB WIS 30Off-Ramp","EBR",45,45,0,0]

{"sheet":"Raw-Initial Volume List Entry","index":3,"n_rows":34,"n_cols":21,"rows_kept":34,"cut":false,"hidden":false,"merged":[[21,5,21,8],[21,9,21,12],[21,13,21,16],[21,17,21,20],[8,12,8,15],[9,12,9,15],[15,17,15,20],[16,17,16,20],[15,12,15,13],[14,12,14,13],[22,3,22,4],[22,5,22,8],[22,9,22,12],[22,13,22,16],[22,17,22,20]]}
[]
[null,null,null,"Project",{"$f":"Schematic!$L$3","v":"Sample Freeway & Intersection Balancing"}]
[null,null,null,"Scenario",{"$f":"Schematic!$L$4","v":"Year 2012 AM Peak"}]
[]
[]
[null,null,null,"Transfer Raw/Initial Volumes to/from the Schematic Worksheet"]
[]
[null,null,null,null,null,null,null,null,null,null,null,null,"Turn Numbers in Schematic Orientation"]
[null,null,null,null,null,null,null,null,null,null,null,null,"ê",null,null,null,null,"<",8]
[null,null,null,null,null,null,null,null,null,null,null,null,"Top Leg",null,null,null,null,"!",7,"ç"]
[null,null,null,null,null,null,null,null,null,null,null,null,12,11,10,9,null,">",6,"Right Leg"]
[null,null,null,null,null,null,null,null,null,null,null,null,8,"$","9","M",null,"N",5]
[]
[null,null,null,null,null,null,null,null,null,null,null,null,null,null,13,"O",null,"L",":","#",";"]
[null,null,null,null,null,null,null,null,null,null,null,null,"è",null,14,"=",null,1,2,3,4]
[null,null,null,null,null,null,null,null,null,null,null,null,"Left Leg",null,15,"\"",null,"é"]
[null,null,null,null,null,null,null,null,null,null,null,null,null,null,16,"?",null,"Bottom Leg"]
[]
[]
[]
[null,null,null,null,"Turn Number",12,11,10,9,8,7,6,5,4,3,2,1,13,14,15,16]
[null,null,null,null,null,"ê",null,null,null,"ç",null,null,null,"é",null,null,null,"è"]
[null,null,null,"Intersection",null,"Top Leg",null,null,null,"Right Leg",null,null,null,"Bottom Leg",null,null,null,"Left Leg"]
[null,null,null,"Number","Name","Right ","Thru ","Left ","U-Tn","Right ","Thru ","Left ","U-Tn","Right ","Thru ","Left ","U-Tn","Right ","Thru ","Left ","U-Tn"]
[null,null,null,{"$f":"Schematic!$AW$44","v":1},{"$f":"Schematic!$AJ$30","v":"US 51 & NB I-39/90/94 Ramps"},12,1193,null,null,217,null,91,null,143,312]
[null,null,null,{"$f":"Schematic!$AW$79","v":2},{"$f":"Schematic!$AJ$65","v":"US 51 & SB I-39/90/94 Ramps"},269,1064,null,null,null,null,null,null,76,423,null,null,786,null,3]
[null,null,null,{"$f":"Schematic!$DI$130","v":5},{"$f":"Schematic!$CV$116","v":"American Pkwy & Eastpark Blvd"},51,343,14,0,15,33,87,0,110,1051,570,0,120,13,24,0]
[null,null,null,{"$f":"Schematic!$AQ$165","v":3},{"$f":"Schematic!$AK$140","v":"High Crossing Blvd & SB I-39/90/94 On-Ramp"},null,null,null,null,null,279,175,0,null,null,null,null,85,145,null,0]
[null,null,null,{"$f":"Schematic!$BL$165","v":4},{"$f":"Schematic!$BM$140","v":"High Crossing Blvd & NB I-39/90/94 Off-Ramp"},null,null,null,null,null,323,null,0,394,null,141,null,null,145,null,0]
[null,null,null,{"$f":"Schematic!$DI$200","v":6},{"$f":"Schematic!$CV$186","v":"High Crossing Blvd & American Pkwy / Nelson Rd & US 151"},166,137,51,0,5,113,24,0,82,252,74,0,41,100,214,0]
[null,null,null,{"$f":"Schematic!$BF$262","v":7},{"$f":"Schematic!$AS$248","v":"US 51 & WB WIS 30 Ramps"},34,813,null,0,343,0,868,null,null,710,472,0]
[null,null,null,{"$f":"Schematic!$DG$262","v":9},{"$f":"Schematic!$CT$248","v":"Thompson Dr & WB WIS 30 On-Ramp"},448,103,5,0,3,454,47,0,153,213,195,0,0,0,0,0]
[null,null,null,{"$f":"Schematic!$BF$297","v":8},{"$f":"Schematic!$AS$308","v":"US 51 & EB WIS 30 Ramps"},null,1574,107,0,null,null,null,null,352,1145,null,0,582,0,37]
[null,null,null,{"$f":"Schematic!$DG$297","v":10},{"$f":"Schematic!$CT$308","v":"Thompson Dr & EB WIS 30Off-Ramp"},null,165,null,0,null,null,null,null,null,300,null,0,45,null,226]